Service Area,Service Division,Expense Type,Expense Code,Detailed Expense Type,Payment Date,Transaction Number,Amount Exc VAT,Supplier Name
Regeneration Economy and Growth,Corporate Property and Land,Third Party Payments,430100,Rendered by Private Contractors,04/01/2022,3951487-48802394,"3,955.00",ADT FIRE & SECURITY PLC.
Neighbourhoods and Climate Change,Technical Services CM0300,Supplies and Services,304221,Equipment and Materials,04/01/2022,3951488-32417847,926.27,AGGREGATE INDUSTRIES UK LTD.
Neighbourhoods and Climate Change,Technical Services CM0300,Supplies and Services,304221,Equipment and Materials,04/01/2022,3951488-32422975,"1,272.46",AGGREGATE INDUSTRIES UK LTD.
Regeneration Economy and Growth,Corporate Property and Land,Third Party Payments,430100,Rendered by Private Contractors,04/01/2022,3951492-5126,"4,950.00",APEX ROOFING SPECIALISTS LTD.
Regeneration Economy and Growth,Corporate Property and Land,Supplies and Services,338066,Services,04/01/2022,3951496-5282,"1,850.00",ASSOCIATION OF SAFETY & COMPLIANCE PROFESSIONALS (ASCP).*
Neighbourhoods and Climate Change,Environmental Services,Premises,120021,Energy Costs,04/01/2022,3951500-34690967,"1,232.42",CALOR GAS LTD.
Regeneration Economy and Growth,Corporate Property and Land,Third Party Payments,430100,Rendered by Private Contractors,04/01/2022,3951502-6772,"2,325.00",CENTURY FABRICATIONS LTD.
Regeneration Economy and Growth,Transport and Contracted Services,Supplies and Services,336005,Advertising E336,04/01/2022,3951503-INV-1151,"13,000.00",CHALLENGE FOR CHANGE LTD T/A LOVE TO RIDE.
Regeneration Economy and Growth,Corporate Property and Land,Supplies and Services,304221,Equipment and Materials,04/01/2022,3951505-2852ABI660,"1,035.03",CITY PLUMBING SUPPLIES HOLDINGS LTD.
Regeneration Economy and Growth,Corporate Property and Land,Supplies and Services,304221,Equipment and Materials,04/01/2022,3951505-2852ABI844,"1,061.06",CITY PLUMBING SUPPLIES HOLDINGS LTD.
Regeneration Economy and Growth,Corporate Property and Land,Supplies and Services,304221,Equipment and Materials,04/01/2022,3951505-2852ABJ998,556.00,CITY PLUMBING SUPPLIES HOLDINGS LTD.
Neighbourhoods and Climate Change,Environmental Services,Third Party Payments,460305,Contract Payments,04/01/2022,3951507-6497,"4,908.00",CO-WHEELS CAR CLUB CIC.
Neighbourhoods and Climate Change,Technical Services CM0300,Third Party Payments,430127,Rendered by Private Contractors,04/01/2022,3951512-INV-0162,"2,779.00",D & L HOPPS.
Neighbourhoods and Climate Change,Technical Services CM0300,Third Party Payments,430127,Rendered by Private Contractors,04/01/2022,3951512-INV-0168,"1,067.50",D & L HOPPS.
Regeneration Economy and Growth,Development and Housing,Cap Exp on Grants & Other Financial Assistance (REFCUS),918501,Exp assets not owned by authority,04/01/2022,3951517-CONTRIBUTION-VOLUNTEERDEVELOPMENT,500.00,DURHAM AMATEUR FOOTBALL TRUST.
Regeneration Economy and Growth,Corporate Property and Land,Third Party Payments,430100,Rendered by Private Contractors,04/01/2022,3951520-SIN/21-081659-BD,"1,283.00",ENGINEERING PRECISION SOLUTIONS LTD T/A CYRUS-BRADFORD.
Regeneration Economy and Growth,Corporate Property and Land,Third Party Payments,430100,Rendered by Private Contractors,04/01/2022,3951520-SIN/21-081661-BD,727.00,ENGINEERING PRECISION SOLUTIONS LTD T/A CYRUS-BRADFORD.
Regeneration Economy and Growth,Corporate Property and Land,Third Party Payments,430100,Rendered by Private Contractors,04/01/2022,3951520-SIN/21-081667-BD,540.00,ENGINEERING PRECISION SOLUTIONS LTD T/A CYRUS-BRADFORD.
Regeneration Economy and Growth,Corporate Property and Land,Third Party Payments,430100,Rendered by Private Contractors,04/01/2022,3951520-SIN/21-081668-BD,"1,934.00",ENGINEERING PRECISION SOLUTIONS LTD T/A CYRUS-BRADFORD.
Regeneration Economy and Growth,Corporate Property and Land,Third Party Payments,430100,Rendered by Private Contractors,04/01/2022,3951520-SIN/21-081680-BD,"1,290.00",ENGINEERING PRECISION SOLUTIONS LTD T/A CYRUS-BRADFORD.
Children and Young Peoples Services,Head of Childrens Social Care,Supplies and Services,338044,Services,04/01/2022,3951522-INV-30294,540.00,FL 360 LTD T/A FORESIGHT CLINICAL SERVICES LTD.
Non-Service Specific,Insurances,Expenditure 8INSEX,810001,Insurance Expenditure,04/01/2022,3951524-NC015425,"21,279.00",GALLAGHER BASSETT INTERNATIONAL LTD IBA.*
Neighbourhoods and Climate Change,Technical Services CM0300,Supplies and Services,304357,Equipment and Materials,04/01/2022,3951525-DCC281121,"18,708.47",GAP GROUP LTD.
Children and Young Peoples Services,Head of Childrens Social Care,Employees,080025,Agency Staff,04/01/2022,3951526-2455115,"140,453.33",GEOMETRIC RESULTS INTERNATIONAL.
Regeneration Economy and Growth,Corporate Property and Land,Third Party Payments,430100,Rendered by Private Contractors,04/01/2022,3951528-INV-0824,668.55,GLENFIELD ENERGY SOLUTIONS LTD.
Non-Service Specific,Non Service Specific-Financing,Long Term Debtors,924001,Car loans,04/01/2022,3951530-76505,970.00,GO GATESHEAD LTD.
Regeneration Economy and Growth,Corporate Property and Land,Supplies and Services,304221,Equipment and Materials,04/01/2022,3951536-4720951,"1,247.66",HEADLAM (FLOORCOVERING DISTRIBUTORS) LTD.
Children and Young Peoples Services,Head of Early Help Inclusion & Vulnerable Children.,Supplies and Services,304259,Equipment and Materials,04/01/2022,3951537-SI-036281,769.15,INFORMATION & DATA NETWORK SUPPLIES LTD (IDN).
Regeneration Economy and Growth,Corporate Property and Land,Third Party Payments,430100,Rendered by Private Contractors,04/01/2022,3951538-11932,"8,136.10",INGLEFORD SCAFFOLDING LTD.
Regeneration Economy and Growth,Corporate Property and Land,Third Party Payments,430100,Rendered by Private Contractors,04/01/2022,3951538-11994,990.00,INGLEFORD SCAFFOLDING LTD.
Children and Young Peoples Services,Head of Education and Skills,Supplies and Services,338035,Services,04/01/2022,3951539-805908045,925.00,INSTITUTE OF LEADERSHIP & MANAGEMENT (ILM).
Children and Young Peoples Services,Head of Early Help Inclusion & Vulnerable Children.,Supplies and Services,328041,Clothing uniforms and laundry E328,04/01/2022,3951542-IWI109041,863.98,INTERWEAVE TEXTILES LTD.
Regeneration Economy and Growth,Culture Sport and Tourism,Supplies and Services,304259,Equipment and Materials,04/01/2022,3951546-48956,645.00,JBL SERVICES LTD.
Regeneration Economy and Growth,Culture Sport and Tourism,Supplies and Services,304252,Equipment and Materials,04/01/2022,3951546-48955,"3,940.00",JBL SERVICES LTD.
Neighbourhoods and Climate Change,Environmental Services,Supplies and Services,338066,Services,04/01/2022,3951548-11,"3,300.00",REDACTED - PAYMENT TO INDIVIDUAL
Regeneration Economy and Growth,Corporate Property and Land,Supplies and Services,304221,Equipment and Materials,04/01/2022,3951549-0213/00508904,856.66,JT DOVE LTD.
Regeneration Economy and Growth,Corporate Property and Land,Supplies and Services,304221,Equipment and Materials,04/01/2022,3951549-0108/00527934,852.40,JT DOVE LTD.
Regeneration Economy and Growth,Corporate Property and Land,Supplies and Services,304221,Equipment and Materials,04/01/2022,3951549-0120/00537217,"14,043.91",JT DOVE LTD.
Regeneration Economy and Growth,Corporate Property and Land,Supplies and Services,304221,Equipment and Materials,04/01/2022,3951553-92949,"2,171.50",LEISURETEQ.
Resources BK0010,Digital and Customer Services,Supplies and Services,342053,Computers and Communications,04/01/2022,3951555-12637596,"15,165.24",MAINTEL EUROPE LTD.
Neighbourhoods and Climate Change,Technical Services CM0300,Stock A926,926900,Stock in hand-Inventory system,04/01/2022,3951556-299764.,"38,028.20",MARWOOD ELECTRICAL COMPANY LTD.
Regeneration Economy and Growth,Corporate Property and Land,Third Party Payments,430100,Rendered by Private Contractors,04/01/2022,3951558-30559/92405919,570.00,MITIE PROPERTY SERVICES (UK) LTD.
Regeneration Economy and Growth,Culture Sport and Tourism,Supplies and Services,324001,Provisions E324,04/01/2022,3951559-906354080,630.30,MOLSON COORS BREWING COMPANY (UK) LTD.
Regeneration Economy and Growth,Corporate Property and Land,Third Party Payments,430100,Rendered by Private Contractors,04/01/2022,3951577-792161,"4,500.00",NATIONWIDE CHIMNEY COMPONENTS LTD.
Regeneration Economy and Growth,Corporate Property and Land,Third Party Payments,430100,Rendered by Private Contractors,04/01/2022,3951577-792172,"3,560.00",NATIONWIDE CHIMNEY COMPONENTS LTD.
Children and Young Peoples Services,Head of Education and Skills,Supplies and Services,338035,Services,04/01/2022,3951578-SI00106431,572.00,NCFE.
Regeneration Economy and Growth,Corporate Property and Land,Third Party Payments,430100,Rendered by Private Contractors,04/01/2022,3951584-11297-05,"1,528.40",OPUS BUILDING SERVICES LTD.
Regeneration Economy and Growth,Corporate Property and Land,Third Party Payments,430100,Rendered by Private Contractors,04/01/2022,3951584-10979-58,920.93,OPUS BUILDING SERVICES LTD.
Regeneration Economy and Growth,Corporate Property and Land,Third Party Payments,430100,Rendered by Private Contractors,04/01/2022,3951584-10979-59,"1,099.22",OPUS BUILDING SERVICES LTD.
Regeneration Economy and Growth,Corporate Property and Land,Third Party Payments,430100,Rendered by Private Contractors,04/01/2022,3951584-10979-60,"1,126.87",OPUS BUILDING SERVICES LTD.
Regeneration Economy and Growth,Corporate Property and Land,Third Party Payments,430100,Rendered by Private Contractors,04/01/2022,3951584-10979-62,"1,092.22",OPUS BUILDING SERVICES LTD.
Regeneration Economy and Growth,Corporate Property and Land,Third Party Payments,430100,Rendered by Private Contractors,04/01/2022,3951584-10979-63,914.63,OPUS BUILDING SERVICES LTD.
Regeneration Economy and Growth,Corporate Property and Land,Third Party Payments,430100,Rendered by Private Contractors,04/01/2022,3951584-10979-64,"1,126.87",OPUS BUILDING SERVICES LTD.
Regeneration Economy and Growth,Corporate Property and Land,Third Party Payments,430100,Rendered by Private Contractors,04/01/2022,3951584-11297-28,"1,147.12",OPUS BUILDING SERVICES LTD.
Regeneration Economy and Growth,Corporate Property and Land,Third Party Payments,430100,Rendered by Private Contractors,04/01/2022,3951584-11297-30,"1,147.12",OPUS BUILDING SERVICES LTD.
Regeneration Economy and Growth,Corporate Property and Land,Third Party Payments,430100,Rendered by Private Contractors,04/01/2022,3951584-10979-42,"1,209.38",OPUS BUILDING SERVICES LTD.
Regeneration Economy and Growth,Corporate Property and Land,Third Party Payments,430100,Rendered by Private Contractors,04/01/2022,3951584-10979-43,"1,159.88",OPUS BUILDING SERVICES LTD.
Regeneration Economy and Growth,Corporate Property and Land,Third Party Payments,430100,Rendered by Private Contractors,04/01/2022,3951584-10979-52,"1,173.38",OPUS BUILDING SERVICES LTD.
Regeneration Economy and Growth,Corporate Property and Land,Third Party Payments,430100,Rendered by Private Contractors,04/01/2022,3951584-10979-56,"1,186.88",OPUS BUILDING SERVICES LTD.
Regeneration Economy and Growth,Corporate Property and Land,Third Party Payments,430100,Rendered by Private Contractors,04/01/2022,3951584-11297-14,"1,153.87",OPUS BUILDING SERVICES LTD.
Regeneration Economy and Growth,Corporate Property and Land,Third Party Payments,430100,Rendered by Private Contractors,04/01/2022,3951584-10979-61,"1,194.98",OPUS BUILDING SERVICES LTD.
Regeneration Economy and Growth,Corporate Property and Land,Third Party Payments,430100,Rendered by Private Contractors,04/01/2022,3951584-11089-90,"1,183.88",OPUS BUILDING SERVICES LTD.
Regeneration Economy and Growth,Corporate Property and Land,Third Party Payments,430100,Rendered by Private Contractors,04/01/2022,3951584-11297-01,"1,128.38",OPUS BUILDING SERVICES LTD.
Regeneration Economy and Growth,Corporate Property and Land,Third Party Payments,430100,Rendered by Private Contractors,04/01/2022,3951584-11297-04,"1,128.38",OPUS BUILDING SERVICES LTD.
Regeneration Economy and Growth,Corporate Property and Land,Third Party Payments,430100,Rendered by Private Contractors,04/01/2022,3951584-11297-10,"1,134.07",OPUS BUILDING SERVICES LTD.
Regeneration Economy and Growth,Corporate Property and Land,Third Party Payments,430100,Rendered by Private Contractors,04/01/2022,3951584-11297-31,676.50,OPUS BUILDING SERVICES LTD.
Regeneration Economy and Growth,Corporate Property and Land,Third Party Payments,430100,Rendered by Private Contractors,04/01/2022,3951585-175510,837.00,PALINTEST LTD.
Regeneration Economy and Growth,Corporate Property and Land,Supplies and Services,384199,Miscellaneous Expenses,04/01/2022,3951587-DECEMBER2021,"1,040.00",PEARSONS DEVELOPMENT & PROPERTY SERVICES LIMITED.
Children and Young Peoples Services,Head of Early Help Inclusion & Vulnerable Children.,Supplies and Services,384199,Miscellaneous Expenses,04/01/2022,3951590-900945769,"1,139.66",PORTAKABIN LTD.
Regeneration Economy and Growth,Corporate Property and Land,Third Party Payments,430100,Rendered by Private Contractors,04/01/2022,3951567-DCC213,"1,500.00",REDACTED - PAYMENT TO INDIVIDUAL
Regeneration Economy and Growth,Corporate Property and Land,Third Party Payments,430100,Rendered by Private Contractors,04/01/2022,3951567-DCC214,"1,500.00",REDACTED - PAYMENT TO INDIVIDUAL
Regeneration Economy and Growth,Corporate Property and Land,Third Party Payments,430100,Rendered by Private Contractors,04/01/2022,3951567-DCC215,"1,500.00",REDACTED - PAYMENT TO INDIVIDUAL
Regeneration Economy and Growth,Corporate Property and Land,Third Party Payments,430100,Rendered by Private Contractors,04/01/2022,3951567-DCC216,"1,500.00",REDACTED - PAYMENT TO INDIVIDUAL
Regeneration Economy and Growth,Corporate Property and Land,Third Party Payments,430100,Rendered by Private Contractors,04/01/2022,3951567-DCC217,"1,500.00",REDACTED - PAYMENT TO INDIVIDUAL
Regeneration Economy and Growth,Culture Sport and Tourism,Supplies and Services,338047,Services,04/01/2022,3951595-KM160,"1,000.00",SD TALENT MANAGEMENT LTD.
Regeneration Economy and Growth,Culture Sport and Tourism,Supplies and Services,324117,Provisions E324,04/01/2022,3951599-0000083700,782.32,SNOWSHOCK LTD.
Neighbourhoods and Climate Change,Environmental Services,Supplies and Services,338027,Services,04/01/2022,3951600-0000927704,925.00,SOCOTEC UK LTD.
Neighbourhoods and Climate Change,Technical Services CM0300,Supplies and Services,338066,Services,04/01/2022,3951601-2021-668,"6,780.00",SOLMEK LTD.
Neighbourhoods and Climate Change,Technical Services CM0300,Supplies and Services,338066,Services,04/01/2022,3951605-33589,"1,350.00",SURVEY OPERATIONS LTD.
Regeneration Economy and Growth,Corporate Property and Land,Supplies and Services,304221,Equipment and Materials,04/01/2022,3951607-720872,665.84,T CROSSLING & CO LTD.
Regeneration Economy and Growth,Corporate Property and Land,Supplies and Services,304221,Equipment and Materials,04/01/2022,3951607-721469,622.00,T CROSSLING & CO LTD.
Neighbourhoods and Climate Change,Environmental Services,Third Party Payments,430100,Rendered by Private Contractors,04/01/2022,3951609-090,800.00,TELFORD`S COUNTRYSIDE & LANDSCAPE CONTRACTORS.
Children and Young Peoples Services,Head of Education and Skills,Supplies and Services,384540,Miscellaneous Expenses,04/01/2022,3951611-49865,"7,961.40",THE PURPLE COMPANY (UK) LTD T/A SILK GROUP.
Regeneration Economy and Growth,Development and Housing,Construction work A908,908105,Construction work,04/01/2022,3951613-SPN-000354,"585,014.58",TOLENT LIVING LTD.
Children and Young Peoples Services,Head of Early Help Inclusion & Vulnerable Children.,Supplies and Services,308011,Furniture,04/01/2022,3951614-23163,"1,047.00",TOUGH FURNITURE LTD.
Regeneration Economy and Growth,Corporate Property and Land,Third Party Payments,430100,Rendered by Private Contractors,04/01/2022,3951616-17038,647.01,TYNE TEES THERMAL LTD.
Regeneration Economy and Growth,Corporate Property and Land,Third Party Payments,430100,Rendered by Private Contractors,04/01/2022,3951616-17042,"1,684.91",TYNE TEES THERMAL LTD.
Regeneration Economy and Growth,Corporate Property and Land,Third Party Payments,430100,Rendered by Private Contractors,04/01/2022,3951616-17043,"2,067.13",TYNE TEES THERMAL LTD.
Resources BK0010,Digital and Customer Services,Supplies and Services,344015,Telephones,04/01/2022,3951617-PV80473,"1,242.00",VODAFONE LTD.
Resources BK0010,Digital and Customer Services,Supplies and Services,344015,Telephones,04/01/2022,3951617-PW58729,"1,242.00",VODAFONE LTD.
Resources BK0010,Digital and Customer Services,Supplies and Services,344015,Telephones,04/01/2022,3951617-PW58731,"1,113.00",VODAFONE LTD.
Resources BK0010,Digital and Customer Services,Supplies and Services,344015,Telephones,04/01/2022,3951617-PW58732,"2,070.00",VODAFONE LTD.
Resources BK0010,Digital and Customer Services,Supplies and Services,344015,Telephones,04/01/2022,3951617-PW58733,560.00,VODAFONE LTD.
Adult and Health Services,Public Health CC0450,Third Party Payments,460803,Contract Payments,04/01/2022,3951618-FFRV/00000177NRT-OCT21,886.44,W SMITH (DURHAM) LTD.
Regeneration Economy and Growth,Corporate Property and Land,Premises,108099,Service Repairs and Maintenance,04/01/2022,3951619-INV-1541,"1,911.00",WATER SOLUTIONS (EUROPE) LTD.
Regeneration Economy and Growth,Corporate Property and Land,Premises,108099,Service Repairs and Maintenance,04/01/2022,3951619-INV-1559,"1,072.50",WATER SOLUTIONS (EUROPE) LTD.
Neighbourhoods and Climate Change,Environmental Services,Vehicles Equipment Furniture and Fittings,912529,Purchase-equipment,04/01/2022,3951624-0000816272,"29,650.00",WICKSTEED LEISURE LTD.
Neighbourhoods and Climate Change,Technical Services CM0300,Stock A926,926900,Stock in hand-Inventory system,04/01/2022,3951629-145454903,"6,412.32",ZG LIGHTING (UK) LTD.
Neighbourhoods and Climate Change,Technical Services CM0300,Stock A926,926900,Stock in hand-Inventory system,04/01/2022,3951629-145454905,"2,670.96",ZG LIGHTING (UK) LTD.
Children and Young Peoples Services,Head of Education and Skills,Transport,230010,Contract Hire,05/01/2022,3952255-O535,"2,075.32",ABC & OUSTON CABS.
Children and Young Peoples Services,Head of Education and Skills,Transport,230010,Contract Hire,05/01/2022,3952255-O536,"1,909.00",ABC & OUSTON CABS.
Children and Young Peoples Services,Head of Education and Skills,Transport,230008,Contract Hire,05/01/2022,3952255-0534,"1,337.70",ABC & OUSTON CABS.
Adult and Health Services,Head of Adults,Transport,230005,Contract Hire,05/01/2022,3952255-0537,"1,066.00",ABC & OUSTON CABS.
Neighbourhoods and Climate Change,Community Protection,Supplies and Services,304999,Equipment and Materials,05/01/2022,3952256-12240,960.00,AIR MONITORS LTD.
Regeneration Economy and Growth,Corporate Property and Land,Supplies and Services,304221,Equipment and Materials,05/01/2022,3952257-172707,"14,386.78",ALBANY OFFICE EQUIPMENT (WHOLESALE) LTD.
Regeneration Economy and Growth,Corporate Property and Land,Supplies and Services,304221,Equipment and Materials,05/01/2022,3952257-172709,"7,284.00",ALBANY OFFICE EQUIPMENT (WHOLESALE) LTD.
Regeneration Economy and Growth,Corporate Property and Land,Supplies and Services,304221,Equipment and Materials,05/01/2022,3952257-172711,"2,816.06",ALBANY OFFICE EQUIPMENT (WHOLESALE) LTD.
Regeneration Economy and Growth,Corporate Property and Land,Supplies and Services,304221,Equipment and Materials,05/01/2022,3952257-172712,"3,063.00",ALBANY OFFICE EQUIPMENT (WHOLESALE) LTD.
Regeneration Economy and Growth,Corporate Property and Land,Supplies and Services,304221,Equipment and Materials,05/01/2022,3952257-172713,"4,416.83",ALBANY OFFICE EQUIPMENT (WHOLESALE) LTD.
Regeneration Economy and Growth,Corporate Property and Land,Supplies and Services,304221,Equipment and Materials,05/01/2022,3952257-172714,"3,898.82",ALBANY OFFICE EQUIPMENT (WHOLESALE) LTD.
Children and Young Peoples Services,Head of Early Help Inclusion & Vulnerable Children.,Supplies and Services,308011,Furniture,05/01/2022,3952257-173341,994.00,ALBANY OFFICE EQUIPMENT (WHOLESALE) LTD.
Children and Young Peoples Services,Head of Education and Skills,Transport,230008,Contract Hire,05/01/2022,3952266-DCC04DEC21,"2,692.07",ATLAS TAXIS BISHOP AUCKLAND.
Regeneration Economy and Growth,Corporate Property and Land,Third Party Payments,430100,Rendered by Private Contractors,05/01/2022,3952267-8119,"1,617.00",ATLAS WASHROOM SYSTEMS LTD.
Children and Young Peoples Services,Head of Education and Skills,Transport,230007,Contract Hire,05/01/2022,3952268-171220212,"1,700.00",AVALON TAXIS.
Regeneration Economy and Growth,Corporate Property and Land,Third Party Payments,430100,Rendered by Private Contractors,05/01/2022,3952269-33474,"1,138.00",AYCLIFFE FABRICATIONS LTD.
Regeneration Economy and Growth,Corporate Property and Land,Third Party Payments,430100,Rendered by Private Contractors,05/01/2022,3952269-33481,"2,773.00",AYCLIFFE FABRICATIONS LTD.
Children and Young Peoples Services,Head of Education and Skills,Transport,230008,Contract Hire,05/01/2022,3952272-SMITH1DECEMBER21,"1,644.00",BEELINE PRIVATE HIRE.
Children and Young Peoples Services,Head of Education and Skills,Transport,230008,Contract Hire,05/01/2022,3952272-SMITH2/DECEMBER21,693.97,BEELINE PRIVATE HIRE.
Children and Young Peoples Services,Head of Education and Skills,Transport,230006,Contract Hire,05/01/2022,3952277-1,"1,560.00",BH TRAVEL.
Regeneration Economy and Growth,Culture Sport and Tourism,Supplies and Services,324117,Provisions E324,05/01/2022,3952278-32685482,570.80,BIDFOOD.
Children and Young Peoples Services,Head of Education and Skills,Transport,230008,Contract Hire,05/01/2022,3952279-04-N070,"1,360.00",BON VOYAGE TAXIS LTD.
Children and Young Peoples Services,Head of Education and Skills,Transport,230008,Contract Hire,05/01/2022,3952279-04DEC21,"2,080.00",BON VOYAGE TAXIS LTD.
Children and Young Peoples Services,Head of Education and Skills,Transport,230008,Contract Hire,05/01/2022,3952279-04-A020,"1,850.00",BON VOYAGE TAXIS LTD.
Children and Young Peoples Services,Head of Education and Skills,Transport,230008,Contract Hire,05/01/2022,3952279-04DEC212,"1,800.00",BON VOYAGE TAXIS LTD.
Children and Young Peoples Services,Head of Education and Skills,Transport,230008,Contract Hire,05/01/2022,3952279-04-N080,"2,250.00",BON VOYAGE TAXIS LTD.
Children and Young Peoples Services,Head of Education and Skills,Transport,230008,Contract Hire,05/01/2022,3952281-DEC21,"1,539.20",BOWES TRAVEL.
Neighbourhoods and Climate Change,Technical Services CM0300,Supplies and Services,304221,Equipment and Materials,05/01/2022,3952284-20468842,702.36,BREEDON TRADING LTD.
Children and Young Peoples Services,Head of Education and Skills,Transport,230008,Contract Hire,05/01/2022,3952285-W046-26,"1,355.76",C & R TAXIS.
Children and Young Peoples Services,Head of Education and Skills,Transport,230008,Contract Hire,05/01/2022,3952285-W030026,"1,566.24",C & R TAXIS.
Children and Young Peoples Services,Head of Education and Skills,Transport,230008,Contract Hire,05/01/2022,3952285-W112029,"1,170.00",C & R TAXIS.
Children and Young Peoples Services,Head of Education and Skills,Transport,230008,Contract Hire,05/01/2022,3952285-S006026,"1,377.50",C & R TAXIS.
Adult and Health Services,Head of Adults,Supplies and Services,338367,Services,05/01/2022,3952286-80593,910.65,CARE ABILITY HEALTHCARE LTD.
Regeneration Economy and Growth,Corporate Property and Land,Supplies and Services,304221,Equipment and Materials,05/01/2022,3952287-10637926,"3,471.97",CARPET & FLOORING (TRADING) LTD.
Regeneration Economy and Growth,Corporate Property and Land,Supplies and Services,304221,Equipment and Materials,05/01/2022,3952287-10642415,693.11,CARPET & FLOORING (TRADING) LTD.
Regeneration Economy and Growth,Corporate Property and Land,Third Party Payments,430100,Rendered by Private Contractors,05/01/2022,3952288-8701,"6,768.52",CATHEDRAL LOCK & SAFE SERVICES LTD.
Neighbourhoods and Climate Change,Environmental Services,Cap Exp on Grants & Other Financial Assistance (REFCUS),918501,Exp assets not owned by authority,05/01/2022,3952292-62324,"1,290.00",CHEVIOT TREES LTD.
Children and Young Peoples Services,Head of Education and Skills,Transport,230008,Contract Hire,05/01/2022,3952296-N049-JM1221,"2,296.00",CJ`S EXECUTIVE TRAVEL LTD.
Children and Young Peoples Services,Head of Education and Skills,Transport,230008,Contract Hire,05/01/2022,3952296-A072-SP1221,"1,385.15",CJ`S EXECUTIVE TRAVEL LTD.
Children and Young Peoples Services,Head of Education and Skills,Transport,230008,Contract Hire,05/01/2022,3952296-M011-AA1221,"1,568.45",CJ`S EXECUTIVE TRAVEL LTD.
Children and Young Peoples Services,Head of Education and Skills,Transport,230007,Contract Hire,05/01/2022,3952300-C/11364,"2,574.00",COCHRANES T/A KELVIN TRAVEL.
Children and Young Peoples Services,Head of Education and Skills,Transport,230007,Contract Hire,05/01/2022,3952300-C/11363,"4,628.00",COCHRANES T/A KELVIN TRAVEL.
Children and Young Peoples Services,Head of Education and Skills,Transport,230003,Contract Hire,05/01/2022,3952300-C/11365,"1,664.00",COCHRANES T/A KELVIN TRAVEL.
Children and Young Peoples Services,Head of Education and Skills,Transport,230003,Contract Hire,05/01/2022,3952300-C/11366,"1,924.00",COCHRANES T/A KELVIN TRAVEL.
Children and Young Peoples Services,Head of Education and Skills,Transport,230003,Contract Hire,05/01/2022,3952300-C/11367,"2,444.00",COCHRANES T/A KELVIN TRAVEL.
Adult and Health Services,Head of Adults,Third Party Payments,470101,Purchase of Care,05/01/2022,3952304-011,"1,396.00",COUNT CARE SERVICES LTD.
Children and Young Peoples Services,Head of Education and Skills,Transport,230006,Contract Hire,05/01/2022,3952306-111956,"1,191.04",CROFT BUSINESS SERVICES LTD T/A CROFT TRAVEL.
Children and Young Peoples Services,Head of Education and Skills,Transport,230006,Contract Hire,05/01/2022,3952306-111957,"1,347.52",CROFT BUSINESS SERVICES LTD T/A CROFT TRAVEL.
Children and Young Peoples Services,Head of Education and Skills,Transport,230006,Contract Hire,05/01/2022,3952306-111950,"3,150.16",CROFT BUSINESS SERVICES LTD T/A CROFT TRAVEL.
Children and Young Peoples Services,Head of Education and Skills,Transport,230008,Contract Hire,05/01/2022,3952306-111951,"2,189.72",CROFT BUSINESS SERVICES LTD T/A CROFT TRAVEL.
Children and Young Peoples Services,Head of Education and Skills,Transport,230008,Contract Hire,05/01/2022,3952306-111952,"1,265.00",CROFT BUSINESS SERVICES LTD T/A CROFT TRAVEL.
Adult and Health Services,Head of Adults,Transport,230005,Contract Hire,05/01/2022,3952306-111953,597.92,CROFT BUSINESS SERVICES LTD T/A CROFT TRAVEL.
Children and Young Peoples Services,Head of Education and Skills,Transport,230006,Contract Hire,05/01/2022,3952309-NCDDEC2101,"1,080.00",DALELINK PRIVATE HIRE.
Regeneration Economy and Growth,Culture Sport and Tourism,Supplies and Services,372009,Subscriptions E372,05/01/2022,3952312-5291,"2,304.00",DEMETER LTD.
Neighbourhoods and Climate Change,Environmental Services,Stock A926,926004,Stock,05/01/2022,3952313-96416948,"2,808.64",DENNIS EAGLE LTD T/A TERBERG MATEC (UK) LTD.
Dedicated Schools Grant BG0015,DSG High Needs Block,Supplies and Services,304259,Equipment and Materials,05/01/2022,3952317-0000133275,"1,275.00",DIRECT HEALTHCARE GROUP LTD.
Adult and Health Services,Commissioning inc Supporting People,Third Party Payments,479101,Purchase of Care,05/01/2022,3952323-477,"263,250.00",DURHAM COUNTY CARERS SUPPORT.
Children and Young Peoples Services,Head of Education and Skills,Transport,230009,Contract Hire,05/01/2022,3952324-1216,"1,742.00",EAST DURHAM TAXIS.
Children and Young Peoples Services,Head of Education and Skills,Transport,230006,Contract Hire,05/01/2022,3952324-1218,"1,919.84",EAST DURHAM TAXIS.
Children and Young Peoples Services,Head of Education and Skills,Transport,230006,Contract Hire,05/01/2022,3952324-1217,704.00,EAST DURHAM TAXIS.
Children and Young Peoples Services,Head of Education and Skills,Transport,230006,Contract Hire,05/01/2022,3952324-1213,"2,392.00",EAST DURHAM TAXIS.
Children and Young Peoples Services,Head of Education and Skills,Transport,230016,Contract Hire,05/01/2022,3952324-1224,740.00,EAST DURHAM TAXIS.
Children and Young Peoples Services,Head of Education and Skills,Transport,230016,Contract Hire,05/01/2022,3952324-1220,"2,392.00",EAST DURHAM TAXIS.
Children and Young Peoples Services,Head of Education and Skills,Transport,230008,Contract Hire,05/01/2022,3952324-1215,"2,016.00",EAST DURHAM TAXIS.
Children and Young Peoples Services,Head of Education and Skills,Transport,230008,Contract Hire,05/01/2022,3952324-1210,"1,833.00",EAST DURHAM TAXIS.
Children and Young Peoples Services,Head of Education and Skills,Transport,230008,Contract Hire,05/01/2022,3952324-1219,"1,534.00",EAST DURHAM TAXIS.
Children and Young Peoples Services,Head of Education and Skills,Transport,230008,Contract Hire,05/01/2022,3952324-1222,"2,457.00",EAST DURHAM TAXIS.
Children and Young Peoples Services,Head of Education and Skills,Transport,230008,Contract Hire,05/01/2022,3952324-1214,"2,444.00",EAST DURHAM TAXIS.
Children and Young Peoples Services,Head of Education and Skills,Transport,230008,Contract Hire,05/01/2022,3952324-1211,"1,742.00",EAST DURHAM TAXIS.
Children and Young Peoples Services,Head of Education and Skills,Transport,230008,Contract Hire,05/01/2022,3952324-1212,"2,054.00",EAST DURHAM TAXIS.
Adult and Health Services,Head of Adults,Transport,230005,Contract Hire,05/01/2022,3952324-1226,"2,128.00",EAST DURHAM TAXIS.
Adult and Health Services,Head of Adults,Transport,230005,Contract Hire,05/01/2022,3952324-1225,"1,278.00",EAST DURHAM TAXIS.
Regeneration Economy and Growth,Corporate Property and Land,Supplies and Services,304221,Equipment and Materials,05/01/2022,3952325-6299839,"1,314.00",EASTERN SHIRES PURCHASING ORGANISATION.
Regeneration Economy and Growth,Corporate Property and Land,Supplies and Services,304221,Equipment and Materials,05/01/2022,3952325-6315036,"1,071.00",EASTERN SHIRES PURCHASING ORGANISATION.
Regeneration Economy and Growth,Corporate Property and Land,Supplies and Services,304221,Equipment and Materials,05/01/2022,3952326-059-289948,695.00,EDMUNDSON ELECTRICAL LTD.
Regeneration Economy and Growth,Corporate Property and Land,Supplies and Services,304221,Equipment and Materials,05/01/2022,3952326-059-290084,773.81,EDMUNDSON ELECTRICAL LTD.
Children and Young Peoples Services,Head of Education and Skills,Transport,230008,Contract Hire,05/01/2022,3952328-ES4,"1,428.36",ELITE TAXIS.
Neighbourhoods and Climate Change,Technical Services CM0300,Construction work A908,908105,Construction work,05/01/2022,3952330-173121,"3,349.16",ESH CONSTRUCTION LTD FORMERLY LUMSDEN & CARROLL CONSTRUCTION LTD.
Children and Young Peoples Services,Head of Education and Skills,Transport,230009,Contract Hire,05/01/2022,3952336-1553,585.00,FMR SILVA PITA.
Children and Young Peoples Services,Head of Education and Skills,Transport,230009,Contract Hire,05/01/2022,3952336-1552,693.68,FMR SILVA PITA.
Children and Young Peoples Services,Head of Education and Skills,Transport,230008,Contract Hire,05/01/2022,3952336-1551,"1,104.00",FMR SILVA PITA.
Children and Young Peoples Services,Head of Education and Skills,Transport,230008,Contract Hire,05/01/2022,3952343-84,"1,599.00",GP TAXIS.
Neighbourhoods and Climate Change,Environmental Services,Transport,210057,Repair and Maintenance of Vehicles,05/01/2022,3952346-9002161956,560.47,HAKO MACHINES LTD.
Adult and Health Services,Public Health CC0450,Third Party Payments,460803,Contract Payments,05/01/2022,3952347-2510042187,"5,128.06",HARROGATE & DISTRICT NHS FOUNDATION TRUST.
Children and Young Peoples Services,Head of Education and Skills,Transport,230007,Contract Hire,05/01/2022,3952348-HT581,"1,680.00",HARRY`S TAXI`S.
Children and Young Peoples Services,Head of Education and Skills,Transport,230007,Contract Hire,05/01/2022,3952348-HT584,"1,521.60",HARRY`S TAXI`S.
Children and Young Peoples Services,Head of Education and Skills,Transport,230006,Contract Hire,05/01/2022,3952348-HT583,"1,920.00",HARRY`S TAXI`S.
Children and Young Peoples Services,Head of Education and Skills,Transport,230016,Contract Hire,05/01/2022,3952348-HT585,910.00,HARRY`S TAXI`S.
Children and Young Peoples Services,Head of Education and Skills,Transport,230008,Contract Hire,05/01/2022,3952348-HT582,"1,793.04",HARRY`S TAXI`S.
Neighbourhoods and Climate Change,Technical Services CM0300,Third Party Payments,430100,Rendered by Private Contractors,05/01/2022,3952350-3336,"4,488.00",HIGHWAY CONSTRUCTION SERVICES LTD.
Neighbourhoods and Climate Change,Environmental Services,Third Party Payments,430100,Rendered by Private Contractors,05/01/2022,3952351-9851,866.00,HILLCREST AUTO ELECTRICS.
Children and Young Peoples Services,Head of Education and Skills,Transport,230007,Contract Hire,05/01/2022,3952352-19718,602.52,HODGSONS COACH OPERATORS LTD.
Children and Young Peoples Services,Head of Education and Skills,Transport,230007,Contract Hire,05/01/2022,3952352-19702,589.32,HODGSONS COACH OPERATORS LTD.
Children and Young Peoples Services,Head of Education and Skills,Transport,230007,Contract Hire,05/01/2022,3952352-19707,718.44,HODGSONS COACH OPERATORS LTD.
Children and Young Peoples Services,Head of Education and Skills,Transport,230007,Contract Hire,05/01/2022,3952352-19696,868.56,HODGSONS COACH OPERATORS LTD.
Children and Young Peoples Services,Head of Education and Skills,Transport,230007,Contract Hire,05/01/2022,3952352-19714,"1,332.00",HODGSONS COACH OPERATORS LTD.
Children and Young Peoples Services,Head of Education and Skills,Transport,230007,Contract Hire,05/01/2022,3952352-19746,906.49,HODGSONS COACH OPERATORS LTD.
Children and Young Peoples Services,Head of Education and Skills,Transport,230007,Contract Hire,05/01/2022,3952352-19750,646.75,HODGSONS COACH OPERATORS LTD.
Children and Young Peoples Services,Head of Education and Skills,Transport,230007,Contract Hire,05/01/2022,3952352-19751,882.70,HODGSONS COACH OPERATORS LTD.
Children and Young Peoples Services,Head of Education and Skills,Transport,230007,Contract Hire,05/01/2022,3952352-19749,635.96,HODGSONS COACH OPERATORS LTD.
Children and Young Peoples Services,Head of Education and Skills,Transport,230007,Contract Hire,05/01/2022,3952352-19741-3042,"2,206.10",HODGSONS COACH OPERATORS LTD.
Children and Young Peoples Services,Head of Education and Skills,Transport,230007,Contract Hire,05/01/2022,3952352-19741-3044,"2,082.99",HODGSONS COACH OPERATORS LTD.
Children and Young Peoples Services,Head of Education and Skills,Transport,230007,Contract Hire,05/01/2022,3952352-19742,"2,599.09",HODGSONS COACH OPERATORS LTD.
Children and Young Peoples Services,Head of Education and Skills,Transport,230007,Contract Hire,05/01/2022,3952352-19743,"1,579.50",HODGSONS COACH OPERATORS LTD.
Children and Young Peoples Services,Head of Education and Skills,Transport,230007,Contract Hire,05/01/2022,3952352-19744,"3,073.59",HODGSONS COACH OPERATORS LTD.
Children and Young Peoples Services,Head of Education and Skills,Transport,230007,Contract Hire,05/01/2022,3952352-19745,"1,341.73",HODGSONS COACH OPERATORS LTD.
Children and Young Peoples Services,Head of Education and Skills,Transport,230007,Contract Hire,05/01/2022,3952352-19747,"1,218.49",HODGSONS COACH OPERATORS LTD.
Children and Young Peoples Services,Head of Education and Skills,Transport,230007,Contract Hire,05/01/2022,3952352-19748,"1,296.88",HODGSONS COACH OPERATORS LTD.
Children and Young Peoples Services,Head of Education and Skills,Transport,230007,Contract Hire,05/01/2022,3952352-19752,759.85,HODGSONS COACH OPERATORS LTD.
Children and Young Peoples Services,Head of Education and Skills,Transport,230007,Contract Hire,05/01/2022,3952352-19716,646.44,HODGSONS COACH OPERATORS LTD.
Children and Young Peoples Services,Head of Education and Skills,Transport,230031,Contract Hire,05/01/2022,3952352-19722,"1,876.00",HODGSONS COACH OPERATORS LTD.
Neighbourhoods and Climate Change,Environmental Services,Fees,901002,Professional fees,05/01/2022,3952354-9886,"1,063.00",HOWARTH LITCHFIELD PARTNERSHIP LTD.
Neighbourhoods and Climate Change,Environmental Services,Fees,901002,Professional fees,05/01/2022,3952354-9915,"1,063.00",HOWARTH LITCHFIELD PARTNERSHIP LTD.
Children and Young Peoples Services,Head of Education and Skills,Transport,230008,Contract Hire,05/01/2022,3952356-1025,"1,645.80",I & R EXECUTIVE TRAVEL.
Children and Young Peoples Services,Head of Education and Skills,Transport,230008,Contract Hire,05/01/2022,3952356-1026,"1,285.96",I & R EXECUTIVE TRAVEL.
Regeneration Economy and Growth,Corporate Property and Land,Third Party Payments,430100,Rendered by Private Contractors,05/01/2022,3952359-10944,"6,407.10",INGLEFORD SCAFFOLDING LTD.
Regeneration Economy and Growth,Corporate Property and Land,Third Party Payments,430100,Rendered by Private Contractors,05/01/2022,3952359-11065,540.00,INGLEFORD SCAFFOLDING LTD.
Regeneration Economy and Growth,Corporate Property and Land,Third Party Payments,430100,Rendered by Private Contractors,05/01/2022,3952359-11192,"4,565.90",INGLEFORD SCAFFOLDING LTD.
Regeneration Economy and Growth,Corporate Property and Land,Third Party Payments,430100,Rendered by Private Contractors,05/01/2022,3952360-11931,573.00,INGLEFORD SCAFFOLDING LTD.
Regeneration Economy and Growth,Corporate Property and Land,Third Party Payments,430100,Rendered by Private Contractors,05/01/2022,3952361-1335,"223,450.08",IVEGATE LTD.
Children and Young Peoples Services,Head of Education and Skills,Transport,230009,Contract Hire,05/01/2022,3952362-0836,780.00,JACKSON`S TAXI.
Children and Young Peoples Services,Head of Education and Skills,Transport,230008,Contract Hire,05/01/2022,3952362-0837,"1,361.76",JACKSON`S TAXI.
Children and Young Peoples Services,Head of Education and Skills,Transport,230008,Contract Hire,05/01/2022,3952362-0835,"1,658.80",JACKSON`S TAXI.
Children and Young Peoples Services,Head of Education and Skills,Transport,230008,Contract Hire,05/01/2022,3952362-0838,"1,398.02",JACKSON`S TAXI.
Adult and Health Services,Head of Adults,Transport,230005,Contract Hire,05/01/2022,3952362-0839,"2,385.00",JACKSON`S TAXI.
Regeneration Economy and Growth,Corporate Property and Land,Supplies and Services,384199,Miscellaneous Expenses,05/01/2022,3952369-0000083487,"1,700.00",JOHN WADE (HAULAGE) LTD.
Children and Young Peoples Services,Head of Education and Skills,Transport,230016,Contract Hire,05/01/2022,3952370-M01544,"1,806.35",JOVIAL PRIVATE HIRE.
Children and Young Peoples Services,Head of Education and Skills,Transport,230008,Contract Hire,05/01/2022,3952370-M00943,"1,159.40",JOVIAL PRIVATE HIRE.
Children and Young Peoples Services,Head of Education and Skills,Transport,230008,Contract Hire,05/01/2022,3952370-M01604,910.00,JOVIAL PRIVATE HIRE.
Children and Young Peoples Services,Head of Education and Skills,Transport,230008,Contract Hire,05/01/2022,3952370-M01743,606.71,JOVIAL PRIVATE HIRE.
Children and Young Peoples Services,Head of Education and Skills,Transport,230008,Contract Hire,05/01/2022,3952370-N03004,"1,838.06",JOVIAL PRIVATE HIRE.
Regeneration Economy and Growth,Corporate Property and Land,Third Party Payments,430100,Rendered by Private Contractors,05/01/2022,3952372-413-3,"1,372.50",JTL SCAFFOLDING LTD.
Children and Young Peoples Services,Head of Education and Skills,Transport,230012,Contract Hire,05/01/2022,3952373-1228,"2,262.00",K & R TAXIS (STANLEY).
Children and Young Peoples Services,Head of Education and Skills,Transport,230012,Contract Hire,05/01/2022,3952373-1231,"2,184.00",K & R TAXIS (STANLEY).
Children and Young Peoples Services,Head of Education and Skills,Transport,230008,Contract Hire,05/01/2022,3952373-1225,"2,028.00",K & R TAXIS (STANLEY).
Children and Young Peoples Services,Head of Education and Skills,Transport,230008,Contract Hire,05/01/2022,3952373-1226,"1,872.00",K & R TAXIS (STANLEY).
Children and Young Peoples Services,Head of Education and Skills,Transport,230008,Contract Hire,05/01/2022,3952373-1229,"2,070.90",K & R TAXIS (STANLEY).
Children and Young Peoples Services,Head of Education and Skills,Transport,230008,Contract Hire,05/01/2022,3952373-1230,"1,872.00",K & R TAXIS (STANLEY).
Children and Young Peoples Services,Head of Education and Skills,Transport,230008,Contract Hire,05/01/2022,3952373-1224,"2,184.00",K & R TAXIS (STANLEY).
Children and Young Peoples Services,Head of Education and Skills,Transport,230031,Contract Hire,05/01/2022,3952379-30238,"2,640.00",LEE`S COACHES LTD.
Regeneration Economy and Growth,Corporate Property and Land,Third Party Payments,430100,Rendered by Private Contractors,05/01/2022,3952383-65069,"1,311.00",MARIAN DOOR SERVICES.
Neighbourhoods and Climate Change,Technical Services CM0300,Third Party Payments,430101,Rendered by Private Contractors,05/01/2022,3952389-8303,"62,825.18",MILES MACADAM LTD.
Resources BK0010,Finance & Transactional Services,Supplies and Services,338066,Services,05/01/2022,3952404-91454888,"9,018.15",NEC SOFTWARE SOLUTIONS UK LTD.
Regeneration Economy and Growth,Development and Housing,Supplies and Services,336005,Advertising E336,05/01/2022,3952406-38736528,521.45,NEWSQUEST (YORKSHIRE & NORTH EAST) LTD.
Adult and Health Services,Public Health CC0450,Supplies and Services,384899,Miscellaneous Expenses,05/01/2022,3952408-7032600360,"10,000.00",NHS DDES CCG.
Children and Young Peoples Services,Head of Education and Skills,Transport,230007,Contract Hire,05/01/2022,3952411-INV7026,"2,197.00",NORTH EAST COACHWAYS LTD.
Children and Young Peoples Services,Head of Education and Skills,Transport,230007,Contract Hire,05/01/2022,3952411-INV7028,"1,560.00",NORTH EAST COACHWAYS LTD.
Children and Young Peoples Services,Head of Education and Skills,Transport,230007,Contract Hire,05/01/2022,3952411-INV7029,"3,874.00",NORTH EAST COACHWAYS LTD.
Children and Young Peoples Services,Head of Education and Skills,Transport,230007,Contract Hire,05/01/2022,3952411-INV7030,"1,625.00",NORTH EAST COACHWAYS LTD.
Children and Young Peoples Services,Head of Education and Skills,Transport,230007,Contract Hire,05/01/2022,3952411-INV7031,"1,742.00",NORTH EAST COACHWAYS LTD.
Children and Young Peoples Services,Head of Education and Skills,Transport,230007,Contract Hire,05/01/2022,3952411-INV7032,"1,807.00",NORTH EAST COACHWAYS LTD.
Children and Young Peoples Services,Head of Education and Skills,Transport,230031,Contract Hire,05/01/2022,3952411-INV-7033,"1,824.00",NORTH EAST COACHWAYS LTD.
Neighbourhoods and Climate Change,Environmental Services,Transport,210057,Repair and Maintenance of Vehicles,05/01/2022,3952412-21881529,725.63,NORTH EAST TRUCK & VAN LTD.
Regeneration Economy and Growth,Corporate Property and Land,Construction work A908,908105,Construction work,05/01/2022,3952414-DI20376016,"1,304.56",NORTHERN POWERGRID (NORTHEAST) LTD.
Regeneration Economy and Growth,Corporate Property and Land,Third Party Payments,430100,Rendered by Private Contractors,05/01/2022,3952416-11297-13,898.03,OPUS BUILDING SERVICES LTD.
Regeneration Economy and Growth,Corporate Property and Land,Third Party Payments,430100,Rendered by Private Contractors,05/01/2022,3952416-11297-16,"1,132.87",OPUS BUILDING SERVICES LTD.
Regeneration Economy and Growth,Corporate Property and Land,Third Party Payments,430100,Rendered by Private Contractors,05/01/2022,3952416-11297-17,"1,089.27",OPUS BUILDING SERVICES LTD.
Regeneration Economy and Growth,Corporate Property and Land,Third Party Payments,430100,Rendered by Private Contractors,05/01/2022,3952416-11297-18,"1,147.12",OPUS BUILDING SERVICES LTD.
Regeneration Economy and Growth,Corporate Property and Land,Third Party Payments,430100,Rendered by Private Contractors,05/01/2022,3952416-11297-19,"1,147.12",OPUS BUILDING SERVICES LTD.
Regeneration Economy and Growth,Corporate Property and Land,Third Party Payments,430100,Rendered by Private Contractors,05/01/2022,3952416-11297-26,"1,089.27",OPUS BUILDING SERVICES LTD.
Regeneration Economy and Growth,Corporate Property and Land,Third Party Payments,430100,Rendered by Private Contractors,05/01/2022,3952416-11297-27,528.69,OPUS BUILDING SERVICES LTD.
Regeneration Economy and Growth,Corporate Property and Land,Third Party Payments,430100,Rendered by Private Contractors,05/01/2022,3952416-11297-32,"1,142.62",OPUS BUILDING SERVICES LTD.
Regeneration Economy and Growth,Corporate Property and Land,Third Party Payments,430100,Rendered by Private Contractors,05/01/2022,3952417-G0728188,"1,252.60",ORBIS PROTECT LTD.
Children and Young Peoples Services,Head of Education and Skills,Transport,230008,Contract Hire,05/01/2022,3952422-MOO3171221,"1,284.26",PB PRIVATE HIRE.
Adult and Health Services,Head of Adults,Transport,230005,Contract Hire,05/01/2022,3952422-CLS087301221,715.00,PB PRIVATE HIRE.
Children and Young Peoples Services,Head of Education and Skills,Transport,230007,Contract Hire,05/01/2022,3952423-11212,"1,287.00",PBS TRAVEL LTD.
Children and Young Peoples Services,Head of Education and Skills,Transport,230007,Contract Hire,05/01/2022,3952423-11213,"1,430.00",PBS TRAVEL LTD.
Children and Young Peoples Services,Head of Education and Skills,Transport,230007,Contract Hire,05/01/2022,3952423-1121,"1,560.00",PBS TRAVEL LTD.
Children and Young Peoples Services,Head of Education and Skills,Transport,230034,Contract Hire,05/01/2022,3952426-2095-DEC21,979.50,PETER`S TAXIS.
Children and Young Peoples Services,Head of Education and Skills,Transport,230034,Contract Hire,05/01/2022,3952426-DEC21,650.00,PETER`S TAXIS.
Children and Young Peoples Services,Head of Education and Skills,Transport,230034,Contract Hire,05/01/2022,3952426-DEC212,520.00,PETER`S TAXIS.
Children and Young Peoples Services,Head of Education and Skills,Transport,230007,Contract Hire,05/01/2022,3952426-2088-DEC21,713.27,PETER`S TAXIS.
Children and Young Peoples Services,Head of Education and Skills,Transport,230006,Contract Hire,05/01/2022,3952426-DEC213,"1,000.00",PETER`S TAXIS.
Neighbourhoods and Climate Change,Environmental Services,Third Party Payments,430100,Rendered by Private Contractors,05/01/2022,3952430-TEE12008,574.00,PIRTEK CLEVELAND.
Regeneration Economy and Growth,Corporate Property and Land,Supplies and Services,304221,Equipment and Materials,05/01/2022,3952432-INV242611,"8,694.96",POINTER FIRE LTD.
Regeneration Economy and Growth,Culture Sport and Tourism,Fees,901002,Professional fees,05/01/2022,3952434-YR003871,"11,090.00",PURCELL ARCHITECTURE LTD.
Neighbourhoods and Climate Change,Environmental Services,Supplies and Services,338099,Services,05/01/2022,3952357-2954,"2,924.50",REDACTED - PAYMENT TO INDIVIDUAL
Regeneration Economy and Growth,Culture Sport and Tourism,Supplies and Services,384302,Miscellaneous Expenses,05/01/2022,3952275-BEC-DFC-4100745284-22122021,625.00,REDACTED - PAYMENT TO INDIVIDUAL
Children and Young Peoples Services,Head of Education and Skills,Transport,230034,Contract Hire,05/01/2022,3952461-084-2,989.40,REDACTED - PAYMENT TO INDIVIDUAL
Children and Young Peoples Services,Head of Education and Skills,Transport,230034,Contract Hire,05/01/2022,3952395-JK44411,"1,578.00",REDACTED - PAYMENT TO INDIVIDUAL
Children and Young Peoples Services,Head of Education and Skills,Transport,230034,Contract Hire,05/01/2022,3952308-SEDGEFIELD171221,756.00,REDACTED - PAYMENT TO INDIVIDUAL
Children and Young Peoples Services,Head of Education and Skills,Transport,230035,Contract Hire,05/01/2022,3952394-206,507.00,REDACTED - PAYMENT TO INDIVIDUAL
Children and Young Peoples Services,Head of Education and Skills,Transport,230035,Contract Hire,05/01/2022,3952308-WHIT171222,504.00,REDACTED - PAYMENT TO INDIVIDUAL
Children and Young Peoples Services,Head of Education and Skills,Transport,230035,Contract Hire,05/01/2022,3952382-249,"1,017.12",REDACTED - PAYMENT TO INDIVIDUAL
Children and Young Peoples Services,Head of Education and Skills,Transport,230013,Contract Hire,05/01/2022,3952377-003DEC21,832.00,REDACTED - PAYMENT TO INDIVIDUAL
Children and Young Peoples Services,Head of Education and Skills,Transport,230007,Contract Hire,05/01/2022,3952376-003,600.00,REDACTED - PAYMENT TO INDIVIDUAL
Children and Young Peoples Services,Head of Education and Skills,Transport,230007,Contract Hire,05/01/2022,3952397-2035,910.00,REDACTED - PAYMENT TO INDIVIDUAL
Children and Young Peoples Services,Head of Education and Skills,Transport,230007,Contract Hire,05/01/2022,3952384-INV12/202103,540.00,REDACTED - PAYMENT TO INDIVIDUAL
Children and Young Peoples Services,Head of Education and Skills,Transport,230007,Contract Hire,05/01/2022,3952496-015,691.34,REDACTED - PAYMENT TO INDIVIDUAL
Children and Young Peoples Services,Head of Education and Skills,Transport,230007,Contract Hire,05/01/2022,3952493-1284,791.70,REDACTED - PAYMENT TO INDIVIDUAL
Children and Young Peoples Services,Head of Education and Skills,Transport,230007,Contract Hire,05/01/2022,3952400-106,960.00,REDACTED - PAYMENT TO INDIVIDUAL
Children and Young Peoples Services,Head of Education and Skills,Transport,230007,Contract Hire,05/01/2022,3952365-INV3134,"1,690.00",REDACTED - PAYMENT TO INDIVIDUAL
Children and Young Peoples Services,Head of Education and Skills,Transport,230007,Contract Hire,05/01/2022,3952458-6658,"1,293.50",REDACTED - PAYMENT TO INDIVIDUAL
Children and Young Peoples Services,Head of Education and Skills,Transport,230007,Contract Hire,05/01/2022,3952458-6659,"3,647.80",REDACTED - PAYMENT TO INDIVIDUAL
Children and Young Peoples Services,Head of Education and Skills,Transport,230007,Contract Hire,05/01/2022,3952365-INV3136,"1,081.08",REDACTED - PAYMENT TO INDIVIDUAL
Children and Young Peoples Services,Head of Education and Skills,Transport,230003,Contract Hire,05/01/2022,3952467-6412SL,"1,417.50",REDACTED - PAYMENT TO INDIVIDUAL
Children and Young Peoples Services,Head of Education and Skills,Transport,230004,Contract Hire,05/01/2022,3952399-12-21,"1,740.00",REDACTED - PAYMENT TO INDIVIDUAL
Children and Young Peoples Services,Head of Education and Skills,Transport,230006,Contract Hire,05/01/2022,3952374-004DEC21,660.00,REDACTED - PAYMENT TO INDIVIDUAL
Children and Young Peoples Services,Head of Education and Skills,Transport,230006,Contract Hire,05/01/2022,3952375-CHES0002,600.00,REDACTED - PAYMENT TO INDIVIDUAL
Children and Young Peoples Services,Head of Education and Skills,Transport,230006,Contract Hire,05/01/2022,3952376-309,"1,246.00",REDACTED - PAYMENT TO INDIVIDUAL
Children and Young Peoples Services,Head of Education and Skills,Transport,230006,Contract Hire,05/01/2022,3952421-DEC21,"1,482.80",REDACTED - PAYMENT TO INDIVIDUAL
Children and Young Peoples Services,Head of Education and Skills,Transport,230006,Contract Hire,05/01/2022,3952427-0019,"2,138.82",REDACTED - PAYMENT TO INDIVIDUAL
Children and Young Peoples Services,Head of Education and Skills,Transport,230006,Contract Hire,05/01/2022,3952457-DEC21,780.00,REDACTED - PAYMENT TO INDIVIDUAL
Children and Young Peoples Services,Head of Education and Skills,Transport,230006,Contract Hire,05/01/2022,3952461-085,926.25,REDACTED - PAYMENT TO INDIVIDUAL
Children and Young Peoples Services,Head of Education and Skills,Transport,230006,Contract Hire,05/01/2022,3952467-5712BCDEC21,948.00,REDACTED - PAYMENT TO INDIVIDUAL
Children and Young Peoples Services,Head of Education and Skills,Transport,230006,Contract Hire,05/01/2022,3952476-0002307,"2,058.50",REDACTED - PAYMENT TO INDIVIDUAL
Children and Young Peoples Services,Head of Education and Skills,Transport,230006,Contract Hire,05/01/2022,3952341-TT-PCP2112,625.80,REDACTED - PAYMENT TO INDIVIDUAL
Children and Young Peoples Services,Head of Education and Skills,Transport,230006,Contract Hire,05/01/2022,3952394-209,630.19,REDACTED - PAYMENT TO INDIVIDUAL
Children and Young Peoples Services,Head of Education and Skills,Transport,230006,Contract Hire,05/01/2022,3952400-107,"1,300.00",REDACTED - PAYMENT TO INDIVIDUAL
Children and Young Peoples Services,Head of Education and Skills,Transport,230006,Contract Hire,05/01/2022,3952401-03,500.00,REDACTED - PAYMENT TO INDIVIDUAL
Children and Young Peoples Services,Head of Education and Skills,Transport,230006,Contract Hire,05/01/2022,3952376-002,"1,898.88",REDACTED - PAYMENT TO INDIVIDUAL
Children and Young Peoples Services,Head of Education and Skills,Transport,230006,Contract Hire,05/01/2022,3952420-DEC21,910.00,REDACTED - PAYMENT TO INDIVIDUAL
Children and Young Peoples Services,Head of Education and Skills,Transport,230006,Contract Hire,05/01/2022,3952476-0002305,680.00,REDACTED - PAYMENT TO INDIVIDUAL
Children and Young Peoples Services,Head of Education and Skills,Transport,230010,Contract Hire,05/01/2022,3952375-BRIDGE0002,"1,628.77",REDACTED - PAYMENT TO INDIVIDUAL
Children and Young Peoples Services,Head of Education and Skills,Transport,230010,Contract Hire,05/01/2022,3952402-4-B011,"2,363.05",REDACTED - PAYMENT TO INDIVIDUAL
Children and Young Peoples Services,Head of Education and Skills,Transport,230012,Contract Hire,05/01/2022,3952391-DEC21,"1,417.00",REDACTED - PAYMENT TO INDIVIDUAL
Children and Young Peoples Services,Head of Education and Skills,Transport,230012,Contract Hire,05/01/2022,3952392-E037-DECEMBER2021,"1,005.98",REDACTED - PAYMENT TO INDIVIDUAL
Children and Young Peoples Services,Head of Education and Skills,Transport,230016,Contract Hire,05/01/2022,3952459-3004,"1,742.00",REDACTED - PAYMENT TO INDIVIDUAL
Children and Young Peoples Services,Head of Education and Skills,Transport,230008,Contract Hire,05/01/2022,3952386-0080,"1,599.00",REDACTED - PAYMENT TO INDIVIDUAL
Children and Young Peoples Services,Head of Education and Skills,Transport,230008,Contract Hire,05/01/2022,3952390-KDC01122021,"1,177.54",REDACTED - PAYMENT TO INDIVIDUAL
Children and Young Peoples Services,Head of Education and Skills,Transport,230008,Contract Hire,05/01/2022,3952425-N097-DEC21,"2,323.48",REDACTED - PAYMENT TO INDIVIDUAL
Children and Young Peoples Services,Head of Education and Skills,Transport,230008,Contract Hire,05/01/2022,3952365-INV3133,"1,143.48",REDACTED - PAYMENT TO INDIVIDUAL
Children and Young Peoples Services,Head of Education and Skills,Transport,230008,Contract Hire,05/01/2022,3952368-17/12/21A,"1,680.00",REDACTED - PAYMENT TO INDIVIDUAL
Children and Young Peoples Services,Head of Education and Skills,Transport,230008,Contract Hire,05/01/2022,3952368-17/12/21B,"1,855.20",REDACTED - PAYMENT TO INDIVIDUAL
Children and Young Peoples Services,Head of Education and Skills,Transport,230008,Contract Hire,05/01/2022,3952368-17/12/21C,"1,680.00",REDACTED - PAYMENT TO INDIVIDUAL
Children and Young Peoples Services,Head of Education and Skills,Transport,230008,Contract Hire,05/01/2022,3952476-0002308,"3,315.00",REDACTED - PAYMENT TO INDIVIDUAL
Children and Young Peoples Services,Head of Education and Skills,Transport,230008,Contract Hire,05/01/2022,3952398-4A-N107,"1,262.00",REDACTED - PAYMENT TO INDIVIDUAL
Children and Young Peoples Services,Head of Education and Skills,Transport,230008,Contract Hire,05/01/2022,3952384-INV12202109,762.00,REDACTED - PAYMENT TO INDIVIDUAL
Children and Young Peoples Services,Head of Education and Skills,Transport,230008,Contract Hire,05/01/2022,3952388-A011/12,"2,990.00",REDACTED - PAYMENT TO INDIVIDUAL
Children and Young Peoples Services,Head of Education and Skills,Transport,230008,Contract Hire,05/01/2022,3952388-A033/12,500.00,REDACTED - PAYMENT TO INDIVIDUAL
Children and Young Peoples Services,Head of Education and Skills,Transport,230008,Contract Hire,05/01/2022,3952393-ND/11/21,"1,980.00",REDACTED - PAYMENT TO INDIVIDUAL
Children and Young Peoples Services,Head of Education and Skills,Transport,230008,Contract Hire,05/01/2022,3952397-2036,910.00,REDACTED - PAYMENT TO INDIVIDUAL
Children and Young Peoples Services,Head of Education and Skills,Transport,230008,Contract Hire,05/01/2022,3952386-0081,"1,428.00",REDACTED - PAYMENT TO INDIVIDUAL
Children and Young Peoples Services,Head of Education and Skills,Transport,230008,Contract Hire,05/01/2022,3952493-1283-31/12/21,"1,040.13",REDACTED - PAYMENT TO INDIVIDUAL
Children and Young Peoples Services,Head of Education and Skills,Transport,230008,Contract Hire,05/01/2022,3952365-INV3132,"1,128.36",REDACTED - PAYMENT TO INDIVIDUAL
Children and Young Peoples Services,Head of Education and Skills,Transport,230008,Contract Hire,05/01/2022,3952365-INV3135,"1,066.68",REDACTED - PAYMENT TO INDIVIDUAL
Children and Young Peoples Services,Head of Education and Skills,Transport,230008,Contract Hire,05/01/2022,3952382-251,780.00,REDACTED - PAYMENT TO INDIVIDUAL
Children and Young Peoples Services,Head of Education and Skills,Transport,230008,Contract Hire,05/01/2022,3952476-0002306,"1,140.00",REDACTED - PAYMENT TO INDIVIDUAL
Children and Young Peoples Services,Head of Education and Skills,Transport,230008,Contract Hire,05/01/2022,3952341-TT-OC2112,996.96,REDACTED - PAYMENT TO INDIVIDUAL
Children and Young Peoples Services,Head of Education and Skills,Transport,230008,Contract Hire,05/01/2022,3952341-TT-OM2112,"1,240.56",REDACTED - PAYMENT TO INDIVIDUAL
Children and Young Peoples Services,Head of Education and Skills,Transport,230008,Contract Hire,05/01/2022,3952421-DEC212,819.00,REDACTED - PAYMENT TO INDIVIDUAL
Children and Young Peoples Services,Head of Education and Skills,Transport,230008,Contract Hire,05/01/2022,3952421-DEC213,"1,937.00",REDACTED - PAYMENT TO INDIVIDUAL
Children and Young Peoples Services,Head of Education and Skills,Transport,230008,Contract Hire,05/01/2022,3952425-N053-DEC21,896.00,REDACTED - PAYMENT TO INDIVIDUAL
Children and Young Peoples Services,Head of Education and Skills,Transport,230008,Contract Hire,05/01/2022,3952398-33BDEC21,"1,103.31",REDACTED - PAYMENT TO INDIVIDUAL
Children and Young Peoples Services,Head of Education and Skills,Transport,230008,Contract Hire,05/01/2022,3952400-105,"1,040.00",REDACTED - PAYMENT TO INDIVIDUAL
Children and Young Peoples Services,Head of Education and Skills,Transport,230008,Contract Hire,05/01/2022,3952302-44,"1,040.00",REDACTED - PAYMENT TO INDIVIDUAL
Children and Young Peoples Services,Head of Education and Skills,Transport,230008,Contract Hire,05/01/2022,3952368-17/12/21H,"1,832.74",REDACTED - PAYMENT TO INDIVIDUAL
Children and Young Peoples Services,Head of Education and Skills,Transport,230008,Contract Hire,05/01/2022,3952384-INV12/202120,"2,704.00",REDACTED - PAYMENT TO INDIVIDUAL
Children and Young Peoples Services,Head of Education and Skills,Transport,230008,Contract Hire,05/01/2022,3952384-INV12/202126,"3,219.30",REDACTED - PAYMENT TO INDIVIDUAL
Children and Young Peoples Services,Head of Education and Skills,Transport,230008,Contract Hire,05/01/2022,3952489-W011-DEC21,"1,200.00",REDACTED - PAYMENT TO INDIVIDUAL
Children and Young Peoples Services,Head of Education and Skills,Transport,230031,Contract Hire,05/01/2022,3952294-47354,"1,100.00",REDACTED - PAYMENT TO INDIVIDUAL
Children and Young Peoples Services,Head of Education and Skills,Transport,230031,Contract Hire,05/01/2022,3952471-8023-NOV21,"2,150.00",REDACTED - PAYMENT TO INDIVIDUAL
Adult and Health Services,Head of Adults,Transport,230005,Contract Hire,05/01/2022,3952376-001-NCL001,"1,380.00",REDACTED - PAYMENT TO INDIVIDUAL
Adult and Health Services,Head of Adults,Transport,230005,Contract Hire,05/01/2022,3952467-6512AP,680.80,REDACTED - PAYMENT TO INDIVIDUAL
Adult and Health Services,Head of Adults,Transport,230005,Contract Hire,05/01/2022,3952308-THOR171221,549.16,REDACTED - PAYMENT TO INDIVIDUAL
Children and Young Peoples Services,Childrens Services Operational Support,Supplies and Services,338089,Services,05/01/2022,3952441-21/53/01,500.00,REDACTED - PAYMENT TO INDIVIDUAL
Regeneration Economy and Growth,Development and Housing,Fees,901003,Capital - Contract Supervision,05/01/2022,3952437-J/21/54/2/APK/TM,"1,200.00",RNJ PARTNERSHIP LLP.
Children and Young Peoples Services,Head of Education and Skills,Transport,230007,Contract Hire,05/01/2022,3952438-1882,738.00,RON`S TAXIS (FISHBURN).
Children and Young Peoples Services,Head of Education and Skills,Transport,230008,Contract Hire,05/01/2022,3952438-1883,"1,846.80",RON`S TAXIS (FISHBURN).
Adult and Health Services,Head of Adults,Transport,230005,Contract Hire,05/01/2022,3952438-1881,936.00,RON`S TAXIS (FISHBURN).
Children and Young Peoples Services,Head of Education and Skills,Transport,230007,Contract Hire,05/01/2022,3952443-SKS2122-21,600.00,SAMUEL KINGS SCHOOL.
Dedicated Schools Grant BG0015,DSG High Needs Block,Supplies and Services,384302,Miscellaneous Expenses,05/01/2022,3952444-SCSI182,"4,929.20",SEDGEFIELD COMMUNITY COLLEGE.
Children and Young Peoples Services,Head of Education and Skills,Transport,230007,Contract Hire,05/01/2022,3952446-300433,895.00,SHERBURN TAXIS LTD.
Children and Young Peoples Services,Head of Education and Skills,Transport,230007,Contract Hire,05/01/2022,3952447-211206,"1,235.00",SHOTTON PRIVATE HIRE.
Children and Young Peoples Services,Head of Education and Skills,Transport,230008,Contract Hire,05/01/2022,3952447-211205,"1,755.00",SHOTTON PRIVATE HIRE.
Children and Young Peoples Services,Head of Education and Skills,Transport,230008,Contract Hire,05/01/2022,3952447-211208,"1,257.60",SHOTTON PRIVATE HIRE.
Children and Young Peoples Services,Head of Education and Skills,Transport,230008,Contract Hire,05/01/2022,3952447-211201,"1,686.84",SHOTTON PRIVATE HIRE.
Children and Young Peoples Services,Head of Education and Skills,Transport,230008,Contract Hire,05/01/2022,3952447-211203,"1,524.72",SHOTTON PRIVATE HIRE.
Children and Young Peoples Services,Head of Education and Skills,Transport,230008,Contract Hire,05/01/2022,3952447-211207,"1,168.00",SHOTTON PRIVATE HIRE.
Neighbourhoods and Climate Change,Environmental Services,Transport,210057,Repair and Maintenance of Vehicles,05/01/2022,3952448-23132480,559.37,SIMON BAILES LTD.
Neighbourhoods and Climate Change,Environmental Services,Supplies and Services,304259,Equipment and Materials,05/01/2022,3952450-INV426085,915.00,SNOWBALLS LTD.
Regeneration Economy and Growth,Culture Sport and Tourism,Supplies and Services,304259,Equipment and Materials,05/01/2022,3952451-SI-21220268,525.00,SPORTS MAINTENANCE SERVICES LTD.
Regeneration Economy and Growth,Corporate Property and Land,Third Party Payments,430100,Rendered by Private Contractors,05/01/2022,3952452-7840,"1,560.00",ST ASTIER LTD.
Regeneration Economy and Growth,Corporate Property and Land,Third Party Payments,430100,Rendered by Private Contractors,05/01/2022,3952452-7841,"23,570.67",ST ASTIER LTD.
Regeneration Economy and Growth,Corporate Property and Land,Third Party Payments,430100,Rendered by Private Contractors,05/01/2022,3952452-7855,720.00,ST ASTIER LTD.
Regeneration Economy and Growth,Corporate Property and Land,Third Party Payments,430100,Rendered by Private Contractors,05/01/2022,3952452-7801,"9,551.55",ST ASTIER LTD.
Children and Young Peoples Services,Head of Education and Skills,Transport,230034,Contract Hire,05/01/2022,3952453-06705,"1,113.97",STANLEY TRAVEL (NORTH EAST) LTD.
Children and Young Peoples Services,Head of Education and Skills,Transport,230007,Contract Hire,05/01/2022,3952453-06713,540.00,STANLEY TRAVEL (NORTH EAST) LTD.
Children and Young Peoples Services,Head of Education and Skills,Transport,230009,Contract Hire,05/01/2022,3952453-06714,956.82,STANLEY TRAVEL (NORTH EAST) LTD.
Children and Young Peoples Services,Head of Education and Skills,Transport,230006,Contract Hire,05/01/2022,3952453-06703,648.70,STANLEY TRAVEL (NORTH EAST) LTD.
Children and Young Peoples Services,Head of Education and Skills,Transport,230010,Contract Hire,05/01/2022,3952453-06699,994.70,STANLEY TRAVEL (NORTH EAST) LTD.
Children and Young Peoples Services,Head of Education and Skills,Transport,230010,Contract Hire,05/01/2022,3952453-06700,645.08,STANLEY TRAVEL (NORTH EAST) LTD.
Children and Young Peoples Services,Head of Education and Skills,Transport,230012,Contract Hire,05/01/2022,3952453-06708,"1,123.72",STANLEY TRAVEL (NORTH EAST) LTD.
Children and Young Peoples Services,Head of Education and Skills,Transport,230016,Contract Hire,05/01/2022,3952453-06706,"1,096.00",STANLEY TRAVEL (NORTH EAST) LTD.
Children and Young Peoples Services,Head of Education and Skills,Transport,230008,Contract Hire,05/01/2022,3952453-06715,"1,612.00",STANLEY TRAVEL (NORTH EAST) LTD.
Children and Young Peoples Services,Head of Education and Skills,Transport,230008,Contract Hire,05/01/2022,3952453-06707,780.00,STANLEY TRAVEL (NORTH EAST) LTD.
Children and Young Peoples Services,Head of Education and Skills,Transport,230008,Contract Hire,05/01/2022,3952453-06712,931.06,STANLEY TRAVEL (NORTH EAST) LTD.
Children and Young Peoples Services,Head of Education and Skills,Transport,230008,Contract Hire,05/01/2022,3952453-06710,988.00,STANLEY TRAVEL (NORTH EAST) LTD.
Children and Young Peoples Services,Head of Education and Skills,Transport,230008,Contract Hire,05/01/2022,3952453-06709,"1,038.70",STANLEY TRAVEL (NORTH EAST) LTD.
Adult and Health Services,Head of Adults,Transport,230005,Contract Hire,05/01/2022,3952453-06704,560.56,STANLEY TRAVEL (NORTH EAST) LTD.
Neighbourhoods and Climate Change,Technical Services CM0300,Third Party Payments,430100,Rendered by Private Contractors,05/01/2022,3952455-17694,"2,604.00",STEADFAST SECURITY SOLUTIONS LTD.
Neighbourhoods and Climate Change,Technical Services CM0300,Third Party Payments,430100,Rendered by Private Contractors,05/01/2022,3952455-17285,"2,886.00",STEADFAST SECURITY SOLUTIONS LTD.
Neighbourhoods and Climate Change,Technical Services CM0300,Third Party Payments,430100,Rendered by Private Contractors,05/01/2022,3952455-17407,"1,512.00",STEADFAST SECURITY SOLUTIONS LTD.
Neighbourhoods and Climate Change,Technical Services CM0300,Third Party Payments,430100,Rendered by Private Contractors,05/01/2022,3952455-17486,"2,604.00",STEADFAST SECURITY SOLUTIONS LTD.
Neighbourhoods and Climate Change,Technical Services CM0300,Third Party Payments,430100,Rendered by Private Contractors,05/01/2022,3952455-17594,"2,520.00",STEADFAST SECURITY SOLUTIONS LTD.
Children and Young Peoples Services,Head of Education and Skills,Supplies and Services,336005,Advertising E336,05/01/2022,3952460-INV-5833,"3,062.00",STEVE DAVIDSON ADVERTISING LTD T/A SD ADVERTISING LTD.
Children and Young Peoples Services,Head of Education and Skills,Supplies and Services,336005,Advertising E336,05/01/2022,3952460-INV-5835,"3,800.00",STEVE DAVIDSON ADVERTISING LTD T/A SD ADVERTISING LTD.
Children and Young Peoples Services,Head of Education and Skills,Supplies and Services,336005,Advertising E336,05/01/2022,3952460-INV-5836,"4,999.00",STEVE DAVIDSON ADVERTISING LTD T/A SD ADVERTISING LTD.
Children and Young Peoples Services,Head of Education and Skills,Supplies and Services,336005,Advertising E336,05/01/2022,3952460-INV-5837,750.00,STEVE DAVIDSON ADVERTISING LTD T/A SD ADVERTISING LTD.
Children and Young Peoples Services,Childrens Services Operational Support,Supplies and Services,338089,Services,05/01/2022,3952463-INV001311,"1,850.00",STRENGTHENING PRACTICE.
Regeneration Economy and Growth,Corporate Property and Land,Third Party Payments,430100,Rendered by Private Contractors,05/01/2022,3952464-180651,"1,792.00",SUPATINT LTD T/A SUPATINT WINDOW FILMS & BLINDS.
Regeneration Economy and Growth,Corporate Property and Land,Third Party Payments,430100,Rendered by Private Contractors,05/01/2022,3952464-180663,"1,187.00",SUPATINT LTD T/A SUPATINT WINDOW FILMS & BLINDS.
Regeneration Economy and Growth,Corporate Property and Land,Supplies and Services,304221,Equipment and Materials,05/01/2022,3952466-JE022141TLNB,"2,300.00",T MANNERS & SONS LTD.
Regeneration Economy and Growth,Corporate Property and Land,Supplies and Services,304221,Equipment and Materials,05/01/2022,3952466-JE022611TLNB,"1,540.00",T MANNERS & SONS LTD.
Regeneration Economy and Growth,Corporate Property and Land,Supplies and Services,304221,Equipment and Materials,05/01/2022,3952466-JE022481TLNB,"3,485.00",T MANNERS & SONS LTD.
Regeneration Economy and Growth,Corporate Property and Land,Supplies and Services,304221,Equipment and Materials,05/01/2022,3952466-JE022681TLNB,685.00,T MANNERS & SONS LTD.
Regeneration Economy and Growth,Corporate Property and Land,Supplies and Services,304221,Equipment and Materials,05/01/2022,3952466-JE022771TLNB,555.00,T MANNERS & SONS LTD.
Children and Young Peoples Services,Head of Education and Skills,Transport,230006,Contract Hire,05/01/2022,3952469-DCC/2021/60-3,501.76,TAYLOR`S TAXIS.
Children and Young Peoples Services,Head of Education and Skills,Transport,230016,Contract Hire,05/01/2022,3952469-DCC/2021/60-1,944.00,TAYLOR`S TAXIS.
Children and Young Peoples Services,Head of Education and Skills,Transport,230008,Contract Hire,05/01/2022,3952469-DCC/2021/59,"1,388.40",TAYLOR`S TAXIS.
Children and Young Peoples Services,Head of Education and Skills,Transport,230008,Contract Hire,05/01/2022,3952469-DCC/2021/58,"1,970.28",TAYLOR`S TAXIS.
Regeneration Economy and Growth,Culture Sport and Tourism,Supplies and Services,328041,Clothing uniforms and laundry E328,05/01/2022,3952473-NSIN00067553,832.63,THOMAS OWEN & SONS (NEWCASTLE) LTD.
Neighbourhoods and Climate Change,Environmental Services,Supplies and Services,328041,Clothing uniforms and laundry E328,05/01/2022,3952473-NSIN00067613,636.50,THOMAS OWEN & SONS (NEWCASTLE) LTD.
Regeneration Economy and Growth,Development and Housing,Construction work A908,908105,Construction work,05/01/2022,3952475-SPN-000355,"713,117.46",TOLENT LIVING LTD.
Resources BK0010,Digital and Customer Services,Supplies and Services,342051,Computers and Communications,05/01/2022,3952480-INV-04065-X4F0T4,"6,720.00",TRANSOFT SOLUTIONS (UK) LTD.
Children and Young Peoples Services,Head of Education and Skills,Transport,230034,Contract Hire,05/01/2022,3952481-SH00003,"1,006.80",TRAVEL 6.
Children and Young Peoples Services,Head of Education and Skills,Transport,230010,Contract Hire,05/01/2022,3952481-WL20026,913.24,TRAVEL 6.
Children and Young Peoples Services,Head of Childrens Social Care,Supplies and Services,384500,Miscellaneous Expenses,05/01/2022,3952482-SL-3678,"2,376.30",TREE TOPS OCCUPATIONAL THERAPY LTD.
Neighbourhoods and Climate Change,Technical Services CM0300,Supplies and Services,304221,Equipment and Materials,05/01/2022,3952484-228955,864.28,TYNEDALE ROADSTONE LTD.
Neighbourhoods and Climate Change,Technical Services CM0300,Supplies and Services,304221,Equipment and Materials,05/01/2022,3952484-228956,"1,082.08",TYNEDALE ROADSTONE LTD.
Neighbourhoods and Climate Change,Technical Services CM0300,Supplies and Services,304221,Equipment and Materials,05/01/2022,3952484-228958,"1,724.60",TYNEDALE ROADSTONE LTD.
Neighbourhoods and Climate Change,Technical Services CM0300,Supplies and Services,304221,Equipment and Materials,05/01/2022,3952484-229068,839.33,TYNEDALE ROADSTONE LTD.
Neighbourhoods and Climate Change,Technical Services CM0300,Supplies and Services,304221,Equipment and Materials,05/01/2022,3952484-229147,853.19,TYNEDALE ROADSTONE LTD.
Neighbourhoods and Climate Change,Technical Services CM0300,Supplies and Services,304221,Equipment and Materials,05/01/2022,3952484-229151,621.68,TYNEDALE ROADSTONE LTD.
Neighbourhoods and Climate Change,Technical Services CM0300,Supplies and Services,304221,Equipment and Materials,05/01/2022,3952484-229152,582.92,TYNEDALE ROADSTONE LTD.
Neighbourhoods and Climate Change,Technical Services CM0300,Supplies and Services,304221,Equipment and Materials,05/01/2022,3952484-229221,735.78,TYNEDALE ROADSTONE LTD.
Neighbourhoods and Climate Change,Technical Services CM0300,Supplies and Services,304221,Equipment and Materials,05/01/2022,3952484-229222,608.66,TYNEDALE ROADSTONE LTD.
Neighbourhoods and Climate Change,Technical Services CM0300,Supplies and Services,304221,Equipment and Materials,05/01/2022,3952484-229271,"1,139.11",TYNEDALE ROADSTONE LTD.
Neighbourhoods and Climate Change,Technical Services CM0300,Supplies and Services,304221,Equipment and Materials,05/01/2022,3952484-229352,811.61,TYNEDALE ROADSTONE LTD.
Neighbourhoods and Climate Change,Technical Services CM0300,Supplies and Services,304221,Equipment and Materials,05/01/2022,3952484-229357,862.10,TYNEDALE ROADSTONE LTD.
Regeneration Economy and Growth,Business Durham CL0850,Supplies and Services,338066,Services,05/01/2022,3952486-INV-14240,"39,242.42",UMI COMMERCIAL LTD.
Children and Young Peoples Services,Head of Education and Skills,Transport,230008,Contract Hire,05/01/2022,3952492-0003199,"1,514.40",WATSON OF SPENNYMOOR.
Children and Young Peoples Services,Head of Education and Skills,Transport,230008,Contract Hire,05/01/2022,3952492-0003200,"1,324.80",WATSON OF SPENNYMOOR.
Children and Young Peoples Services,Head of Education and Skills,Transport,230031,Contract Hire,05/01/2022,3952494-17144,"3,645.00",WEARDALE MOTOR SERVICES LTD.
Children and Young Peoples Services,Head of Education and Skills,Transport,230007,Contract Hire,05/01/2022,3952495-7549,805.50,WEARDALE PRIVATE HIRE.
Children and Young Peoples Services,Head of Education and Skills,Transport,230007,Contract Hire,05/01/2022,3952495-7547,"1,267.50",WEARDALE PRIVATE HIRE.
Children and Young Peoples Services,Head of Education and Skills,Transport,230007,Contract Hire,05/01/2022,3952495-7548,"1,363.83",WEARDALE PRIVATE HIRE.
Children and Young Peoples Services,Head of Education and Skills,Transport,230004,Contract Hire,05/01/2022,3952495-7550,773.50,WEARDALE PRIVATE HIRE.
Children and Young Peoples Services,Head of Education and Skills,Transport,230004,Contract Hire,05/01/2022,3952495-7552,663.00,WEARDALE PRIVATE HIRE.
Children and Young Peoples Services,Head of Education and Skills,Transport,230004,Contract Hire,05/01/2022,3952495-7551,546.00,WEARDALE PRIVATE HIRE.
Children and Young Peoples Services,Head of Education and Skills,Transport,230010,Contract Hire,05/01/2022,3952495-7554,"3,198.00",WEARDALE PRIVATE HIRE.
Children and Young Peoples Services,Head of Education and Skills,Transport,230008,Contract Hire,05/01/2022,3952495-7555,"2,090.40",WEARDALE PRIVATE HIRE.
Children and Young Peoples Services,Head of Education and Skills,Transport,230008,Contract Hire,05/01/2022,3952495-7556,"2,370.00",WEARDALE PRIVATE HIRE.
Neighbourhoods and Climate Change,Technical Services CM0300,Third Party Payments,430100,Rendered by Private Contractors,05/01/2022,3952500-145455384,"84,758.00",ZG LIGHTING (UK) LTD.
Neighbourhoods and Climate Change,Technical Services CM0300,Stock A926,926900,Stock in hand-Inventory system,05/01/2022,3952500-145454900,"9,552.00",ZG LIGHTING (UK) LTD.
Neighbourhoods and Climate Change,Technical Services CM0300,Stock A926,926900,Stock in hand-Inventory system,05/01/2022,3952500-145454901,623.42,ZG LIGHTING (UK) LTD.
Neighbourhoods and Climate Change,Technical Services CM0300,Stock A926,926900,Stock in hand-Inventory system,05/01/2022,3952500-145454902,"1,157.78",ZG LIGHTING (UK) LTD.
Neighbourhoods and Climate Change,Technical Services CM0300,Stock A926,926900,Stock in hand-Inventory system,05/01/2022,3952500-145454906,648.00,ZG LIGHTING (UK) LTD.
Neighbourhoods and Climate Change,Technical Services CM0300,Stock A926,926900,Stock in hand-Inventory system,05/01/2022,3952500-145455382,"18,195.18",ZG LIGHTING (UK) LTD.
Neighbourhoods and Climate Change,Technical Services CM0300,Stock A926,926900,Stock in hand-Inventory system,05/01/2022,3952500-145455383,"7,082.40",ZG LIGHTING (UK) LTD.
Neighbourhoods and Climate Change,Technical Services CM0300,Stock A926,926900,Stock in hand-Inventory system,05/01/2022,3952500-145455385,"57,918.54",ZG LIGHTING (UK) LTD.
Resources BK0010,Finance & Transactional Services,Supplies and Services,342051,Computers and Communications,05/01/2022,3952502-1481655,"2,128.00",ZOHO CORPORATION PRIVATE LTD.
Neighbourhoods and Climate Change,Technical Services CM0300,Stock A926,926900,Stock in hand-Inventory system,06/01/2022,3952503-276502,"1,514.55",1ST COVERALL COMPANY LTD.
Adult and Health Services,Public Health CC0450,Third Party Payments,460803,Contract Payments,06/01/2022,3952505-INV-1317,"124,855.00",ABL HEALTH LTD.
Regeneration Economy and Growth,Development and Housing,Supplies and Services,384700,Miscellaneous Expenses,06/01/2022,3952509-RED-01-2022-004,597.00,AMANDA TILNEY (CHILDMINDER).
Regeneration Economy and Growth,Corporate Property and Land,Supplies and Services,304221,Equipment and Materials,06/01/2022,3952510-SI19227,"5,900.00",AMBIC LTD.
Neighbourhoods and Climate Change,Environmental Services,Supplies and Services,328041,Clothing uniforms and laundry E328,06/01/2022,3952518-942737020,"1,083.60",ARCO LTD.
Non-Service Specific,Non Service Specific-Financing,Long Term Debtors,924001,Car loans,06/01/2022,3952519-118952,543.00,ARRIVA DURHAM COUNTY LTD.
Children and Young Peoples Services,Central Charges (CYPS),Supplies and Services,384197,Miscellaneous Expenses,06/01/2022,3952535-A0028087,728.91,BOX-IT NORTH.
Regeneration Economy and Growth,Culture Sport and Tourism,Premises,145023,Cleaning and Domestic Supplies,06/01/2022,3952538-22SI2276941,"1,255.58",BRENNTAG UK LTD.
Children and Young Peoples Services,Head of Education and Skills,Transport,230008,Contract Hire,06/01/2022,3952539-BZ00386,"1,131.26",BREZ`S TAXIS.
Children and Young Peoples Services,Head of Education and Skills,Transport,230008,Contract Hire,06/01/2022,3952539-BZ00487,741.00,BREZ`S TAXIS.
Neighbourhoods and Climate Change,Environmental Services,Third Party Payments,430100,Rendered by Private Contractors,06/01/2022,3952544-215IN040122-165DCW,600.00,REDACTED - PAYMENT TO INDIVIDUAL
Children and Young Peoples Services,Head of Education and Skills,Transport,230034,Contract Hire,06/01/2022,3952546-DEC21,"1,417.00",CARR`S CARS (TAXIS).
Regeneration Economy and Growth,Corporate Property and Land,Supplies and Services,304083,Equipment and Materials,06/01/2022,3952547-8913,"3,761.00",CATHEDRAL LOCK & SAFE SERVICES LTD.
Children and Young Peoples Services,Head of Education and Skills,Transport,230035,Contract Hire,06/01/2022,3952548-02-DEC21,891.00,CHAPMAN TRAVEL.
Neighbourhoods and Climate Change,Environmental Services,Supplies and Services,338066,Services,06/01/2022,3952551-BURSARY-DEC2021,577.20,REDACTED - PAYMENT TO INDIVIDUAL
Adult and Health Services,Head of Adults,Supplies and Services,304259,Equipment and Materials,06/01/2022,3952555-CN30144254,"1,077.96",CITRON HYGIENE UK LTD.
Adult and Health Services,Head of Adults,Supplies and Services,304259,Equipment and Materials,06/01/2022,3952555-CN30144497,639.60,CITRON HYGIENE UK LTD.
Resources BK0010,Finance & Transactional Services,Supplies and Services,304040,Equipment and Materials,06/01/2022,3952556-C/RB232679,519.86,CIVICA UK LTD.
Children and Young Peoples Services,Head of Childrens Social Care,Supplies and Services,364359,Grants to Voluntary Organisations,06/01/2022,3952557-JANUARY2022,584.20,CLEVER CLOGS DAY NURSERY (DURHAM) LTD.
Children and Young Peoples Services,Head of Education and Skills,Supplies and Services,338094,Services,06/01/2022,3952560-707,615.00,CORNERSTONES CENTRE FOR THE COMMUNITY.
Adult and Health Services,Head of Adults,Third Party Payments,470101,Purchase of Care,06/01/2022,3952561-010,"1,396.00",COUNT CARE SERVICES LTD.
Children and Young Peoples Services,Head of Early Help Inclusion & Vulnerable Children.,Supplies and Services,384700,Miscellaneous Expenses,06/01/2022,3952562-WSFS2002,"2,489.00",COUNTY DURHAM FURNITURE HELP SCHEME (CDFHS).
Children and Young Peoples Services,Head of Education and Skills,Transport,230007,Contract Hire,06/01/2022,3952565-111949,"2,596.88",CROFT BUSINESS SERVICES LTD T/A CROFT TRAVEL.
Children and Young Peoples Services,Head of Education and Skills,Transport,230006,Contract Hire,06/01/2022,3952565-111955,"1,321.74",CROFT BUSINESS SERVICES LTD T/A CROFT TRAVEL.
Children and Young Peoples Services,Head of Education and Skills,Transport,230016,Contract Hire,06/01/2022,3952565-111959,"1,418.88",CROFT BUSINESS SERVICES LTD T/A CROFT TRAVEL.
Children and Young Peoples Services,Head of Education and Skills,Transport,230008,Contract Hire,06/01/2022,3952565-111961,"1,761.12",CROFT BUSINESS SERVICES LTD T/A CROFT TRAVEL.
Children and Young Peoples Services,Head of Education and Skills,Transport,230008,Contract Hire,06/01/2022,3952565-111962,"1,809.60",CROFT BUSINESS SERVICES LTD T/A CROFT TRAVEL.
Children and Young Peoples Services,Head of Education and Skills,Transport,230008,Contract Hire,06/01/2022,3952565-111967,"1,320.00",CROFT BUSINESS SERVICES LTD T/A CROFT TRAVEL.
Children and Young Peoples Services,Head of Education and Skills,Transport,230008,Contract Hire,06/01/2022,3952565-111965,"1,110.00",CROFT BUSINESS SERVICES LTD T/A CROFT TRAVEL.
Children and Young Peoples Services,Head of Education and Skills,Transport,230008,Contract Hire,06/01/2022,3952567-DI202112,"1,200.00",D&I TAXIS.
Children and Young Peoples Services,Head of Education and Skills,Transport,230008,Contract Hire,06/01/2022,3952569-1756,960.00,DA TAXIS.
Children and Young Peoples Services,Head of Education and Skills,Transport,230008,Contract Hire,06/01/2022,3952569-1757,"1,282.32",DA TAXIS.
Children and Young Peoples Services,Head of Education and Skills,Transport,230008,Contract Hire,06/01/2022,3952569-1758,"1,320.00",DA TAXIS.
Children and Young Peoples Services,Head of Education and Skills,Transport,230006,Contract Hire,06/01/2022,3952570-513,525.00,DA TRAVEL.
Children and Young Peoples Services,Head of Education and Skills,Transport,230006,Contract Hire,06/01/2022,3952570-514,840.00,DA TRAVEL.
Children and Young Peoples Services,Head of Education and Skills,Transport,230008,Contract Hire,06/01/2022,3952570-515,859.08,DA TRAVEL.
Children and Young Peoples Services,Head of Education and Skills,Transport,230008,Contract Hire,06/01/2022,3952570-511,"1,666.34",DA TRAVEL.
Children and Young Peoples Services,Head of Education and Skills,Transport,230008,Contract Hire,06/01/2022,3952570-512,"1,105.00",DA TRAVEL.
Regeneration Economy and Growth,Development and Housing,Supplies and Services,384700,Miscellaneous Expenses,06/01/2022,3952572-RED-01-2022-002,750.00,DANNY HART`S DESCEND BIKE PARK.
Regeneration Economy and Growth,Corporate Property and Land,Third Party Payments,430100,Rendered by Private Contractors,06/01/2022,3952568-N525083,710.00,D-DRILL (MASTER DRILLERS) LTD.
Neighbourhoods and Climate Change,Technical Services CM0300,Construction work A908,908105,Construction work,06/01/2022,3952576-37911,"16,520.00",DESIGN X PRESS LTD.
Dedicated Schools Grant BG0015,DSG High Needs Block,Supplies and Services,384199,Miscellaneous Expenses,06/01/2022,3952584-148,"1,487.50",REDACTED - PAYMENT TO INDIVIDUAL
Dedicated Schools Grant BG0015,DSG High Needs Block,Supplies and Services,384199,Miscellaneous Expenses,06/01/2022,3952584-149,552.50,REDACTED - PAYMENT TO INDIVIDUAL
Neighbourhoods and Climate Change,Environmental Services,Transport,230005,Contract Hire,06/01/2022,3952586-8182216,516.35,ENTERPRISE FLEX-E-RENT T/A BURNT TREE GROUP LTD.
Children and Young Peoples Services,Head of Education and Skills,Transport,230008,Contract Hire,06/01/2022,3952590-102691,"2,990.00",G & P JOHNSON LTD T/A NIGHTINGALE COACHES.
Children and Young Peoples Services,Head of Education and Skills,Transport,230008,Contract Hire,06/01/2022,3952590-102690,"2,207.00",G & P JOHNSON LTD T/A NIGHTINGALE COACHES.
Neighbourhoods and Climate Change,Environmental Services,Supplies and Services,304252,Equipment and Materials,06/01/2022,3952593-I271564,531.00,GEMCO SERVICE LTD.
Neighbourhoods and Climate Change,Environmental Services,Supplies and Services,304259,Equipment and Materials,06/01/2022,3952604-2480888,"1,226.00",HILLS NUMBERPLATES LTD.
Dedicated Schools Grant BG0015,DSG High Needs Block,Central Support and Other Recharges,689996,Unclassified E690,06/01/2022,3952605-CAS-01-2022-002,"117,942.00",HOPE WOOD ACADEMY.
Children and Young Peoples Services,Head of Education and Skills,Transport,230035,Contract Hire,06/01/2022,3952606-5094,516.84,HORNDALE TAXIS LTD.
Neighbourhoods and Climate Change,Environmental Services,Supplies and Services,384199,Miscellaneous Expenses,06/01/2022,3952609-863/DUCC3949,"9,155.00",IMAGEMAKERS DESIGN & CONSULTANCY LTD.
Neighbourhoods and Climate Change,Environmental Services,Supplies and Services,338066,Services,06/01/2022,3952610-BURSARY-DEC2021,726.28,IMOGEN COVERDALE.
Regeneration Economy and Growth,Corporate Property and Land,Supplies and Services,384199,Miscellaneous Expenses,06/01/2022,3952619-0000083288A,"2,400.00",JOHN WADE (HAULAGE) LTD.
Children and Young Peoples Services,Head of Education and Skills,Transport,230008,Contract Hire,06/01/2022,3952622-1227,"3,179.00",K & R TAXIS (STANLEY).
Regeneration Economy and Growth,Culture Sport and Tourism,Supplies and Services,324117,Provisions E324,06/01/2022,3952631-220189,543.31,MARK TONEY & CO LTD.
Children and Young Peoples Services,Head of Education and Skills,Supplies and Services,384199,Miscellaneous Expenses,06/01/2022,3952636-INV-2805,"1,375.00",MID NITE EXPRESS.
Regeneration Economy and Growth,Development and Housing,Fees,901002,Professional fees,06/01/2022,3952649-6045,"4,882.50",NAPPER ARCHITECTS LTD.
Regeneration Economy and Growth,Development and Housing,Fees,901002,Professional fees,06/01/2022,3952649-6079,"3,105.00",NAPPER ARCHITECTS LTD.
Resources BK0010,Finance & Transactional Services,Supplies and Services,338066,Services,06/01/2022,3952652-91455559,"7,920.75",NEC SOFTWARE SOLUTIONS UK LTD.
Regeneration Economy and Growth,Culture Sport and Tourism,Supplies and Services,384199,Miscellaneous Expenses,06/01/2022,3952689-NM34433,"24,608.00",NEW MIND INTERNET CONSULTANCY LTD T/A SIMPLEVIEW EUROPE.
Regeneration Economy and Growth,Communications Management,Supplies and Services,336005,Advertising E336,06/01/2022,3952653-38788674,"4,900.00",NEWSQUEST (YORKSHIRE & NORTH EAST) LTD.
Regeneration Economy and Growth,Communications Management,Supplies and Services,336005,Advertising E336,06/01/2022,3952653-38671876,950.00,NEWSQUEST (YORKSHIRE & NORTH EAST) LTD.
Regeneration Economy and Growth,Culture Sport and Tourism,Supplies and Services,338047,Services,06/01/2022,3952655-HMD60,"1,000.00",NEWTOWN ARTIST MANAGEMENT LTD.
Regeneration Economy and Growth,REG - Central Costs,Construction work A908,908105,Construction work,06/01/2022,3952658-721449,565.00,NORTHERN TOOLS & ACCESSORIES.
Neighbourhoods and Climate Change,Environmental Services,Transport,230005,Contract Hire,06/01/2022,3952659-SL07007055INV,502.04,NORTHGATE VEHICLE HIRE LTD.
Neighbourhoods and Climate Change,Environmental Services,Transport,230005,Contract Hire,06/01/2022,3952659-SL07011613INV,"1,052.24",NORTHGATE VEHICLE HIRE LTD.
Neighbourhoods and Climate Change,Environmental Services,Transport,230005,Contract Hire,06/01/2022,3952659-SL07011610INV,"1,052.24",NORTHGATE VEHICLE HIRE LTD.
Neighbourhoods and Climate Change,Environmental Services,Transport,230005,Contract Hire,06/01/2022,3952659-SL06832593INV,563.08,NORTHGATE VEHICLE HIRE LTD.
Neighbourhoods and Climate Change,Environmental Services,Transport,230005,Contract Hire,06/01/2022,3952659-SL06873264INV,540.40,NORTHGATE VEHICLE HIRE LTD.
Neighbourhoods and Climate Change,Environmental Services,Transport,230005,Contract Hire,06/01/2022,3952659-SL06913263INV,540.40,NORTHGATE VEHICLE HIRE LTD.
Neighbourhoods and Climate Change,Environmental Services,Transport,230005,Contract Hire,06/01/2022,3952659-SL06953625INV,540.40,NORTHGATE VEHICLE HIRE LTD.
Regeneration Economy and Growth,Culture Sport and Tourism,Supplies and Services,384199,Miscellaneous Expenses,06/01/2022,3952660-00018952,674.40,NSL LTD.
Adult and Health Services,Commissioning inc Supporting People,Supplies and Services,352001,Conference Expenses,06/01/2022,3952661-2932,700.00,NURSE TRAINING 2 CARE (UK) LTD.
Adult and Health Services,Commissioning inc Supporting People,Supplies and Services,352001,Conference Expenses,06/01/2022,3952661-2933,700.00,NURSE TRAINING 2 CARE (UK) LTD.
Adult and Health Services,Commissioning inc Supporting People,Supplies and Services,352001,Conference Expenses,06/01/2022,3952661-2934,700.00,NURSE TRAINING 2 CARE (UK) LTD.
Adult and Health Services,Commissioning inc Supporting People,Supplies and Services,352001,Conference Expenses,06/01/2022,3952661-2935,700.00,NURSE TRAINING 2 CARE (UK) LTD.
Children and Young Peoples Services,Head of Education and Skills,Construction work A908,908105,Construction work,06/01/2022,3952669-900947171,"22,847.75",PORTAKABIN LTD.
Adult and Health Services,Public Health CC0450,Supplies and Services,304259,Equipment and Materials,06/01/2022,3952669-900945771,688.98,PORTAKABIN LTD.
Resources BK0010,Corporate Finance & Commercial Services,Supplies and Services,342051,Computers and Communications,06/01/2022,3952671-1355711094,"3,000.00",PRICEWATERHOUSECOOPERS.
Children and Young Peoples Services,Head of Education and Skills,Transport,230034,Contract Hire,06/01/2022,3952543-BIL0260,"1,560.00",REDACTED - PAYMENT TO INDIVIDUAL
Children and Young Peoples Services,Head of Education and Skills,Transport,230034,Contract Hire,06/01/2022,3952630-339-13/12/21,800.00,REDACTED - PAYMENT TO INDIVIDUAL
Children and Young Peoples Services,Head of Education and Skills,Transport,230034,Contract Hire,06/01/2022,3952639-246,"1,070.00",REDACTED - PAYMENT TO INDIVIDUAL
Children and Young Peoples Services,Head of Education and Skills,Transport,230034,Contract Hire,06/01/2022,3952630-337-DEC21,800.00,REDACTED - PAYMENT TO INDIVIDUAL
Children and Young Peoples Services,Head of Education and Skills,Transport,230007,Contract Hire,06/01/2022,3952608-4DEC212,668.20,REDACTED - PAYMENT TO INDIVIDUAL
Children and Young Peoples Services,Head of Education and Skills,Transport,230007,Contract Hire,06/01/2022,3952665-SC-108-DEC21,"1,040.00",REDACTED - PAYMENT TO INDIVIDUAL
Children and Young Peoples Services,Head of Education and Skills,Transport,230009,Contract Hire,06/01/2022,3952608-4DEC213,596.00,REDACTED - PAYMENT TO INDIVIDUAL
Children and Young Peoples Services,Head of Education and Skills,Transport,230009,Contract Hire,06/01/2022,3952512-2DEC21,650.00,REDACTED - PAYMENT TO INDIVIDUAL
Children and Young Peoples Services,Head of Education and Skills,Transport,230009,Contract Hire,06/01/2022,3952712-4-DEC21,637.00,REDACTED - PAYMENT TO INDIVIDUAL
Children and Young Peoples Services,Head of Education and Skills,Transport,230006,Contract Hire,06/01/2022,3952665-SC-107-DEC21,"1,105.00",REDACTED - PAYMENT TO INDIVIDUAL
Children and Young Peoples Services,Head of Education and Skills,Transport,230006,Contract Hire,06/01/2022,3952608-4DEC21,709.79,REDACTED - PAYMENT TO INDIVIDUAL
Children and Young Peoples Services,Head of Education and Skills,Transport,230006,Contract Hire,06/01/2022,3952594-10C,"1,711.00",REDACTED - PAYMENT TO INDIVIDUAL
Children and Young Peoples Services,Head of Education and Skills,Transport,230006,Contract Hire,06/01/2022,3952642-F117-04,900.00,REDACTED - PAYMENT TO INDIVIDUAL
Children and Young Peoples Services,Head of Education and Skills,Transport,230006,Contract Hire,06/01/2022,3952643-0058,792.00,REDACTED - PAYMENT TO INDIVIDUAL
Children and Young Peoples Services,Head of Education and Skills,Transport,230006,Contract Hire,06/01/2022,3952687-DEC21,"1,300.00",REDACTED - PAYMENT TO INDIVIDUAL
Children and Young Peoples Services,Head of Education and Skills,Transport,230006,Contract Hire,06/01/2022,3952644-DEC21,853.58,REDACTED - PAYMENT TO INDIVIDUAL
Children and Young Peoples Services,Head of Education and Skills,Transport,230016,Contract Hire,06/01/2022,3952712-1-DEC21,"1,690.92",REDACTED - PAYMENT TO INDIVIDUAL
Children and Young Peoples Services,Head of Education and Skills,Transport,230008,Contract Hire,06/01/2022,3952712-7-DEC21,"1,677.00",REDACTED - PAYMENT TO INDIVIDUAL
Children and Young Peoples Services,Head of Education and Skills,Transport,230008,Contract Hire,06/01/2022,3952511-DEC21,"1,617.98",REDACTED - PAYMENT TO INDIVIDUAL
Children and Young Peoples Services,Head of Education and Skills,Transport,230008,Contract Hire,06/01/2022,3952608-3DEC21,881.66,REDACTED - PAYMENT TO INDIVIDUAL
Children and Young Peoples Services,Head of Education and Skills,Transport,230008,Contract Hire,06/01/2022,3952645-31990-DEC21,"1,936.00",REDACTED - PAYMENT TO INDIVIDUAL
Children and Young Peoples Services,Head of Education and Skills,Transport,230008,Contract Hire,06/01/2022,3952614-2021/41,"1,040.00",REDACTED - PAYMENT TO INDIVIDUAL
Children and Young Peoples Services,Head of Education and Skills,Transport,230008,Contract Hire,06/01/2022,3952543-BIL0259,886.08,REDACTED - PAYMENT TO INDIVIDUAL
Children and Young Peoples Services,Head of Education and Skills,Supplies and Services,338027,Services,06/01/2022,3952637-DCC5007,"1,710.00",REDACTED - PAYMENT TO INDIVIDUAL
Neighbourhoods and Climate Change,Environmental Services,Supplies and Services,338066,Services,06/01/2022,3952508-10122021,"1,500.00",REDACTED - PAYMENT TO INDIVIDUAL
Neighbourhoods and Climate Change,Environmental Services,Supplies and Services,338066,Services,06/01/2022,3952513-BURSARY-DEC21,668.59,REDACTED - PAYMENT TO INDIVIDUAL
Neighbourhoods and Climate Change,Environmental Services,Supplies and Services,338066,Services,06/01/2022,3952513-BURSARYDEC2021,577.20,REDACTED - PAYMENT TO INDIVIDUAL
Adult and Health Services,Head of Adults,Transport,230005,Contract Hire,06/01/2022,3952712-3-DEC21,770.64,REDACTED - PAYMENT TO INDIVIDUAL
Adult and Health Services,Head of Adults,Transport,230005,Contract Hire,06/01/2022,3952552-EAS199-DEC21,900.00,REDACTED - PAYMENT TO INDIVIDUAL
Adult and Health Services,Head of Adults,Transport,230005,Contract Hire,06/01/2022,3952608-9DEC21,713.60,REDACTED - PAYMENT TO INDIVIDUAL
Adult and Health Services,Head of Adults,Transport,230005,Contract Hire,06/01/2022,3952618-01122021,"1,187.00",REDACTED - PAYMENT TO INDIVIDUAL
Adult and Health Services,Head of Adults,Transport,230005,Contract Hire,06/01/2022,3952711-0002303,"2,700.00",REDACTED - PAYMENT TO INDIVIDUAL
Adult and Health Services,Head of Adults,Transport,230005,Contract Hire,06/01/2022,3952712-2-DEC21,"1,260.00",REDACTED - PAYMENT TO INDIVIDUAL
Adult and Health Services,Head of Adults,Transport,230005,Contract Hire,06/01/2022,3952712-8-DEC21,"2,160.00",REDACTED - PAYMENT TO INDIVIDUAL
Children and Young Peoples Services,Head of Education and Skills,Transport,230003,Contract Hire,06/01/2022,3952679-ROXDCC256,"3,640.00",ROXBYS BUS HIRE.
Children and Young Peoples Services,Head of Education and Skills,Transport,230003,Contract Hire,06/01/2022,3952679-ROXDCC257,"1,820.00",ROXBYS BUS HIRE.
Regeneration Economy and Growth,Development and Housing,Supplies and Services,384199,Miscellaneous Expenses,06/01/2022,3952680-TEC588553,"3,200.00",RPS CONSULTING SERVICES LTD.
Regeneration Economy and Growth,Corporate Property and Land,Third Party Payments,430100,Rendered by Private Contractors,06/01/2022,3952683-6454,"2,045.76",SAFE STRIP UK LTD.
Regeneration Economy and Growth,Corporate Property and Land,Supplies and Services,338078,Services,06/01/2022,3952684-15117,900.00,SAFEGUARD SECURITY (NE) LTD.
Neighbourhoods and Climate Change,Technical Services CM0300,Stock A926,926900,Stock in hand-Inventory system,06/01/2022,3952686-2022-1000003088,871.57,SCARAB SWEEPERS LTD.
Resources BK0010,Digital and Customer Services,Supplies and Services,342051,Computers and Communications,06/01/2022,3952690-INV03280041,"1,080.00",SOFTCAT PLC.
Regeneration Economy and Growth,Corporate Property and Land,Third Party Payments,430100,Rendered by Private Contractors,06/01/2022,3952691-7809,"29,884.67",ST ASTIER LTD.
Children and Young Peoples Services,Head of Education and Skills,Supplies and Services,336005,Advertising E336,06/01/2022,3952694-INV-5821,550.00,STEVE DAVIDSON ADVERTISING LTD T/A SD ADVERTISING LTD.
Regeneration Economy and Growth,Culture Sport and Tourism,Supplies and Services,338047,Services,06/01/2022,3952704-1706-DEC2021,"3,100.00",TALEGATE THEATRE PRODUCTIONS.
Children and Young Peoples Services,Head of Education and Skills,Transport,230007,Contract Hire,06/01/2022,3952705-12/21021/005,520.00,TARNS TAXIS LTD.
Children and Young Peoples Services,Head of Education and Skills,Transport,230010,Contract Hire,06/01/2022,3952706-DCC/2021/56,"1,235.40",TAYLOR`S TAXIS.
Children and Young Peoples Services,Head of Education and Skills,Transport,230016,Contract Hire,06/01/2022,3952706-DCC/2021/55,"2,596.00",TAYLOR`S TAXIS.
Children and Young Peoples Services,Head of Education and Skills,Transport,230008,Contract Hire,06/01/2022,3952706-DCC/2021/54,"2,545.40",TAYLOR`S TAXIS.
Children and Young Peoples Services,Head of Education and Skills,Transport,230008,Contract Hire,06/01/2022,3952706-DCC/2021/53,"3,182.76",TAYLOR`S TAXIS.
Resources BK0010,Finance & Transactional Services,Supplies and Services,328041,Clothing uniforms and laundry E328,06/01/2022,3952710-NSIN00065178,660.74,THOMAS OWEN & SONS (NEWCASTLE) LTD.
Neighbourhoods and Climate Change,Technical Services CM0300,Construction work A908,908105,Construction work,06/01/2022,3952713-TRNE028640,"2,070.00",TOTAL RESOURCES (UK) LTD.
Neighbourhoods and Climate Change,Technical Services CM0300,Construction work A908,908105,Construction work,06/01/2022,3952713-TRNE029216,"2,726.50",TOTAL RESOURCES (UK) LTD.
Neighbourhoods and Climate Change,Technical Services CM0300,Construction work A908,908105,Construction work,06/01/2022,3952713-TRNE029670,870.00,TOTAL RESOURCES (UK) LTD.
Neighbourhoods and Climate Change,Environmental Services,Supplies and Services,304221,Equipment and Materials,06/01/2022,3952713-TRNE029661,690.00,TOTAL RESOURCES (UK) LTD.
Children and Young Peoples Services,Head of Early Help Inclusion & Vulnerable Children.,Supplies and Services,384199,Miscellaneous Expenses,06/01/2022,3952715-2374,657.50,TWEDDLE FARM.
Neighbourhoods and Climate Change,Technical Services CM0300,Supplies and Services,304221,Equipment and Materials,06/01/2022,3952716-229155,515.28,TYNEDALE ROADSTONE LTD.
Neighbourhoods and Climate Change,Technical Services CM0300,Supplies and Services,304221,Equipment and Materials,06/01/2022,3952716-229349,"1,426.57",TYNEDALE ROADSTONE LTD.
Neighbourhoods and Climate Change,Technical Services CM0300,Supplies and Services,304221,Equipment and Materials,06/01/2022,3952716-229350,"1,053.37",TYNEDALE ROADSTONE LTD.
Neighbourhoods and Climate Change,Technical Services CM0300,Stock A926,926900,Stock in hand-Inventory system,06/01/2022,3952725-846415,531.26,YOUR NRG LTD.
Children and Young Peoples Services,Head of Education and Skills,Transport,230034,Contract Hire,07/01/2022,3952727-122117,"1,440.00",24/7 TAXI SERVICES (PETERLEE) LTD.
Children and Young Peoples Services,Head of Education and Skills,Transport,230034,Contract Hire,07/01/2022,3952727-122101,"1,677.00",24/7 TAXI SERVICES (PETERLEE) LTD.
Children and Young Peoples Services,Head of Education and Skills,Transport,230034,Contract Hire,07/01/2022,3952727-122104,637.00,24/7 TAXI SERVICES (PETERLEE) LTD.
Children and Young Peoples Services,Head of Education and Skills,Transport,230007,Contract Hire,07/01/2022,3952727-122105,533.00,24/7 TAXI SERVICES (PETERLEE) LTD.
Children and Young Peoples Services,Head of Education and Skills,Transport,230007,Contract Hire,07/01/2022,3952727-122102,"1,254.37",24/7 TAXI SERVICES (PETERLEE) LTD.
Children and Young Peoples Services,Head of Education and Skills,Transport,230006,Contract Hire,07/01/2022,3952727-122120,"1,040.00",24/7 TAXI SERVICES (PETERLEE) LTD.
Children and Young Peoples Services,Head of Education and Skills,Transport,230006,Contract Hire,07/01/2022,3952727-122121,767.00,24/7 TAXI SERVICES (PETERLEE) LTD.
Children and Young Peoples Services,Head of Education and Skills,Transport,230006,Contract Hire,07/01/2022,3952727-122122,"1,226.00",24/7 TAXI SERVICES (PETERLEE) LTD.
Children and Young Peoples Services,Head of Education and Skills,Transport,230006,Contract Hire,07/01/2022,3952727-122123,"2,095.00",24/7 TAXI SERVICES (PETERLEE) LTD.
Children and Young Peoples Services,Head of Education and Skills,Transport,230006,Contract Hire,07/01/2022,3952727-122107,"1,468.09",24/7 TAXI SERVICES (PETERLEE) LTD.
Children and Young Peoples Services,Head of Education and Skills,Transport,230006,Contract Hire,07/01/2022,3952727-122109,650.00,24/7 TAXI SERVICES (PETERLEE) LTD.
Children and Young Peoples Services,Head of Education and Skills,Transport,230006,Contract Hire,07/01/2022,3952727-12212,"1,916.52",24/7 TAXI SERVICES (PETERLEE) LTD.
Children and Young Peoples Services,Head of Education and Skills,Transport,230012,Contract Hire,07/01/2022,3952727-122126,"1,950.00",24/7 TAXI SERVICES (PETERLEE) LTD.
Children and Young Peoples Services,Head of Education and Skills,Transport,230012,Contract Hire,07/01/2022,3952727-122114,"1,560.00",24/7 TAXI SERVICES (PETERLEE) LTD.
Children and Young Peoples Services,Head of Education and Skills,Transport,230016,Contract Hire,07/01/2022,3952727-122111,"1,560.00",24/7 TAXI SERVICES (PETERLEE) LTD.
Children and Young Peoples Services,Head of Education and Skills,Transport,230008,Contract Hire,07/01/2022,3952727-122110,"1,688.31",24/7 TAXI SERVICES (PETERLEE) LTD.
Children and Young Peoples Services,Head of Education and Skills,Transport,230008,Contract Hire,07/01/2022,3952727-122113,"2,268.00",24/7 TAXI SERVICES (PETERLEE) LTD.
Children and Young Peoples Services,Head of Education and Skills,Transport,230008,Contract Hire,07/01/2022,3952727-122118,"1,287.00",24/7 TAXI SERVICES (PETERLEE) LTD.
Children and Young Peoples Services,Head of Education and Skills,Transport,230008,Contract Hire,07/01/2022,3952727-122115,"1,677.00",24/7 TAXI SERVICES (PETERLEE) LTD.
Children and Young Peoples Services,Head of Education and Skills,Transport,230008,Contract Hire,07/01/2022,3952727-122108,"1,677.00",24/7 TAXI SERVICES (PETERLEE) LTD.
Children and Young Peoples Services,Head of Education and Skills,Transport,230008,Contract Hire,07/01/2022,3952727-122116,"3,199.32",24/7 TAXI SERVICES (PETERLEE) LTD.
Children and Young Peoples Services,Head of Education and Skills,Transport,230008,Contract Hire,07/01/2022,3952727-122124,"2,314.00",24/7 TAXI SERVICES (PETERLEE) LTD.
Neighbourhoods and Climate Change,Environmental Services,Third Party Payments,430100,Rendered by Private Contractors,07/01/2022,3952728-3190,"6,056.25",A & J GUTHRIE.
Neighbourhoods and Climate Change,Environmental Services,Supplies and Services,338066,Services,07/01/2022,3952729-RED-01-2022-028,792.00,A & JM BOUSFIELD.
Adult and Health Services,Public Health CC0450,Third Party Payments,460803,Contract Payments,07/01/2022,3952731-INV-1368,"28,175.06",ABL HEALTH LTD.
Dedicated Schools Grant BG0015,DSG Early Years Block,Transfer Payments,510030,School Children,07/01/2022,3952732-28901,"5,771.70",ADVANCE LEARNING PARTNERSHIP.
Dedicated Schools Grant BG0015,DSG Early Years Block,Transfer Payments,510032,School Children,07/01/2022,3952733-28793,"2,386.72",ADVENTURE VALLEY DAY NURSERY LTD.
Dedicated Schools Grant BG0015,DSG Early Years Block,Transfer Payments,510030,School Children,07/01/2022,3952733-28887,"13,075.22",ADVENTURE VALLEY DAY NURSERY LTD.
Neighbourhoods and Climate Change,Technical Services CM0300,Supplies and Services,304221,Equipment and Materials,07/01/2022,3952734-32457610,805.67,AGGREGATE INDUSTRIES UK LTD.
Neighbourhoods and Climate Change,Technical Services CM0300,Supplies and Services,304221,Equipment and Materials,07/01/2022,3952734-32457611,818.31,AGGREGATE INDUSTRIES UK LTD.
Children and Young Peoples Services,Head of Early Help Inclusion & Vulnerable Children.,Supplies and Services,308011,Furniture,07/01/2022,3952737-173398,"2,190.00",ALBANY OFFICE EQUIPMENT (WHOLESALE) LTD.
Children and Young Peoples Services,Head of Education and Skills,Transport,230007,Contract Hire,07/01/2022,3952740-DCC097,"1,377.35",ALSTON ROAD GARAGE.
Dedicated Schools Grant BG0015,DSG Early Years Block,Transfer Payments,510032,School Children,07/01/2022,3952756-28798,"2,603.70",AYCLIFFE DAY NURSERY.
Dedicated Schools Grant BG0015,DSG Early Years Block,Transfer Payments,510030,School Children,07/01/2022,3952756-28896,"8,593.20",AYCLIFFE DAY NURSERY.
Children and Young Peoples Services,Head of Education and Skills,Transport,230006,Contract Hire,07/01/2022,3952757-4DEC21,700.00,B&C YELLOWCAB TAXI`S.
Regeneration Economy and Growth,Transport and Contracted Services,Third Party Payments,440999,Other third party payments E440,07/01/2022,3952761-95977,"6,514.32",BAYDALE CONTROL SYSTEMS LTD.
Regeneration Economy and Growth,Culture Sport and Tourism,Supplies and Services,384302,Miscellaneous Expenses,07/01/2022,3952762-7051,750.00,BELL & BULLOCK CIRCUS THEATRE.
Children and Young Peoples Services,Head of Education and Skills,Transport,230006,Contract Hire,07/01/2022,3952764-29,"1,438.68",BELMONT TAXIS.
Regeneration Economy and Growth,Culture Sport and Tourism,Supplies and Services,324117,Provisions E324,07/01/2022,3952767-32411073,"1,108.76",BIDFOOD.
Regeneration Economy and Growth,Culture Sport and Tourism,Supplies and Services,324117,Provisions E324,07/01/2022,3952767-32524093,601.60,BIDFOOD.
Regeneration Economy and Growth,Culture Sport and Tourism,Supplies and Services,324117,Provisions E324,07/01/2022,3952767-32631225,"1,546.87",BIDFOOD.
Children and Young Peoples Services,Head of Education and Skills,Transport,230007,Contract Hire,07/01/2022,3952769-538,665.86,BILL SCOTT TAXIS LTD.
Children and Young Peoples Services,Head of Education and Skills,Transport,230008,Contract Hire,07/01/2022,3952769-539,728.00,BILL SCOTT TAXIS LTD.
Dedicated Schools Grant BG0015,DSG Early Years Block,Transfer Payments,510030,School Children,07/01/2022,3952770-29010,"8,395.20",BISHOP HOGARTH CATHOLIC EDUCATION TRUST.
Dedicated Schools Grant BG0015,DSG Early Years Block,Transfer Payments,510030,School Children,07/01/2022,3952771-29009,"4,999.50",BISHOP HOGARTH CATHOLIC EDUCATION TRUST.
Dedicated Schools Grant BG0015,DSG Early Years Block,Transfer Payments,510030,School Children,07/01/2022,3952772-29008,"9,734.17",BISHOP WILKINSON CE TRUST.
Regeneration Economy and Growth,Culture Sport and Tourism,Supplies and Services,312013,Newspapers books and periodicals E312,07/01/2022,3952773-77534,585.20,BOLINDA DIGITAL LTD.
Children and Young Peoples Services,Head of Education and Skills,Transport,230007,Contract Hire,07/01/2022,3952774-004DEC21,520.00,BOWBURN TAXIS.
Dedicated Schools Grant BG0015,DSG Schools Block,Supplies and Services,338075,Services,07/01/2022,3952775-162,"3,760.00",BOX CLEVER (HORDEN) LTD.
Dedicated Schools Grant BG0015,DSG Early Years Block,Transfer Payments,510032,School Children,07/01/2022,3952776-28803,"8,136.56",BRIGHT STAR NURSERY.
Dedicated Schools Grant BG0015,DSG Early Years Block,Transfer Payments,510030,School Children,07/01/2022,3952776-28902,"28,518.19",BRIGHT STAR NURSERY.
Children and Young Peoples Services,Head of Education and Skills,Third Party Payments,440999,Other third party payments E440,07/01/2022,3952780-KICK5044718INVOICE000485,716.39,BURNS PETCARE LTD T/A WOOFS N SCRUFFS.
Dedicated Schools Grant BG0015,DSG Early Years Block,Transfer Payments,510032,School Children,07/01/2022,3952781-28804,976.39,BUTTERFLIES DAY CARE.
Dedicated Schools Grant BG0015,DSG Early Years Block,Transfer Payments,510030,School Children,07/01/2022,3952781-28903,"4,049.10",BUTTERFLIES DAY CARE.
Dedicated Schools Grant BG0015,DSG Early Years Block,Transfer Payments,510032,School Children,07/01/2022,3952782-28805,"4,881.94",BYERLEY ROAD PRE SCHOOL.
Dedicated Schools Grant BG0015,DSG Early Years Block,Transfer Payments,510030,School Children,07/01/2022,3952782-28904,"3,672.90",BYERLEY ROAD PRE SCHOOL.
Adult and Health Services,Head of Adults,Supplies and Services,338366,Services,07/01/2022,3952783-80525,"5,218.70",CARE ABILITY HEALTHCARE LTD.
Adult and Health Services,Head of Adults,Supplies and Services,338366,Services,07/01/2022,3952783-80526,941.80,CARE ABILITY HEALTHCARE LTD.
Adult and Health Services,Head of Adults,Supplies and Services,338366,Services,07/01/2022,3952783-80527,834.80,CARE ABILITY HEALTHCARE LTD.
Adult and Health Services,Head of Adults,Supplies and Services,338366,Services,07/01/2022,3952783-80528,"1,425.00",CARE ABILITY HEALTHCARE LTD.
Adult and Health Services,Head of Adults,Supplies and Services,338366,Services,07/01/2022,3952783-80529,"1,177.10",CARE ABILITY HEALTHCARE LTD.
Adult and Health Services,Head of Adults,Supplies and Services,338366,Services,07/01/2022,3952783-80869,735.72,CARE ABILITY HEALTHCARE LTD.
Dedicated Schools Grant BG0015,DSG Early Years Block,Transfer Payments,510032,School Children,07/01/2022,3952786-28808,"1,301.85",CASTLE KINDERGARTEN LTD.
Dedicated Schools Grant BG0015,DSG Early Years Block,Transfer Payments,510032,School Children,07/01/2022,3952787-28807,"1,952.77",CASTLE KINDERGARTEN LTD.
Dedicated Schools Grant BG0015,DSG Early Years Block,Transfer Payments,510030,School Children,07/01/2022,3952786-28908,"5,184.50",CASTLE KINDERGARTEN LTD.
Dedicated Schools Grant BG0015,DSG Early Years Block,Transfer Payments,510030,School Children,07/01/2022,3952787-28907,"12,703.55",CASTLE KINDERGARTEN LTD.
Dedicated Schools Grant BG0015,DSG Early Years Block,Transfer Payments,510032,School Children,07/01/2022,3952788-28809,"1,692.40",CASTLE VIEW PRIVATE DAY NURSERY LTD.
Dedicated Schools Grant BG0015,DSG Early Years Block,Transfer Payments,510030,School Children,07/01/2022,3952788-28909,"35,601.93",CASTLE VIEW PRIVATE DAY NURSERY LTD.
Resources BK0010,Digital and Customer Services,Vehicles Equipment Furniture and Fittings,912701,Computer equipment,07/01/2022,3952790-PSINV03275762,"9,150.00",CDW LTD.
Resources BK0010,Digital and Customer Services,Vehicles Equipment Furniture and Fittings,912701,Computer equipment,07/01/2022,3952790-PSINV03370964,"9,150.00",CDW LTD.
Resources BK0010,Digital and Customer Services,Vehicles Equipment Furniture and Fittings,912701,Computer equipment,07/01/2022,3952790-PSINV03400471,"96,770.00",CDW LTD.
Regeneration Economy and Growth,Corporate Property and Land,Third Party Payments,430100,Rendered by Private Contractors,07/01/2022,3952791-635,"2,065.11",CEILINGS DIRECT LTD.
Children and Young Peoples Services,Head of Education and Skills,Transport,230009,Contract Hire,07/01/2022,3952795-1641,"1,080.00",CHEVRON TAXIS LTD.
Children and Young Peoples Services,Head of Education and Skills,Transport,230006,Contract Hire,07/01/2022,3952795-1643,672.00,CHEVRON TAXIS LTD.
Children and Young Peoples Services,Head of Education and Skills,Transport,230006,Contract Hire,07/01/2022,3952795-1644,574.00,CHEVRON TAXIS LTD.
Children and Young Peoples Services,Head of Education and Skills,Transport,230006,Contract Hire,07/01/2022,3952795-1649,688.00,CHEVRON TAXIS LTD.
Children and Young Peoples Services,Head of Education and Skills,Transport,230008,Contract Hire,07/01/2022,3952795-1642,884.00,CHEVRON TAXIS LTD.
Regeneration Economy and Growth,Culture Sport and Tourism,Premises,145023,Cleaning and Domestic Supplies,07/01/2022,3952798-CN30144250,"1,144.08",CITRON HYGIENE UK LTD.
Regeneration Economy and Growth,Culture Sport and Tourism,Premises,145050,Cleaning and Domestic Supplies,07/01/2022,3952798-CN30144211,"1,140.90",CITRON HYGIENE UK LTD.
Regeneration Economy and Growth,Culture Sport and Tourism,Premises,145050,Cleaning and Domestic Supplies,07/01/2022,3952798-CN30144540,"1,140.90",CITRON HYGIENE UK LTD.
Regeneration Economy and Growth,Culture Sport and Tourism,Premises,145050,Cleaning and Domestic Supplies,07/01/2022,3952798-CN30144715,"1,140.90",CITRON HYGIENE UK LTD.
Children and Young Peoples Services,Head of Early Help Inclusion & Vulnerable Children.,Premises,145009,Cleaning and Domestic Supplies,07/01/2022,3952798-CN30144283,"1,004.65",CITRON HYGIENE UK LTD.
Children and Young Peoples Services,Head of Education and Skills,Transport,230006,Contract Hire,07/01/2022,3952807-88,810.00,CLOVER TAXIS.
Dedicated Schools Grant BG0015,DSG Early Years Block,Transfer Payments,510030,School Children,07/01/2022,3952808-28918,"2,271.31",CONKERS LIFE LTD (NURSERY SCHOOL).
Children and Young Peoples Services,Head of Education and Skills,Transport,230007,Contract Hire,07/01/2022,3952809-009,"1,133.76",CONSETT EXECUTIVE CABS.
Dedicated Schools Grant BG0015,DSG Early Years Block,Transfer Payments,510032,School Children,07/01/2022,3952811-28814,"6,509.25",COUNDON & LEEHOLME EARLY YEARS CENTRE LTD.
Dedicated Schools Grant BG0015,DSG Early Years Block,Transfer Payments,510030,School Children,07/01/2022,3952811-28919,"8,228.75",COUNDON & LEEHOLME EARLY YEARS CENTRE LTD.
Regeneration Economy and Growth,Culture Sport and Tourism,Supplies and Services,384199,Miscellaneous Expenses,07/01/2022,3952812-9025,"2,300.00",COUNTERCULTURE PARTNERSHIP LLP.
Dedicated Schools Grant BG0015,DSG Early Years Block,Transfer Payments,510032,School Children,07/01/2022,3952814-28815,976.39,CRAGHEAD CHILDCARE CENTRE.
Dedicated Schools Grant BG0015,DSG Early Years Block,Transfer Payments,510032,School Children,07/01/2022,3952814-28816,"5,532.86",CRAGHEAD CHILDCARE CENTRE.
Dedicated Schools Grant BG0015,DSG Early Years Block,Transfer Payments,510030,School Children,07/01/2022,3952814-28920,518.51,CRAGHEAD CHILDCARE CENTRE.
Dedicated Schools Grant BG0015,DSG Early Years Block,Transfer Payments,510030,School Children,07/01/2022,3952814-28921,"7,777.69",CRAGHEAD CHILDCARE CENTRE.
Children and Young Peoples Services,Head of Education and Skills,Transport,230008,Contract Hire,07/01/2022,3952815-111969,"1,072.17",CROFT BUSINESS SERVICES LTD T/A CROFT TRAVEL.
Children and Young Peoples Services,Head of Education and Skills,Transport,230008,Contract Hire,07/01/2022,3952818-3676,"1,399.20",DAVES MINIBUSES.
Children and Young Peoples Services,Head of Education and Skills,Transport,230008,Contract Hire,07/01/2022,3952818-3677,"1,224.00",DAVES MINIBUSES.
Children and Young Peoples Services,Head of Education and Skills,Transport,230008,Contract Hire,07/01/2022,3952818-3678,"1,104.96",DAVES MINIBUSES.
Children and Young Peoples Services,Head of Education and Skills,Transport,230008,Contract Hire,07/01/2022,3952818-3675,"1,566.62",DAVES MINIBUSES.
Children and Young Peoples Services,Head of Education and Skills,Transport,230008,Contract Hire,07/01/2022,3952818-3680,"1,274.00",DAVES MINIBUSES.
Children and Young Peoples Services,Head of Education and Skills,Transport,230008,Contract Hire,07/01/2022,3952818-3679,"1,248.00",DAVES MINIBUSES.
Regeneration Economy and Growth,Corporate Property and Land,Third Party Payments,430100,Rendered by Private Contractors,07/01/2022,3952817-N525082,"2,149.80",D-DRILL (MASTER DRILLERS) LTD.
Resources BK0010,Digital and Customer Services,Vehicles Equipment Furniture and Fittings,912701,Computer equipment,07/01/2022,3952822-7402773088,"4,811.16",DELL COMPUTER CORPORATION LTD.
Resources BK0010,Digital and Customer Services,Stock A926,926900,Stock in hand-Inventory system,07/01/2022,3952822-7402774836,"1,516.00",DELL COMPUTER CORPORATION LTD.
Dedicated Schools Grant BG0015,DSG Early Years Block,Transfer Payments,510030,School Children,07/01/2022,3952828-28949,"2,166.45",DURHAM & NEWCASTLE DIOCESAN LEARNING TRUST T/A INGLETON CE PRIMARY SCHOOL
Dedicated Schools Grant BG0015,DSG Early Years Block,Transfer Payments,510030,School Children,07/01/2022,3952829-29011,"7,992.27",DURHAM & NEWCASTLE DIOCESAN LEARNING TRUST T/A STANHOPE BARRINGTON C OF E PRIMARY SCHOOL.
Dedicated Schools Grant BG0015,DSG Early Years Block,Transfer Payments,510032,School Children,07/01/2022,3952832-28821,"3,580.09",EARLY LEARNERS PRIVATE DAY NURSERY.
Dedicated Schools Grant BG0015,DSG Early Years Block,Transfer Payments,510030,School Children,07/01/2022,3952832-28932,"1,209.86",EARLY LEARNERS PRIVATE DAY NURSERY.
Children and Young Peoples Services,Head of Education and Skills,Transport,230008,Contract Hire,07/01/2022,3952833-1209,"1,822.86",EAST DURHAM TAXIS.
Dedicated Schools Grant BG0015,DSG Early Years Block,Transfer Payments,510032,School Children,07/01/2022,3952834-28802,"2,603.70",EDEN ACADEMY TRUST LTD T/A BLUEBELL MEADOW PRIMARY SCHOOL.
Dedicated Schools Grant BG0015,DSG Early Years Block,Transfer Payments,510030,School Children,07/01/2022,3952834-28900,"4,722.30",EDEN ACADEMY TRUST LTD T/A BLUEBELL MEADOW PRIMARY SCHOOL.
Dedicated Schools Grant BG0015,DSG Early Years Block,Transfer Payments,510032,School Children,07/01/2022,3952835-28822,"5,207.40",EDEN GARDEN NURSERY.
Dedicated Schools Grant BG0015,DSG Early Years Block,Transfer Payments,510030,School Children,07/01/2022,3952835-28933,"7,900.20",EDEN GARDEN NURSERY.
Dedicated Schools Grant BG0015,DSG Early Years Block,Transfer Payments,510030,School Children,07/01/2022,3952836-28914,"18,102.15",EDEN LEARNING TRUST T/A CHILTON ACADEMY.
Dedicated Schools Grant BG0015,DSG High Needs Block,Supplies and Services,384302,Miscellaneous Expenses,07/01/2022,3952837-SESI34,"20,601.00",EDEN LEARNING TRUST T/A SEAHAM HIGH SCHOOL.
Dedicated Schools Grant BG0015,DSG Schools Block,Supplies and Services,338075,Services,07/01/2022,3952840-007-2021,"31,200.00",EDUCATION PLUS NE LTD.
Dedicated Schools Grant BG0015,DSG Schools Block,Supplies and Services,338075,Services,07/01/2022,3952840-008-2021,530.95,EDUCATION PLUS NE LTD.
Regeneration Economy and Growth,Corporate Property and Land,Premises,108099,Service Repairs and Maintenance,07/01/2022,3952841-90530,824.60,EIAT UK LTD (ELECTRICAL INSTALLATION & APPLIANCE TESTING UK).
Regeneration Economy and Growth,Corporate Property and Land,Premises,108099,Service Repairs and Maintenance,07/01/2022,3952841-90477,"2,975.00",EIAT UK LTD (ELECTRICAL INSTALLATION & APPLIANCE TESTING UK).
Dedicated Schools Grant BG0015,DSG Early Years Block,Transfer Payments,510032,School Children,07/01/2022,3952845-28825,"5,858.32",EMERALDS LITTLE GEMS DAYCARE LTD.
Dedicated Schools Grant BG0015,DSG Early Years Block,Transfer Payments,510032,School Children,07/01/2022,3952845-28826,"11,065.72",EMERALDS LITTLE GEMS DAYCARE LTD.
Dedicated Schools Grant BG0015,DSG Early Years Block,Transfer Payments,510030,School Children,07/01/2022,3952845-28935,"8,395.20",EMERALDS LITTLE GEMS DAYCARE LTD.
Dedicated Schools Grant BG0015,DSG Early Years Block,Transfer Payments,510030,School Children,07/01/2022,3952845-28936,"26,864.64",EMERALDS LITTLE GEMS DAYCARE LTD.
Dedicated Schools Grant BG0015,DSG Schools Block,Supplies and Services,338075,Services,07/01/2022,3952847-279,"3,040.00",ENTERPRISE EDUCATION (NORTH EAST).
Dedicated Schools Grant BG0015,DSG Schools Block,Supplies and Services,338075,Services,07/01/2022,3952847-280,903.55,ENTERPRISE EDUCATION (NORTH EAST).
Dedicated Schools Grant BG0015,DSG High Needs Block,Supplies and Services,304259,Equipment and Materials,07/01/2022,3952848-312176,917.00,ETAC LTD.
Children and Young Peoples Services,Head of Education and Skills,Transport,230007,Contract Hire,07/01/2022,3952851-220,"1,287.00",FIGGY BUS (TAXI).
Children and Young Peoples Services,Head of Education and Skills,Transport,230007,Contract Hire,07/01/2022,3952851-217,"1,789.06",FIGGY BUS (TAXI).
Children and Young Peoples Services,Head of Education and Skills,Transport,230006,Contract Hire,07/01/2022,3952851-218,693.00,FIGGY BUS (TAXI).
Children and Young Peoples Services,Head of Education and Skills,Transport,230009,Contract Hire,07/01/2022,3952853-1549,990.00,FMR SILVA PITA.
Children and Young Peoples Services,Head of Education and Skills,Transport,230009,Contract Hire,07/01/2022,3952853-1548,"1,120.56",FMR SILVA PITA.
Children and Young Peoples Services,Head of Education and Skills,Transport,230008,Contract Hire,07/01/2022,3952853-1547,"2,024.00",FMR SILVA PITA.
Children and Young Peoples Services,Head of Childrens Social Care,Employees,080025,Agency Staff,07/01/2022,3952859-2455323,"115,098.22",GEOMETRIC RESULTS INTERNATIONAL.
Children and Young Peoples Services,Head of Childrens Social Care,Employees,080025,Agency Staff,07/01/2022,3952859-2455532,"79,360.86",GEOMETRIC RESULTS INTERNATIONAL.
Dedicated Schools Grant BG0015,DSG Early Years Block,Transfer Payments,510032,School Children,07/01/2022,3952860-28829,"2,603.70",GIANT STEPS LTD.
Dedicated Schools Grant BG0015,DSG Early Years Block,Transfer Payments,510032,School Children,07/01/2022,3952861-28828,"1,952.77",GIANT STEPS LTD.
Dedicated Schools Grant BG0015,DSG Early Years Block,Transfer Payments,510032,School Children,07/01/2022,3952862-28830,976.39,GIANT STEPS LTD.
Dedicated Schools Grant BG0015,DSG Early Years Block,Transfer Payments,510030,School Children,07/01/2022,3952860-28940,"13,999.84",GIANT STEPS LTD.
Dedicated Schools Grant BG0015,DSG Early Years Block,Transfer Payments,510030,School Children,07/01/2022,3952861-28939,"5,499.45",GIANT STEPS LTD.
Dedicated Schools Grant BG0015,DSG Early Years Block,Transfer Payments,510030,School Children,07/01/2022,3952862-28941,"3,796.03",GIANT STEPS LTD.
Dedicated Schools Grant BG0015,DSG Early Years Block,Transfer Payments,510032,School Children,07/01/2022,3952863-28831,"1,627.31",GREEN LANE NURSERY & CHILDCARE CENTRE.
Dedicated Schools Grant BG0015,DSG Early Years Block,Transfer Payments,510030,School Children,07/01/2022,3952863-28942,"16,394.40",GREEN LANE NURSERY & CHILDCARE CENTRE.
Resources BK0010,Digital and Customer Services,Supplies and Services,304303,Equipment and Materials,07/01/2022,3952867-INV0185056,"2,890.14",GVAV LTD.
Adult and Health Services,Public Health CC0450,Third Party Payments,460803,Contract Payments,07/01/2022,3952870-DCCVC022,"4,321.42",HARBOUR SUPPORT SERVICES.
Neighbourhoods and Climate Change,Environmental Services,Supplies and Services,304221,Equipment and Materials,07/01/2022,3952871-SI-7181,"1,611.39",HARELAW SAWMILL LTD.
Dedicated Schools Grant BG0015,DSG Early Years Block,Transfer Payments,510030,School Children,07/01/2022,3952873-28943,"9,706.95",HARTSIDE PRIMARY ACADEMY.
Regeneration Economy and Growth,Business Durham CL0850,Premises,108125,Service Repairs and Maintenance,07/01/2022,3952874-IHI100-2848,"1,080.00",HAYFIELDS CONTRACTING LTD T/A COMPLETE WEED CONTROL (DUR & TEESIDE).
Regeneration Economy and Growth,Culture Sport and Tourism,Supplies and Services,338066,Services,07/01/2022,3952882-3841,"2,343.50",HIGHLIGHTS PRODUCTIONS LTD.
Neighbourhoods and Climate Change,Environmental Services,Transport,210057,Repair and Maintenance of Vehicles,07/01/2022,3952883-9845,525.00,HILLCREST AUTO ELECTRICS.
Children and Young Peoples Services,Head of Education and Skills,Transport,230007,Contract Hire,07/01/2022,3952890-19713,"2,331.00",HODGSONS COACH OPERATORS LTD.
Children and Young Peoples Services,Head of Education and Skills,Transport,230007,Contract Hire,07/01/2022,3952890-19711,"2,430.00",HODGSONS COACH OPERATORS LTD.
Children and Young Peoples Services,Head of Education and Skills,Transport,230007,Contract Hire,07/01/2022,3952890-19712,"2,064.20",HODGSONS COACH OPERATORS LTD.
Children and Young Peoples Services,Head of Education and Skills,Transport,230007,Contract Hire,07/01/2022,3952890-19719,"2,062.06",HODGSONS COACH OPERATORS LTD.
Children and Young Peoples Services,Head of Education and Skills,Transport,230007,Contract Hire,07/01/2022,3952890-19721,"4,270.52",HODGSONS COACH OPERATORS LTD.
Children and Young Peoples Services,Head of Education and Skills,Transport,230034,Contract Hire,07/01/2022,3952892-5096,"1,040.00",HORNDALE TAXIS LTD.
Regeneration Economy and Growth,Business Durham CL0850,Premises,108125,Service Repairs and Maintenance,07/01/2022,3952898-TW-2996,855.00,IW ADAMSON LTD T/A COMPLETE WEED CONTROL (TYNE & WEAR).
Regeneration Economy and Growth,Business Durham CL0850,Supplies and Services,384199,Miscellaneous Expenses,07/01/2022,3952898-TW-2998,581.00,IW ADAMSON LTD T/A COMPLETE WEED CONTROL (TYNE & WEAR).
Neighbourhoods and Climate Change,Technical Services CM0300,Third Party Payments,430100,Rendered by Private Contractors,07/01/2022,3952900-1922/2021,"4,810.00",J & JG GILL & SONS LTD.
Regeneration Economy and Growth,Business Durham CL0850,Premises,106082,Centrally Controlled Rep and Maint,07/01/2022,3952911-25464,"3,961.40",JC MAINTENANCE SERVICES LTD.
Neighbourhoods and Climate Change,Environmental Services,Transport,230710,Contract Hire,07/01/2022,3952912-00086428,829.64,JCB FINANCE (LEASING) LTD.*
Dedicated Schools Grant BG0015,DSG Schools Block,Transport,230031,Contract Hire,07/01/2022,3952913-42,"2,440.00",JD`S TAXI.
Dedicated Schools Grant BG0015,DSG Early Years Block,Transfer Payments,510030,School Children,07/01/2022,3952914-28988,"5,225.71",JIGSAW LEARNING TRUST.
Regeneration Economy and Growth,Development and Housing,Third Party Payments,440999,Other third party payments E440,07/01/2022,3952915-190,"49,500.00",JIGSAW RECOVERY PROJECT CIC.
Neighbourhoods and Climate Change,Technical Services CM0300,Supplies and Services,304221,Equipment and Materials,07/01/2022,3952925-0113/00536081,973.84,JT DOVE LTD.
Neighbourhoods and Climate Change,Technical Services CM0300,Supplies and Services,304221,Equipment and Materials,07/01/2022,3952925-0303/00541698,589.00,JT DOVE LTD.
Neighbourhoods and Climate Change,Technical Services CM0300,Supplies and Services,304221,Equipment and Materials,07/01/2022,3952925-0303/00543651,"1,148.80",JT DOVE LTD.
Dedicated Schools Grant BG0015,DSG Early Years Block,Transfer Payments,510032,School Children,07/01/2022,3952932-28844,"3,580.09",KELLOE PHOENIX CENTRE (CHILDCARE).
Dedicated Schools Grant BG0015,DSG Early Years Block,Transfer Payments,510030,School Children,07/01/2022,3952932-28961,"5,567.51",KELLOE PHOENIX CENTRE (CHILDCARE).
Dedicated Schools Grant BG0015,DSG Early Years Block,Transfer Payments,510032,School Children,07/01/2022,3952934-28846,"3,580.09",KIDZONE.
Dedicated Schools Grant BG0015,DSG Early Years Block,Transfer Payments,510030,School Children,07/01/2022,3952934-28963,"13,222.07",KIDZONE.
Dedicated Schools Grant BG0015,DSG Early Years Block,Transfer Payments,510030,School Children,07/01/2022,3952935-28964,"6,967.62",KIRK MERRINGTON PRE SCHOOL.
Dedicated Schools Grant BG0015,DSG Early Years Block,Transfer Payments,510030,School Children,07/01/2022,3952936-28965,"10,336.09",KIRKLANDS DAY NURSERY.
Dedicated Schools Grant BG0015,DSG Early Years Block,Transfer Payments,510032,School Children,07/01/2022,3952945-28849,"4,881.94",LEADGATE CHILD CENTRE LTD.
Dedicated Schools Grant BG0015,DSG Early Years Block,Transfer Payments,510030,School Children,07/01/2022,3952945-28971,"9,990.34",LEADGATE CHILD CENTRE LTD.
Dedicated Schools Grant BG0015,DSG Early Years Block,Transfer Payments,510032,School Children,07/01/2022,3952950-28851,"2,603.70",LITTLE ACORNS NORTH EAST LTD.
Dedicated Schools Grant BG0015,DSG Early Years Block,Transfer Payments,510030,School Children,07/01/2022,3952950-28973,"10,086.86",LITTLE ACORNS NORTH EAST LTD.
Dedicated Schools Grant BG0015,DSG Early Years Block,Transfer Payments,510032,School Children,07/01/2022,3952951-28853,"7,485.64",LITTLE WAVES DAY NURSERY LTD.
Dedicated Schools Grant BG0015,DSG Early Years Block,Transfer Payments,510030,School Children,07/01/2022,3952951-28975,"9,706.95",LITTLE WAVES DAY NURSERY LTD.
Neighbourhoods and Climate Change,Environmental Services,Supplies and Services,384899,Miscellaneous Expenses,07/01/2022,3952958-RED-01-2022-021,740.00,MAATS TECH LTD.
Regeneration Economy and Growth,Culture Sport and Tourism,Supplies and Services,324117,Provisions E324,07/01/2022,3952964-220247,776.01,MARK TONEY & CO LTD.
Regeneration Economy and Growth,Culture Sport and Tourism,Supplies and Services,324117,Provisions E324,07/01/2022,3952976-906359733,532.38,MOLSON COORS BREWING COMPANY (UK) LTD.
Adult and Health Services,Head of Adults,Third Party Payments,472101,Purchase of Care,07/01/2022,3952977-10410,"1,116.00",MOONRISE 24HR RECRUITMENT LTD.
Adult and Health Services,Head of Adults,Third Party Payments,472101,Purchase of Care,07/01/2022,3952977-10638,"1,389.00",MOONRISE 24HR RECRUITMENT LTD.
Adult and Health Services,Head of Adults,Third Party Payments,472101,Purchase of Care,07/01/2022,3952977-10916,"2,574.00",MOONRISE 24HR RECRUITMENT LTD.
Adult and Health Services,Head of Adults,Third Party Payments,472101,Purchase of Care,07/01/2022,3952977-10952,"1,605.00",MOONRISE 24HR RECRUITMENT LTD.
Adult and Health Services,Head of Adults,Third Party Payments,472101,Purchase of Care,07/01/2022,3952977-10953,891.00,MOONRISE 24HR RECRUITMENT LTD.
Adult and Health Services,Head of Adults,Third Party Payments,472101,Purchase of Care,07/01/2022,3952977-10954,522.00,MOONRISE 24HR RECRUITMENT LTD.
Adult and Health Services,Head of Adults,Third Party Payments,472101,Purchase of Care,07/01/2022,3952977-10957,504.00,MOONRISE 24HR RECRUITMENT LTD.
Adult and Health Services,Head of Adults,Third Party Payments,472101,Purchase of Care,07/01/2022,3952977-10976,"1,908.00",MOONRISE 24HR RECRUITMENT LTD.
Adult and Health Services,Head of Adults,Third Party Payments,472101,Purchase of Care,07/01/2022,3952977-11028,792.00,MOONRISE 24HR RECRUITMENT LTD.
Adult and Health Services,Head of Adults,Third Party Payments,472101,Purchase of Care,07/01/2022,3952977-11153,720.00,MOONRISE 24HR RECRUITMENT LTD.
Adult and Health Services,Head of Adults,Third Party Payments,472101,Purchase of Care,07/01/2022,3952977-11200,756.00,MOONRISE 24HR RECRUITMENT LTD.
Adult and Health Services,Head of Adults,Third Party Payments,472101,Purchase of Care,07/01/2022,3952977-11251,720.00,MOONRISE 24HR RECRUITMENT LTD.
Dedicated Schools Grant BG0015,DSG Early Years Block,Transfer Payments,510032,School Children,07/01/2022,3953006-28857,"3,580.09",NELLIE`S DAY NURSERY LTD.
Dedicated Schools Grant BG0015,DSG Early Years Block,Transfer Payments,510030,School Children,07/01/2022,3953006-28984,"7,250.51",NELLIE`S DAY NURSERY LTD.
Dedicated Schools Grant BG0015,DSG Early Years Block,Transfer Payments,510032,School Children,07/01/2022,3953008-28858,"2,278.24",NEW BEGINNINGS (MOORSIDE) CO LTD.
Dedicated Schools Grant BG0015,DSG Early Years Block,Transfer Payments,510030,School Children,07/01/2022,3953008-28985,"6,073.65",NEW BEGINNINGS (MOORSIDE) CO LTD.
Regeneration Economy and Growth,Culture Sport and Tourism,Supplies and Services,384199,Miscellaneous Expenses,07/01/2022,3953022-2021/25,562.16,NORTHERN CHILDRENS BOOK FESTIVAL (NCBF).
Dedicated Schools Grant BG0015,DSG Early Years Block,Transfer Payments,510032,School Children,07/01/2022,3953023-28863,"3,254.62",NORTHUMBRIAN TRUST DAY NURSERIES LTD.
Dedicated Schools Grant BG0015,DSG Early Years Block,Transfer Payments,510030,School Children,07/01/2022,3953023-28991,"3,370.33",NORTHUMBRIAN TRUST DAY NURSERIES LTD.
Dedicated Schools Grant BG0015,DSG Early Years Block,Transfer Payments,510032,School Children,07/01/2022,3953025-28859,"2,929.16",NURSERYTIME LTD.
Dedicated Schools Grant BG0015,DSG Early Years Block,Transfer Payments,510030,School Children,07/01/2022,3953025-28986,"14,953.95",NURSERYTIME LTD.
Dedicated Schools Grant BG0015,DSG Early Years Block,Transfer Payments,510030,School Children,07/01/2022,3953027-28987,"2,305.46",OLD BRIDGE NURSERY.
Regeneration Economy and Growth,Culture Sport and Tourism,Premises,106080,Centrally Controlled Rep and Maint,07/01/2022,3953028-21067385/U1,"6,177.87",OTIS LTD T/A MOVEMAN SKG.
Regeneration Economy and Growth,Corporate Property and Land,Third Party Payments,430100,Rendered by Private Contractors,07/01/2022,3953031-2857,880.00,PARAMOUNT CEILINGS & PARTITIONS.
Regeneration Economy and Growth,Corporate Property and Land,Third Party Payments,430100,Rendered by Private Contractors,07/01/2022,3953031-2869,960.00,PARAMOUNT CEILINGS & PARTITIONS.
Regeneration Economy and Growth,Corporate Property and Land,Third Party Payments,430100,Rendered by Private Contractors,07/01/2022,3953031-2870,"1,180.00",PARAMOUNT CEILINGS & PARTITIONS.
Regeneration Economy and Growth,Corporate Property and Land,Third Party Payments,430100,Rendered by Private Contractors,07/01/2022,3953031-2868,680.00,PARAMOUNT CEILINGS & PARTITIONS.
Neighbourhoods and Climate Change,Technical Services CM0300,Third Party Payments,430100,Rendered by Private Contractors,07/01/2022,3953038-319465,"1,895.00",PEART FENCING LTD.
Children and Young Peoples Services,Head of Education and Skills,Supplies and Services,384199,Miscellaneous Expenses,07/01/2022,3953042-21/22-04,550.00,PGI SMITH SOLUTIONS LTD.
Neighbourhoods and Climate Change,Technical Services CM0300,Third Party Payments,430100,Rendered by Private Contractors,07/01/2022,3953046-6256,"4,836.65",PINKNEY BUILDING CONTRACTORS LTD.
Neighbourhoods and Climate Change,Technical Services CM0300,Third Party Payments,430100,Rendered by Private Contractors,07/01/2022,3953046-6261,"4,836.65",PINKNEY BUILDING CONTRACTORS LTD.
Neighbourhoods and Climate Change,Technical Services CM0300,Third Party Payments,430100,Rendered by Private Contractors,07/01/2022,3953046-6270,"4,836.65",PINKNEY BUILDING CONTRACTORS LTD.
Neighbourhoods and Climate Change,Technical Services CM0300,Third Party Payments,430100,Rendered by Private Contractors,07/01/2022,3953046-6272,"4,836.65",PINKNEY BUILDING CONTRACTORS LTD.
Neighbourhoods and Climate Change,Technical Services CM0300,Third Party Payments,430100,Rendered by Private Contractors,07/01/2022,3953046-6273,"1,960.80",PINKNEY BUILDING CONTRACTORS LTD.
Dedicated Schools Grant BG0015,DSG Early Years Block,Transfer Payments,510030,School Children,07/01/2022,3953048-28992,"6,602.47",PLAYOLOGY LTD.
Children and Young Peoples Services,Head of Education and Skills,Transport,230008,Contract Hire,07/01/2022,3953049-1377,"1,200.00",PODA TAXIS LTD.
Children and Young Peoples Services,Head of Education and Skills,Transport,230008,Contract Hire,07/01/2022,3953049-1376,"1,851.33",PODA TAXIS LTD.
Resources BK0010,Digital and Customer Services,Supplies and Services,332029,Printing Stationery and Gen Off Exps,07/01/2022,3953054-19526,950.00,RADECAL SIGNS GRAPHICS & ADVERTISING.
Dedicated Schools Grant BG0015,DSG Early Years Block,Transfer Payments,510032,School Children,07/01/2022,3953055-28866,"3,905.55",RAINBOW NURSERY LTD (MIDDLESTONE MOOR).
Dedicated Schools Grant BG0015,DSG Early Years Block,Transfer Payments,510030,School Children,07/01/2022,3953055-28995,"20,200.95",RAINBOW NURSERY LTD (MIDDLESTONE MOOR).
Neighbourhoods and Climate Change,Technical Services CM0300,Supplies and Services,304221,Equipment and Materials,07/01/2022,3953056-10000/211218,"32,914.70",RAINTON CONSTRUCTION LTD.
Adult and Health Services,Head of Adults,Transport,230005,Contract Hire,07/01/2022,3953058-RDS073,768.00,RDS TAXI.
Neighbourhoods and Climate Change,Environmental Services,Supplies and Services,338066,Services,07/01/2022,3952905-BURSARY-DEC2021,847.78,REDACTED - PAYMENT TO INDIVIDUAL
Children and Young Peoples Services,Head of Education and Skills,Supplies and Services,338027,Services,07/01/2022,3952962-CAS-01-2022-018,"3,040.63",REDACTED - PAYMENT TO INDIVIDUAL
Regeneration Economy and Growth,Culture Sport and Tourism,Supplies and Services,384302,Miscellaneous Expenses,07/01/2022,3952801-805,607.50,REDACTED - PAYMENT TO INDIVIDUAL
Regeneration Economy and Growth,Culture Sport and Tourism,Supplies and Services,384302,Miscellaneous Expenses,07/01/2022,3952999-DEC202103,525.00,REDACTED - PAYMENT TO INDIVIDUAL
Children and Young Peoples Services,Head of Education and Skills,Transport,230034,Contract Hire,07/01/2022,3952983-130/2021,897.00,REDACTED - PAYMENT TO INDIVIDUAL
Children and Young Peoples Services,Head of Education and Skills,Transport,230034,Contract Hire,07/01/2022,3952984-4470-DEC21,840.00,REDACTED - PAYMENT TO INDIVIDUAL
Children and Young Peoples Services,Head of Education and Skills,Transport,230034,Contract Hire,07/01/2022,3952984-4470-OCT21,"1,166.70",REDACTED - PAYMENT TO INDIVIDUAL
Children and Young Peoples Services,Head of Education and Skills,Transport,230034,Contract Hire,07/01/2022,3952984-4423-DEC21,"1,643.33",REDACTED - PAYMENT TO INDIVIDUAL
Children and Young Peoples Services,Head of Education and Skills,Transport,230034,Contract Hire,07/01/2022,3952980-KDK/NOV21DEC212,946.66,REDACTED - PAYMENT TO INDIVIDUAL
Children and Young Peoples Services,Head of Education and Skills,Transport,230034,Contract Hire,07/01/2022,3952983-129/2021,767.00,REDACTED - PAYMENT TO INDIVIDUAL
Children and Young Peoples Services,Head of Education and Skills,Transport,230034,Contract Hire,07/01/2022,3953131-TBT0004,"1,040.00",REDACTED - PAYMENT TO INDIVIDUAL
Children and Young Peoples Services,Head of Education and Skills,Transport,230034,Contract Hire,07/01/2022,3952983-128/2021,844.20,REDACTED - PAYMENT TO INDIVIDUAL
Children and Young Peoples Services,Head of Education and Skills,Transport,230035,Contract Hire,07/01/2022,3952923-0004DEC212,952.50,REDACTED - PAYMENT TO INDIVIDUAL
Children and Young Peoples Services,Head of Education and Skills,Transport,230007,Contract Hire,07/01/2022,3953095-3406,836.00,REDACTED - PAYMENT TO INDIVIDUAL
Children and Young Peoples Services,Head of Education and Skills,Transport,230007,Contract Hire,07/01/2022,3952909-2021-48,"2,080.00",REDACTED - PAYMENT TO INDIVIDUAL
Children and Young Peoples Services,Head of Education and Skills,Transport,230007,Contract Hire,07/01/2022,3953095-3405,"1,144.00",REDACTED - PAYMENT TO INDIVIDUAL
Children and Young Peoples Services,Head of Education and Skills,Transport,230007,Contract Hire,07/01/2022,3952979-234,903.50,REDACTED - PAYMENT TO INDIVIDUAL
Children and Young Peoples Services,Head of Education and Skills,Transport,230007,Contract Hire,07/01/2022,3952901-6117,"1,003.99",REDACTED - PAYMENT TO INDIVIDUAL
Children and Young Peoples Services,Head of Education and Skills,Transport,230007,Contract Hire,07/01/2022,3953162-17-DEC21,715.00,REDACTED - PAYMENT TO INDIVIDUAL
Children and Young Peoples Services,Head of Education and Skills,Transport,230007,Contract Hire,07/01/2022,3953067-1600,"3,887.00",REDACTED - PAYMENT TO INDIVIDUAL
Children and Young Peoples Services,Head of Education and Skills,Transport,230007,Contract Hire,07/01/2022,3953067-1601,"2,567.50",REDACTED - PAYMENT TO INDIVIDUAL
Children and Young Peoples Services,Head of Education and Skills,Transport,230007,Contract Hire,07/01/2022,3953067-1602,"2,502.50",REDACTED - PAYMENT TO INDIVIDUAL
Children and Young Peoples Services,Head of Education and Skills,Transport,230009,Contract Hire,07/01/2022,3952985-224,978.38,REDACTED - PAYMENT TO INDIVIDUAL
Children and Young Peoples Services,Head of Education and Skills,Transport,230009,Contract Hire,07/01/2022,3952980-KDK/NOV21DEC21,889.35,REDACTED - PAYMENT TO INDIVIDUAL
Children and Young Peoples Services,Head of Education and Skills,Transport,230006,Contract Hire,07/01/2022,3953095-3404,609.00,REDACTED - PAYMENT TO INDIVIDUAL
Children and Young Peoples Services,Head of Education and Skills,Transport,230006,Contract Hire,07/01/2022,3953162-16-DEC21,690.00,REDACTED - PAYMENT TO INDIVIDUAL
Children and Young Peoples Services,Head of Education and Skills,Transport,230006,Contract Hire,07/01/2022,3952983-135/2021,980.00,REDACTED - PAYMENT TO INDIVIDUAL
Children and Young Peoples Services,Head of Education and Skills,Transport,230006,Contract Hire,07/01/2022,3952983-136/2021,893.16,REDACTED - PAYMENT TO INDIVIDUAL
Children and Young Peoples Services,Head of Education and Skills,Transport,230006,Contract Hire,07/01/2022,3952983-137/2021,"1,399.24",REDACTED - PAYMENT TO INDIVIDUAL
Children and Young Peoples Services,Head of Education and Skills,Transport,230010,Contract Hire,07/01/2022,3952909-2021-49,"2,080.00",REDACTED - PAYMENT TO INDIVIDUAL
Children and Young Peoples Services,Head of Education and Skills,Transport,230010,Contract Hire,07/01/2022,3952923-0004DEC213,"1,106.65",REDACTED - PAYMENT TO INDIVIDUAL
Children and Young Peoples Services,Head of Education and Skills,Transport,230008,Contract Hire,07/01/2022,3952909-2021-45,"2,493.78",REDACTED - PAYMENT TO INDIVIDUAL
Children and Young Peoples Services,Head of Education and Skills,Transport,230008,Contract Hire,07/01/2022,3952916-17/1221G,"1,656.00",REDACTED - PAYMENT TO INDIVIDUAL
Children and Young Peoples Services,Head of Education and Skills,Transport,230008,Contract Hire,07/01/2022,3952930-S020-NOV21,"2,797.08",REDACTED - PAYMENT TO INDIVIDUAL
Children and Young Peoples Services,Head of Education and Skills,Transport,230008,Contract Hire,07/01/2022,3952909-2021-47,"2,470.00",REDACTED - PAYMENT TO INDIVIDUAL
Children and Young Peoples Services,Head of Education and Skills,Transport,230008,Contract Hire,07/01/2022,3952979-235,"1,457.30",REDACTED - PAYMENT TO INDIVIDUAL
Children and Young Peoples Services,Head of Education and Skills,Transport,230008,Contract Hire,07/01/2022,3952909-2021-42,"2,080.00",REDACTED - PAYMENT TO INDIVIDUAL
Children and Young Peoples Services,Head of Education and Skills,Transport,230008,Contract Hire,07/01/2022,3952909-2021-44,"1,300.00",REDACTED - PAYMENT TO INDIVIDUAL
Children and Young Peoples Services,Head of Education and Skills,Transport,230008,Contract Hire,07/01/2022,3953093-A043-DEC21,"1,040.00",REDACTED - PAYMENT TO INDIVIDUAL
Children and Young Peoples Services,Head of Education and Skills,Transport,230008,Contract Hire,07/01/2022,3952985-229,"1,274.00",REDACTED - PAYMENT TO INDIVIDUAL
Children and Young Peoples Services,Head of Education and Skills,Transport,230008,Contract Hire,07/01/2022,3952987-108,"1,362.48",REDACTED - PAYMENT TO INDIVIDUAL
Children and Young Peoples Services,Head of Education and Skills,Transport,230008,Contract Hire,07/01/2022,3952923-0035,"1,582.56",REDACTED - PAYMENT TO INDIVIDUAL
Children and Young Peoples Services,Head of Education and Skills,Transport,230008,Contract Hire,07/01/2022,3952901-6120-17/12/21,"1,138.28",REDACTED - PAYMENT TO INDIVIDUAL
Children and Young Peoples Services,Head of Education and Skills,Transport,230008,Contract Hire,07/01/2022,3952985-231,"1,490.06",REDACTED - PAYMENT TO INDIVIDUAL
Children and Young Peoples Services,Head of Education and Skills,Transport,230008,Contract Hire,07/01/2022,3952986-3203DEC21,"1,625.00",REDACTED - PAYMENT TO INDIVIDUAL
Children and Young Peoples Services,Head of Education and Skills,Transport,230008,Contract Hire,07/01/2022,3952985-226,"1,274.00",REDACTED - PAYMENT TO INDIVIDUAL
Neighbourhoods and Climate Change,Community Protection,Supplies and Services,338045,Services,07/01/2022,3952981-112123,"25,000.00",REDACTED - PAYMENT TO INDIVIDUAL
Dedicated Schools Grant BG0015,DSG Early Years Block,Transfer Payments,510032,School Children,07/01/2022,3952743-28794,650.92,REDACTED - PAYMENT TO INDIVIDUAL
Dedicated Schools Grant BG0015,DSG Early Years Block,Transfer Payments,510032,School Children,07/01/2022,3952745-28795,976.39,REDACTED - PAYMENT TO INDIVIDUAL
Dedicated Schools Grant BG0015,DSG Early Years Block,Transfer Payments,510032,School Children,07/01/2022,3952766-28800,"1,627.31",REDACTED - PAYMENT TO INDIVIDUAL
Dedicated Schools Grant BG0015,DSG Early Years Block,Transfer Payments,510032,School Children,07/01/2022,3952785-28806,650.92,REDACTED - PAYMENT TO INDIVIDUAL
Dedicated Schools Grant BG0015,DSG Early Years Block,Transfer Payments,510032,School Children,07/01/2022,3952876-28832,976.39,REDACTED - PAYMENT TO INDIVIDUAL
Dedicated Schools Grant BG0015,DSG Early Years Block,Transfer Payments,510032,School Children,07/01/2022,3952877-28833,650.92,REDACTED - PAYMENT TO INDIVIDUAL
Dedicated Schools Grant BG0015,DSG Early Years Block,Transfer Payments,510032,School Children,07/01/2022,3952879-28835,650.92,REDACTED - PAYMENT TO INDIVIDUAL
Dedicated Schools Grant BG0015,DSG Early Years Block,Transfer Payments,510032,School Children,07/01/2022,3952919-28817,976.39,REDACTED - PAYMENT TO INDIVIDUAL
Dedicated Schools Grant BG0015,DSG Early Years Block,Transfer Payments,510032,School Children,07/01/2022,3952920-28838,976.39,REDACTED - PAYMENT TO INDIVIDUAL
Dedicated Schools Grant BG0015,DSG Early Years Block,Transfer Payments,510032,School Children,07/01/2022,3952929-28843,976.39,REDACTED - PAYMENT TO INDIVIDUAL
Dedicated Schools Grant BG0015,DSG Early Years Block,Transfer Payments,510032,School Children,07/01/2022,3952943-28848,650.92,REDACTED - PAYMENT TO INDIVIDUAL
Dedicated Schools Grant BG0015,DSG Early Years Block,Transfer Payments,510032,School Children,07/01/2022,3952953-28854,650.92,REDACTED - PAYMENT TO INDIVIDUAL
Dedicated Schools Grant BG0015,DSG Early Years Block,Transfer Payments,510032,School Children,07/01/2022,3952989-28799,650.92,REDACTED - PAYMENT TO INDIVIDUAL
Dedicated Schools Grant BG0015,DSG Early Years Block,Transfer Payments,510032,School Children,07/01/2022,3952991-28818,650.92,REDACTED - PAYMENT TO INDIVIDUAL
Dedicated Schools Grant BG0015,DSG Early Years Block,Transfer Payments,510032,School Children,07/01/2022,3952998-28842,650.92,REDACTED - PAYMENT TO INDIVIDUAL
Dedicated Schools Grant BG0015,DSG Early Years Block,Transfer Payments,510032,School Children,07/01/2022,3953003-28856,"1,301.85",REDACTED - PAYMENT TO INDIVIDUAL
Dedicated Schools Grant BG0015,DSG Early Years Block,Transfer Payments,510032,School Children,07/01/2022,3953030-28861,650.92,REDACTED - PAYMENT TO INDIVIDUAL
Dedicated Schools Grant BG0015,DSG Early Years Block,Transfer Payments,510032,School Children,07/01/2022,3953052-28864,650.92,REDACTED - PAYMENT TO INDIVIDUAL
Dedicated Schools Grant BG0015,DSG Early Years Block,Transfer Payments,510032,School Children,07/01/2022,3953053-28865,650.92,REDACTED - PAYMENT TO INDIVIDUAL
Dedicated Schools Grant BG0015,DSG Early Years Block,Transfer Payments,510032,School Children,07/01/2022,3953172-28883,650.92,REDACTED - PAYMENT TO INDIVIDUAL
Dedicated Schools Grant BG0015,DSG Early Years Block,Transfer Payments,510030,School Children,07/01/2022,3952742-28891,"1,088.92",REDACTED - PAYMENT TO INDIVIDUAL
Dedicated Schools Grant BG0015,DSG Early Years Block,Transfer Payments,510030,School Children,07/01/2022,3952744-28893,987.52,REDACTED - PAYMENT TO INDIVIDUAL
Dedicated Schools Grant BG0015,DSG Early Years Block,Transfer Payments,510030,School Children,07/01/2022,3952745-28894,740.64,REDACTED - PAYMENT TO INDIVIDUAL
Dedicated Schools Grant BG0015,DSG Early Years Block,Transfer Payments,510030,School Children,07/01/2022,3952766-28898,"3,542.96",REDACTED - PAYMENT TO INDIVIDUAL
Dedicated Schools Grant BG0015,DSG Early Years Block,Transfer Payments,510030,School Children,07/01/2022,3952784-28905,512.32,REDACTED - PAYMENT TO INDIVIDUAL
Dedicated Schools Grant BG0015,DSG Early Years Block,Transfer Payments,510030,School Children,07/01/2022,3952842-28934,731.36,REDACTED - PAYMENT TO INDIVIDUAL
Dedicated Schools Grant BG0015,DSG Early Years Block,Transfer Payments,510030,School Children,07/01/2022,3952858-28938,864.19,REDACTED - PAYMENT TO INDIVIDUAL
Dedicated Schools Grant BG0015,DSG Early Years Block,Transfer Payments,510030,School Children,07/01/2022,3952868-28974,"5,635.57",REDACTED - PAYMENT TO INDIVIDUAL
Dedicated Schools Grant BG0015,DSG Early Years Block,Transfer Payments,510030,School Children,07/01/2022,3952876-28945,"1,012.27",REDACTED - PAYMENT TO INDIVIDUAL
Dedicated Schools Grant BG0015,DSG Early Years Block,Transfer Payments,510030,School Children,07/01/2022,3952877-28946,"1,024.65",REDACTED - PAYMENT TO INDIVIDUAL
Dedicated Schools Grant BG0015,DSG Early Years Block,Transfer Payments,510030,School Children,07/01/2022,3952879-28947,"1,311.75",REDACTED - PAYMENT TO INDIVIDUAL
Dedicated Schools Grant BG0015,DSG Early Years Block,Transfer Payments,510030,School Children,07/01/2022,3952902-28951,"1,012.27",REDACTED - PAYMENT TO INDIVIDUAL
Dedicated Schools Grant BG0015,DSG Early Years Block,Transfer Payments,510030,School Children,07/01/2022,3952906-28953,722.08,REDACTED - PAYMENT TO INDIVIDUAL
Dedicated Schools Grant BG0015,DSG Early Years Block,Transfer Payments,510030,School Children,07/01/2022,3952907-28954,518.51,REDACTED - PAYMENT TO INDIVIDUAL
Dedicated Schools Grant BG0015,DSG Early Years Block,Transfer Payments,510030,School Children,07/01/2022,3952919-28923,"9,252.21",REDACTED - PAYMENT TO INDIVIDUAL
Dedicated Schools Grant BG0015,DSG Early Years Block,Transfer Payments,510030,School Children,07/01/2022,3952927-28960,"2,249.77",REDACTED - PAYMENT TO INDIVIDUAL
Dedicated Schools Grant BG0015,DSG Early Years Block,Transfer Payments,510030,School Children,07/01/2022,3952933-28962,"1,814.79",REDACTED - PAYMENT TO INDIVIDUAL
Dedicated Schools Grant BG0015,DSG Early Years Block,Transfer Payments,510030,School Children,07/01/2022,3952943-28970,731.36,REDACTED - PAYMENT TO INDIVIDUAL
Dedicated Schools Grant BG0015,DSG Early Years Block,Transfer Payments,510030,School Children,07/01/2022,3952953-28976,"1,536.97",REDACTED - PAYMENT TO INDIVIDUAL
Dedicated Schools Grant BG0015,DSG Early Years Block,Transfer Payments,510030,School Children,07/01/2022,3952960-28980,512.32,REDACTED - PAYMENT TO INDIVIDUAL
Dedicated Schools Grant BG0015,DSG Early Years Block,Transfer Payments,510030,School Children,07/01/2022,3952963-28981,"1,462.72",REDACTED - PAYMENT TO INDIVIDUAL
Dedicated Schools Grant BG0015,DSG Early Years Block,Transfer Payments,510030,School Children,07/01/2022,3952970-28982,962.77,REDACTED - PAYMENT TO INDIVIDUAL
Dedicated Schools Grant BG0015,DSG Early Years Block,Transfer Payments,510030,School Children,07/01/2022,3953003-28983,"3,370.33",REDACTED - PAYMENT TO INDIVIDUAL
Dedicated Schools Grant BG0015,DSG Early Years Block,Transfer Payments,510030,School Children,07/01/2022,3953035-28990,"1,836.45",REDACTED - PAYMENT TO INDIVIDUAL
Dedicated Schools Grant BG0015,DSG Early Years Block,Transfer Payments,510030,School Children,07/01/2022,3953053-28994,"1,771.48",REDACTED - PAYMENT TO INDIVIDUAL
Dedicated Schools Grant BG0015,DSG Early Years Block,Transfer Payments,510030,School Children,07/01/2022,3953077-29000,768.49,REDACTED - PAYMENT TO INDIVIDUAL
Dedicated Schools Grant BG0015,DSG Early Years Block,Transfer Payments,510030,School Children,07/01/2022,3953078-29001,987.52,REDACTED - PAYMENT TO INDIVIDUAL
Dedicated Schools Grant BG0015,DSG Early Years Block,Transfer Payments,510030,School Children,07/01/2022,3953080-29002,975.15,REDACTED - PAYMENT TO INDIVIDUAL
Dedicated Schools Grant BG0015,DSG Early Years Block,Transfer Payments,510030,School Children,07/01/2022,3953136-29022,987.52,REDACTED - PAYMENT TO INDIVIDUAL
Dedicated Schools Grant BG0015,DSG Schools Block,Transport,230031,Contract Hire,07/01/2022,3952746-00273,"7,303.50",REDACTED - PAYMENT TO INDIVIDUAL
Adult and Health Services,Head of Adults,Transport,230005,Contract Hire,07/01/2022,3953043-0021,"1,210.00",REDACTED - PAYMENT TO INDIVIDUAL
Adult and Health Services,Head of Adults,Transport,230005,Contract Hire,07/01/2022,3952894-608-NCL001,"2,415.00",REDACTED - PAYMENT TO INDIVIDUAL
Dedicated Schools Grant BG0015,DSG Early Years Block,Transfer Payments,510030,School Children,07/01/2022,3953062-28997,"18,364.50",RIBBON ACADEMY TRUST.
Dedicated Schools Grant BG0015,DSG Early Years Block,Transfer Payments,510032,School Children,07/01/2022,3953063-28868,"6,834.71",RIBBON DAYCARE.
Dedicated Schools Grant BG0015,DSG Early Years Block,Transfer Payments,510030,School Children,07/01/2022,3953063-28998,"9,199.74",RIBBON DAYCARE.
Neighbourhoods and Climate Change,Environmental Services,Transport,230710,Contract Hire,07/01/2022,3953064-4745,595.54,RICHARD C BIRCHER (HOLDINGS) LTD.
Neighbourhoods and Climate Change,Environmental Services,Transport,230710,Contract Hire,07/01/2022,3953064-4746,"2,640.92",RICHARD C BIRCHER (HOLDINGS) LTD.
Dedicated Schools Grant BG0015,DSG Early Years Block,Transfer Payments,510030,School Children,07/01/2022,3953072-28999,"2,623.50",SACRISTON ACADEMY - EARLY YEARS T/A PRIVATE NURSERY.
Regeneration Economy and Growth,Business Durham CL0850,Premises,108099,Service Repairs and Maintenance,07/01/2022,3953074-15119,503.25,SAFEGUARD SECURITY (NE) LTD.
Dedicated Schools Grant BG0015,DSG Early Years Block,Transfer Payments,510032,School Children,07/01/2022,3953083-28872,"1,627.31",SEASIDE LANE NURSERY.
Dedicated Schools Grant BG0015,DSG Early Years Block,Transfer Payments,510030,School Children,07/01/2022,3953083-29003,"3,111.07",SEASIDE LANE NURSERY.
Dedicated Schools Grant BG0015,DSG Early Years Block,Transfer Payments,510030,School Children,07/01/2022,3953085-29004,"1,467.80",SEDGEFIELD OUT OF SCHOOL FUN CLUB.
Neighbourhoods and Climate Change,Technical Services CM0300,Supplies and Services,372009,Subscriptions E372,07/01/2022,3953087-WWB1167397,"4,625.00",SGS UNITED KINGDOM LTD.
Regeneration Economy and Growth,Corporate Property and Land,Construction work A908,908105,Construction work,07/01/2022,3953088-INV-2707,900.00,SHADBOLT ENVIRONMENTAL LLP.
Children and Young Peoples Services,Head of Education and Skills,Transport,230008,Contract Hire,07/01/2022,3953094-211202,"1,734.48",SHOTTON PRIVATE HIRE.
Dedicated Schools Grant BG0015,DSG Early Years Block,Transfer Payments,510032,School Children,07/01/2022,3953101-28801,976.39,STANLEY LEARNING PARTNERSHIP.
Dedicated Schools Grant BG0015,DSG Early Years Block,Transfer Payments,510030,School Children,07/01/2022,3953101-28899,"3,410.55",STANLEY LEARNING PARTNERSHIP.
Dedicated Schools Grant BG0015,DSG Early Years Block,Transfer Payments,510030,School Children,07/01/2022,3953102-29007,"6,713.44",STANLEY LEARNING PARTNERSHIP.
Dedicated Schools Grant BG0015,DSG Early Years Block,Transfer Payments,510030,School Children,07/01/2022,3953103-29012,"8,056.12",STEPHENSON WAY ACADEMY & NURSERY SCHOOL.
Dedicated Schools Grant BG0015,DSG Early Years Block,Transfer Payments,510032,School Children,07/01/2022,3953104-28874,650.92,STEPPING STONES CO-OP NURSERY LTD.
Dedicated Schools Grant BG0015,DSG Early Years Block,Transfer Payments,510030,School Children,07/01/2022,3953104-29013,"7,406.44",STEPPING STONES CO-OP NURSERY LTD.
Dedicated Schools Grant BG0015,DSG Early Years Block,Transfer Payments,510032,School Children,07/01/2022,3953105-28875,650.92,STEPPING STONES DAY NURSERY (DURHAM).
Dedicated Schools Grant BG0015,DSG Early Years Block,Transfer Payments,510030,School Children,07/01/2022,3953105-29014,"2,888.32",STEPPING STONES DAY NURSERY (DURHAM).
Children and Young Peoples Services,Head of Education and Skills,Supplies and Services,338027,Services,07/01/2022,3953109-2807029913,"1,194.00",SUNDERLAND CITY COUNCIL.
Dedicated Schools Grant BG0015,DSG Early Years Block,Transfer Payments,510032,School Children,07/01/2022,3953110-28878,"4,231.01",SUNSHINE DAY NURSERY LTD.
Dedicated Schools Grant BG0015,DSG Early Years Block,Transfer Payments,510032,School Children,07/01/2022,3953111-28877,"6,183.79",SUNSHINE DAY NURSERY LTD.
Dedicated Schools Grant BG0015,DSG Early Years Block,Transfer Payments,510032,School Children,07/01/2022,3953112-28876,"4,881.94",SUNSHINE DAY NURSERY LTD.
Dedicated Schools Grant BG0015,DSG Early Years Block,Transfer Payments,510030,School Children,07/01/2022,3953110-29017,"9,182.25",SUNSHINE DAY NURSERY LTD.
Dedicated Schools Grant BG0015,DSG Early Years Block,Transfer Payments,510030,School Children,07/01/2022,3953111-29016,"12,889.80",SUNSHINE DAY NURSERY LTD.
Dedicated Schools Grant BG0015,DSG Early Years Block,Transfer Payments,510030,School Children,07/01/2022,3953112-29015,"16,722.95",SUNSHINE DAY NURSERY LTD.
Children and Young Peoples Services,Head of Education and Skills,Transport,230008,Contract Hire,07/01/2022,3953119-B1096,"1,200.00",TALBOTS TRAVEL LTD.
Regeneration Economy and Growth,Corporate Property and Land,Third Party Payments,430100,Rendered by Private Contractors,07/01/2022,3953122-T21134-1,"79,541.04",TECHNIC CONCRETE FLOORS LTD.
Regeneration Economy and Growth,Corporate Property and Land,Third Party Payments,430100,Rendered by Private Contractors,07/01/2022,3953122-T21134-2,"76,816.91",TECHNIC CONCRETE FLOORS LTD.
Dedicated Schools Grant BG0015,DSG Early Years Block,Transfer Payments,510032,School Children,07/01/2022,3953126-28879,"4,231.01",THE LAURELS CHILD CARE COMPANY LTD.
Dedicated Schools Grant BG0015,DSG Early Years Block,Transfer Payments,510030,School Children,07/01/2022,3953126-29020,"7,083.45",THE LAURELS CHILD CARE COMPANY LTD.
Dedicated Schools Grant BG0015,DSG Early Years Block,Transfer Payments,510032,School Children,07/01/2022,3953127-28880,"5,207.40",THE NURSERY.
Dedicated Schools Grant BG0015,DSG Early Years Block,Transfer Payments,510030,School Children,07/01/2022,3953127-29021,"14,259.09",THE NURSERY.
Adult and Health Services,Head of Adults,Transport,230005,Contract Hire,07/01/2022,3953128-233,600.00,THE TAXI COMPANY (MURTON) LTD.
Dedicated Schools Grant BG0015,DSG Early Years Block,Transfer Payments,510032,School Children,07/01/2022,3953134-28836,"5,532.86",TM NURSERY ENTERPRISES LTD T/A JACK IN THE BOX DAYCARE.
Dedicated Schools Grant BG0015,DSG Early Years Block,Transfer Payments,510030,School Children,07/01/2022,3953134-28950,"5,509.35",TM NURSERY ENTERPRISES LTD T/A JACK IN THE BOX DAYCARE.
Dedicated Schools Grant BG0015,DSG Early Years Block,Transfer Payments,510032,School Children,07/01/2022,3953138-28881,650.92,TRIMDON`S LITTLE TYKES LTD.
Dedicated Schools Grant BG0015,DSG Early Years Block,Transfer Payments,510030,School Children,07/01/2022,3953138-29024,512.32,TRIMDON`S LITTLE TYKES LTD.
Resources BK0010,Legal & Democratic Services,Supplies and Services,338042,Services,07/01/2022,3953139-291607/INVEM52,500.00,TRINITY CHAMBERS.
Dedicated Schools Grant BG0015,DSG Early Years Block,Transfer Payments,510030,School Children,07/01/2022,3953141-29006,"4,416.22",TUDHOE LEARNING TRUST T/A SOUTH HETTON PRIMARY SCHOOL.
Regeneration Economy and Growth,Corporate Property and Land,Third Party Payments,430100,Rendered by Private Contractors,07/01/2022,3953144-DCC/GT/241,"1,260.00",TYNE VALLEY FLOORING & CARPETS.
Neighbourhoods and Climate Change,Technical Services CM0300,Supplies and Services,304221,Equipment and Materials,07/01/2022,3953145-228962,"1,068.22",TYNEDALE ROADSTONE LTD.
Neighbourhoods and Climate Change,Technical Services CM0300,Supplies and Services,304221,Equipment and Materials,07/01/2022,3953145-229069,997.93,TYNEDALE ROADSTONE LTD.
Neighbourhoods and Climate Change,Technical Services CM0300,Supplies and Services,304221,Equipment and Materials,07/01/2022,3953145-229070,"1,073.17",TYNEDALE ROADSTONE LTD.
Neighbourhoods and Climate Change,Technical Services CM0300,Supplies and Services,304221,Equipment and Materials,07/01/2022,3953145-229148,760.33,TYNEDALE ROADSTONE LTD.
Neighbourhoods and Climate Change,Technical Services CM0300,Supplies and Services,304221,Equipment and Materials,07/01/2022,3953145-229149,"1,079.11",TYNEDALE ROADSTONE LTD.
Neighbourhoods and Climate Change,Technical Services CM0300,Supplies and Services,304221,Equipment and Materials,07/01/2022,3953145-229153,"1,018.72",TYNEDALE ROADSTONE LTD.
Neighbourhoods and Climate Change,Technical Services CM0300,Supplies and Services,304221,Equipment and Materials,07/01/2022,3953145-229154,"1,087.03",TYNEDALE ROADSTONE LTD.
Neighbourhoods and Climate Change,Technical Services CM0300,Supplies and Services,304221,Equipment and Materials,07/01/2022,3953145-229223,862.30,TYNEDALE ROADSTONE LTD.
Neighbourhoods and Climate Change,Technical Services CM0300,Supplies and Services,304221,Equipment and Materials,07/01/2022,3953145-229224,"1,100.90",TYNEDALE ROADSTONE LTD.
Neighbourhoods and Climate Change,Technical Services CM0300,Supplies and Services,304221,Equipment and Materials,07/01/2022,3953145-229270,961.30,TYNEDALE ROADSTONE LTD.
Neighbourhoods and Climate Change,Technical Services CM0300,Supplies and Services,304221,Equipment and Materials,07/01/2022,3953145-229272,846.46,TYNEDALE ROADSTONE LTD.
Neighbourhoods and Climate Change,Technical Services CM0300,Supplies and Services,304221,Equipment and Materials,07/01/2022,3953145-229348,"1,080.19",TYNEDALE ROADSTONE LTD.
Neighbourhoods and Climate Change,Technical Services CM0300,Supplies and Services,304221,Equipment and Materials,07/01/2022,3953145-229353,608.86,TYNEDALE ROADSTONE LTD.
Neighbourhoods and Climate Change,Technical Services CM0300,Supplies and Services,304221,Equipment and Materials,07/01/2022,3953145-229354,"1,081.09",TYNEDALE ROADSTONE LTD.
Neighbourhoods and Climate Change,Technical Services CM0300,Supplies and Services,304221,Equipment and Materials,07/01/2022,3953145-229358,"1,060.30",TYNEDALE ROADSTONE LTD.
Neighbourhoods and Climate Change,Technical Services CM0300,Supplies and Services,304221,Equipment and Materials,07/01/2022,3953145-229359,"1,100.90",TYNEDALE ROADSTONE LTD.
Regeneration Economy and Growth,Business Durham CL0850,Third Party Payments,460305,Contract Payments,07/01/2022,3953146-RED-01-2022-030,"8,908.63",UMI COMMERCIAL LTD.
Neighbourhoods and Climate Change,Technical Services CM0300,Third Party Payments,430100,Rendered by Private Contractors,07/01/2022,3953147-10014802,"2,150.00",UNIVERSAL SEALANTS (UK) LTD.
Dedicated Schools Grant BG0015,DSG Early Years Block,Transfer Payments,510032,School Children,07/01/2022,3953148-28820,"1,627.31",UNIVERSITY OF DURHAM DAY NURSERY.
Dedicated Schools Grant BG0015,DSG Early Years Block,Transfer Payments,510030,School Children,07/01/2022,3953148-28931,"10,246.50",UNIVERSITY OF DURHAM DAY NURSERY.
Dedicated Schools Grant BG0015,DSG Early Years Block,Transfer Payments,510032,School Children,07/01/2022,3953151-28882,"7,811.10",USHAW MOOR DAYCARE.
Dedicated Schools Grant BG0015,DSG Early Years Block,Transfer Payments,510030,School Children,07/01/2022,3953151-29025,"3,185.32",USHAW MOOR DAYCARE.
Regeneration Economy and Growth,Culture Sport and Tourism,Supplies and Services,342051,Computers and Communications,07/01/2022,3953152-7501402017,"5,109.00",VERIFONE (UK) LTD.
Regeneration Economy and Growth,Culture Sport and Tourism,Supplies and Services,342051,Computers and Communications,07/01/2022,3953152-7501401524,"1,572.00",VERIFONE (UK) LTD.
Regeneration Economy and Growth,Culture Sport and Tourism,Supplies and Services,342051,Computers and Communications,07/01/2022,3953152-7501402071,786.00,VERIFONE (UK) LTD.
Dedicated Schools Grant BG0015,DSG Early Years Block,Transfer Payments,510030,School Children,07/01/2022,3953153-29027,"6,444.90",VICTORIA LANE ACADEMY.
Children and Young Peoples Services,Head of Education and Skills,Supplies and Services,338078,Services,07/01/2022,3953160-INV-45921,605.00,VISTECH SERVICES LTD.
Regeneration Economy and Growth,Corporate Property and Land,Third Party Payments,430100,Rendered by Private Contractors,07/01/2022,3953164-7123,"1,932.28",WARREN (ELECTRICAL) LTD.
Regeneration Economy and Growth,Corporate Property and Land,Third Party Payments,430100,Rendered by Private Contractors,07/01/2022,3953164-7124,"1,538.48",WARREN (ELECTRICAL) LTD.
Regeneration Economy and Growth,Development and Housing,Premises,106080,Centrally Controlled Rep and Maint,07/01/2022,3953166-16543,"8,141.01",WATERMAN ENVIRONMENTAL SERVICES.
Regeneration Economy and Growth,Corporate Property and Land,Premises,106083,Centrally Controlled Rep and Maint,07/01/2022,3953166-16542,718.00,WATERMAN ENVIRONMENTAL SERVICES.
Dedicated Schools Grant BG0015,DSG Early Years Block,Transfer Payments,510032,School Children,07/01/2022,3953168-28812,"4,881.94",WAYMAN DEVELOPMENTS LTD T/A CHILDSPLAY PRIVATE NURSERY.
Dedicated Schools Grant BG0015,DSG Early Years Block,Transfer Payments,510032,School Children,07/01/2022,3953169-28811,"4,881.94",WAYMAN DEVELOPMENTS LTD T/A CHILDSPLAY PRIVATE NURSERY.
Dedicated Schools Grant BG0015,DSG Early Years Block,Transfer Payments,510030,School Children,07/01/2022,3953168-28913,"13,320.45",WAYMAN DEVELOPMENTS LTD T/A CHILDSPLAY PRIVATE NURSERY.
Dedicated Schools Grant BG0015,DSG Early Years Block,Transfer Payments,510030,School Children,07/01/2022,3953169-28912,"8,814.71",WAYMAN DEVELOPMENTS LTD T/A CHILDSPLAY PRIVATE NURSERY.
Neighbourhoods and Climate Change,Environmental Services,Supplies and Services,338066,Services,07/01/2022,3953170-414,845.00,WC STONES & SON.
Dedicated Schools Grant BG0015,DSG Early Years Block,Transfer Payments,510032,School Children,07/01/2022,3953174-28884,"5,532.86",WHEATLEY HILL COMMUNITY NURSERY LTD.
Dedicated Schools Grant BG0015,DSG Early Years Block,Transfer Payments,510030,School Children,07/01/2022,3953174-29031,"9,478.01",WHEATLEY HILL COMMUNITY NURSERY LTD.
Dedicated Schools Grant BG0015,DSG Early Years Block,Transfer Payments,510032,School Children,07/01/2022,3953178-28885,"12,367.57",WINGATE COMMUNITY CHILDCARE LTD.
Regeneration Economy and Growth,Culture Sport and Tourism,Supplies and Services,384199,Miscellaneous Expenses,07/01/2022,3953181-WG48086,675.00,YANDELL PUBLISHING LTD.
Dedicated Schools Grant BG0015,DSG Early Years Block,Transfer Payments,510032,School Children,07/01/2022,3953182-28886,"1,952.77",YORK HOUSE NURSERY.
Dedicated Schools Grant BG0015,DSG Early Years Block,Transfer Payments,510030,School Children,07/01/2022,3953182-29032,"15,216.30",YORK HOUSE NURSERY.
Neighbourhoods and Climate Change,Environmental Services,Transport,215005,Running Costs of Vehicles,07/01/2022,3953184-850858,"13,559.79",YOUR NRG LTD.
Neighbourhoods and Climate Change,Environmental Services,Transport,215005,Running Costs of Vehicles,07/01/2022,3953184-852857,"15,764.00",YOUR NRG LTD.
Neighbourhoods and Climate Change,Environmental Services,Transport,215005,Running Costs of Vehicles,07/01/2022,3953184-853359,"18,062.68",YOUR NRG LTD.
Neighbourhoods and Climate Change,Environmental Services,Transport,215005,Running Costs of Vehicles,07/01/2022,3953184-851976,"11,327.00",YOUR NRG LTD.
Neighbourhoods and Climate Change,Environmental Services,Transport,215005,Running Costs of Vehicles,07/01/2022,3953184-849502,"9,061.60",YOUR NRG LTD.
Neighbourhoods and Climate Change,Environmental Services,Transport,215005,Running Costs of Vehicles,07/01/2022,3953184-852862,"4,534.00",YOUR NRG LTD.
Neighbourhoods and Climate Change,Environmental Services,Transport,215005,Running Costs of Vehicles,07/01/2022,3953184-849505,"2,326.03",YOUR NRG LTD.
Neighbourhoods and Climate Change,Environmental Services,Transport,215005,Running Costs of Vehicles,07/01/2022,3953184-852135,"3,980.20",YOUR NRG LTD.
Neighbourhoods and Climate Change,Environmental Services,Transport,215022,Running Costs of Vehicles,07/01/2022,3953184-852860,"1,354.80",YOUR NRG LTD.
Neighbourhoods and Climate Change,Environmental Services,Transport,215022,Running Costs of Vehicles,07/01/2022,3953184-844058,"1,322.00",YOUR NRG LTD.
Neighbourhoods and Climate Change,Environmental Services,Transport,215022,Running Costs of Vehicles,07/01/2022,3953184-852863,677.40,YOUR NRG LTD.
Neighbourhoods and Climate Change,Environmental Services,Transport,215022,Running Costs of Vehicles,07/01/2022,3953184-849508,686.55,YOUR NRG LTD.
Children and Young Peoples Services,Head of Education and Skills,Transport,230007,Contract Hire,10/01/2022,3953189-870,884.00,AC TAXIS.
Children and Young Peoples Services,Head of Education and Skills,Transport,230006,Contract Hire,10/01/2022,3953189-869,695.00,AC TAXIS.
Regeneration Economy and Growth,Development and Housing,Third Party Payments,430100,Rendered by Private Contractors,10/01/2022,3953192-APP0000001265,"1,787.80",ALIGN PROPERTY PARTNERS LTD.
Neighbourhoods and Climate Change,Technical Services CM0300,Third Party Payments,430100,Rendered by Private Contractors,10/01/2022,3953201-207R01531-A,"1,311.10",BIFFA WASTE SERVICES LTD.
Neighbourhoods and Climate Change,Technical Services CM0300,Third Party Payments,430100,Rendered by Private Contractors,10/01/2022,3953201-207R01546-A,"1,631.00",BIFFA WASTE SERVICES LTD.
Neighbourhoods and Climate Change,Technical Services CM0300,Third Party Payments,430100,Rendered by Private Contractors,10/01/2022,3953201-207R01561-A,"1,243.20",BIFFA WASTE SERVICES LTD.
Children and Young Peoples Services,Head of Education and Skills,Transport,230009,Contract Hire,10/01/2022,3953202-000493,739.31,BIRDS TAXIS LTD.
Children and Young Peoples Services,Head of Education and Skills,Transport,230008,Contract Hire,10/01/2022,3953202-000494,"1,755.00",BIRDS TAXIS LTD.
Adult and Health Services,Head of Adults,Transport,230005,Contract Hire,10/01/2022,3953202-000497,630.00,BIRDS TAXIS LTD.
Adult and Health Services,Head of Adults,Transport,230005,Contract Hire,10/01/2022,3953202-000500,540.00,BIRDS TAXIS LTD.
Adult and Health Services,Head of Adults,Transport,230005,Contract Hire,10/01/2022,3953202-0501,"1,793.40",BIRDS TAXIS LTD.
Adult and Health Services,Head of Adults,Transport,230005,Contract Hire,10/01/2022,3953202-0503,"2,573.76",BIRDS TAXIS LTD.
Children and Young Peoples Services,Head of Education and Skills,Transport,230005,Contract Hire,10/01/2022,3953202-000499,798.00,BIRDS TAXIS LTD.
Children and Young Peoples Services,Head of Education and Skills,Transport,230008,Contract Hire,10/01/2022,3953204-090,"1,040.00",BL CARS.
Regeneration Economy and Growth,Culture Sport and Tourism,Premises,145023,Cleaning and Domestic Supplies,10/01/2022,3953207-22SI2276890,539.64,BRENNTAG UK LTD.
Regeneration Economy and Growth,Business Durham CL0850,Construction work A908,908105,Construction work,10/01/2022,3953210-J0041,"50,234.20",BUCKINGHAMSHIRE PROPERTIES LTD.
Regeneration Economy and Growth,Transport and Contracted Services,Construction work A908,908105,Construction work,10/01/2022,3953211-NO28318,"2,733.48",BUS SHELTERS LTD.
Neighbourhoods and Climate Change,Environmental Services,Transport,210057,Repair and Maintenance of Vehicles,10/01/2022,3953214-253669,680.68,CARRS BILLINGTON AGRICULTURE.
Neighbourhoods and Climate Change,Environmental Services,Transport,210057,Repair and Maintenance of Vehicles,10/01/2022,3953214-253672,681.63,CARRS BILLINGTON AGRICULTURE.
Children and Young Peoples Services,Head of Education and Skills,Third Party Payments,440999,Other third party payments E440,10/01/2022,3953218-KICK5044718INVOICE000490,"1,010.75",CHANGING RELATIONS CIC.
Children and Young Peoples Services,Head of Education and Skills,Transport,230008,Contract Hire,10/01/2022,3953220-SW4-17/12/21,"1,620.84",CHIPPERS TAXIS.
Regeneration Economy and Growth,Culture Sport and Tourism,Premises,145023,Cleaning and Domestic Supplies,10/01/2022,3953222-CN30144255,"2,266.68",CITRON HYGIENE UK LTD.
Children and Young Peoples Services,Head of Childrens Social Care,Transport,230005,Contract Hire,10/01/2022,3953226-CLUB2142N,650.00,CLUBMAN CABS.
Children and Young Peoples Services,Head of Childrens Social Care,Transport,230005,Contract Hire,10/01/2022,3953226-CLUB2149O,730.00,CLUBMAN CABS.
Children and Young Peoples Services,Head of Childrens Social Care,Transport,230005,Contract Hire,10/01/2022,3953226-CLUB2149J,560.00,CLUBMAN CABS.
Children and Young Peoples Services,Head of Childrens Social Care,Transport,230005,Contract Hire,10/01/2022,3953226-CLUB2149I,605.00,CLUBMAN CABS.
Children and Young Peoples Services,Head of Childrens Social Care,Transport,230005,Contract Hire,10/01/2022,3953226-CLUB2149D,910.00,CLUBMAN CABS.
Children and Young Peoples Services,Head of Education and Skills,Third Party Payments,440999,Other third party payments E440,10/01/2022,3953231-21/22-O62,975.00,CORNFORTH PARTNERSHIP.
Children and Young Peoples Services,Head of Education and Skills,Transport,230008,Contract Hire,10/01/2022,3953234-111960,"1,952.16",CROFT BUSINESS SERVICES LTD T/A CROFT TRAVEL.
Children and Young Peoples Services,Head of Education and Skills,Third Party Payments,440999,Other third party payments E440,10/01/2022,3953238-KICK5044718INVOICE000489,941.16,DAYPARK LTD T/A YELLOW WELLIES.
Neighbourhoods and Climate Change,Environmental Services,Supplies and Services,304221,Equipment and Materials,10/01/2022,3953246-0000078251,"4,383.67",EAST RIDING HORTICULTURE LTD.
Children and Young Peoples Services,Head of Education and Skills,Third Party Payments,440999,Other third party payments E440,10/01/2022,3953252-KICK5044718INVOICE000488,716.39,EPICURIUM LTD.
Children and Young Peoples Services,Head of Early Help Inclusion & Vulnerable Children.,Supplies and Services,384199,Miscellaneous Expenses,10/01/2022,3953256-11437,"1,665.00",EXCLUSIVE SECURE CARE SERVICES LTD.
Adult and Health Services,Head of Adults,Transport,230005,Contract Hire,10/01/2022,3953258-221,"4,020.00",FIGGY BUS (TAXI).
Regeneration Economy and Growth,Corporate Property and Land,Supplies and Services,304221,Equipment and Materials,10/01/2022,3953266-SI830363,"3,415.06",GLASDON UK LTD.
Children and Young Peoples Services,Head of Education and Skills,Transport,230008,Contract Hire,10/01/2022,3953268-22,"1,492.80",GMC TAXIS NORTH EAST.
Resources BK0010,Digital and Customer Services,Stock A926,926900,Stock in hand-Inventory system,10/01/2022,3953273-INV0185165,843.28,GVAV LTD.
Regeneration Economy and Growth,Corporate Property and Land,Third Party Payments,430100,Rendered by Private Contractors,10/01/2022,3953274-3146,"70,000.00",H MALONE & SONS LTD.
Adult and Health Services,Head of Adults,Transport,230005,Contract Hire,10/01/2022,3953276-119,"1,000.00",HAMLET TAXIS.
Regeneration Economy and Growth,Culture Sport and Tourism,Supplies and Services,304252,Equipment and Materials,10/01/2022,3953283-7329,"7,081.07",HOUSE OF PLAY (EUROPE) LTD.
Regeneration Economy and Growth,Corporate Property and Land,Third Party Payments,430100,Rendered by Private Contractors,10/01/2022,3953285-11937,"1,146.25",INGLEFORD SCAFFOLDING LTD.
Adult and Health Services,Public Health CC0450,Third Party Payments,460803,Contract Payments,10/01/2022,3953289-DYBQ/00000242NRT-OCT21,827.92,INTRAHEALTH LTD.*
Neighbourhoods and Climate Change,Technical Services CM0300,Stock A926,926900,Stock in hand-Inventory system,10/01/2022,3953297-10469,713.40,JG UNIFORMS.
Regeneration Economy and Growth,Corporate Property and Land,Construction work A908,908105,Construction work,10/01/2022,3953301-0000083394,"1,350.00",JOHN WADE (HAULAGE) LTD.
Regeneration Economy and Growth,Development and Housing,Supplies and Services,336005,Advertising E336,10/01/2022,3953304-532822,"5,355.00",JPI MEDIA PUBLISHING LTD T/A SHEFFIELD NEWSPAPERS.
Regeneration Economy and Growth,Development and Housing,Supplies and Services,336005,Advertising E336,10/01/2022,3953304-532876,"3,052.35",JPI MEDIA PUBLISHING LTD T/A SHEFFIELD NEWSPAPERS.
Regeneration Economy and Growth,Development and Housing,Supplies and Services,336005,Advertising E336,10/01/2022,3953304-538178,"5,355.00",JPI MEDIA PUBLISHING LTD T/A SHEFFIELD NEWSPAPERS.
Regeneration Economy and Growth,Development and Housing,Supplies and Services,336005,Advertising E336,10/01/2022,3953304-538185,"3,052.35",JPI MEDIA PUBLISHING LTD T/A SHEFFIELD NEWSPAPERS.
Regeneration Economy and Growth,Corporate Property and Land,Supplies and Services,304221,Equipment and Materials,10/01/2022,3953306-0213/00540715,882.84,JT DOVE LTD.
Neighbourhoods and Climate Change,Technical Services CM0300,Stock A926,926900,Stock in hand-Inventory system,10/01/2022,3953306-0101/00546372,969.86,JT DOVE LTD.
Neighbourhoods and Climate Change,Technical Services CM0300,Stock A926,926900,Stock in hand-Inventory system,10/01/2022,3953306-0113/00546374,"1,090.56",JT DOVE LTD.
Neighbourhoods and Climate Change,Partnerships & Community Engagement Div.,Supplies and Services,384086,Miscellaneous Expenses,10/01/2022,3953318-VOUCHERFENL02-21,900.00,LOWHILLS ROAD ALLOTMENT SOCIETY.
Regeneration Economy and Growth,Culture Sport and Tourism,Supplies and Services,324117,Provisions E324,10/01/2022,3953330-906348357,"1,201.67",MOLSON COORS BREWING COMPANY (UK) LTD.
Children and Young Peoples Services,Head of Education and Skills,Third Party Payments,440999,Other third party payments E440,10/01/2022,3953331-KICK5044718INVOICE000487,716.39,MOORLAND HOLDINGS (NE) LTD.
Regeneration Economy and Growth,Corporate Property and Land,Third Party Payments,430100,Rendered by Private Contractors,10/01/2022,3953342-36166,716.00,NE & C WINDOWS & DOORS LTD.
Regeneration Economy and Growth,Corporate Property and Land,Third Party Payments,430100,Rendered by Private Contractors,10/01/2022,3953342-36165,573.00,NE & C WINDOWS & DOORS LTD.
Regeneration Economy and Growth,Development and Housing,Supplies and Services,336005,Advertising E336,10/01/2022,3953344-38855303,510.58,NEWSQUEST (YORKSHIRE & NORTH EAST) LTD.
Regeneration Economy and Growth,Development and Housing,Supplies and Services,336005,Advertising E336,10/01/2022,3953344-38671552,804.11,NEWSQUEST (YORKSHIRE & NORTH EAST) LTD.
Regeneration Economy and Growth,Development and Housing,Supplies and Services,336005,Advertising E336,10/01/2022,3953344-38721794,"1,963.09",NEWSQUEST (YORKSHIRE & NORTH EAST) LTD.
Regeneration Economy and Growth,Development and Housing,Supplies and Services,336005,Advertising E336,10/01/2022,3953344-38735718,"3,459.04",NEWSQUEST (YORKSHIRE & NORTH EAST) LTD.
Regeneration Economy and Growth,Development and Housing,Supplies and Services,336005,Advertising E336,10/01/2022,3953344-38795545,792.05,NEWSQUEST (YORKSHIRE & NORTH EAST) LTD.
Regeneration Economy and Growth,Development and Housing,Supplies and Services,336005,Advertising E336,10/01/2022,3953344-38798821,"1,932.91",NEWSQUEST (YORKSHIRE & NORTH EAST) LTD.
Adult and Health Services,Public Health CC0450,Third Party Payments,460803,Contract Payments,10/01/2022,3953347-FCAF/00000248,"1,181.52",NORCHEM HEALTHCARE LTD.
Regeneration Economy and Growth,Transport and Contracted Services,Third Party Payments,430100,Rendered by Private Contractors,10/01/2022,3953352-00018991,"5,668.38",NSL LTD.
Regeneration Economy and Growth,Transport and Contracted Services,Third Party Payments,430100,Rendered by Private Contractors,10/01/2022,3953352-00018942,"2,048.64",NSL LTD.
Regeneration Economy and Growth,Transport and Contracted Services,Third Party Payments,430100,Rendered by Private Contractors,10/01/2022,3953352-00018944,"3,324.80",NSL LTD.
Regeneration Economy and Growth,Transport and Contracted Services,Third Party Payments,430100,Rendered by Private Contractors,10/01/2022,3953352-00018992,"13,628.03",NSL LTD.
Regeneration Economy and Growth,Transport and Contracted Services,Third Party Payments,430100,Rendered by Private Contractors,10/01/2022,3953352-00018993,"1,926.60",NSL LTD.
Children and Young Peoples Services,Childrens Services Operational Support,Supplies and Services,384956,Miscellaneous Expenses,10/01/2022,3953358-3115,"6,287.64",PAMS ASSESSMENTS LTD.
Children and Young Peoples Services,Head of Education and Skills,Transport,230034,Contract Hire,10/01/2022,3953360-750,"1,584.18",PETERLEE EXECUTIVE CARS.
Children and Young Peoples Services,Head of Education and Skills,Transport,230006,Contract Hire,10/01/2022,3953360-753,882.50,PETERLEE EXECUTIVE CARS.
Children and Young Peoples Services,Head of Education and Skills,Transport,230008,Contract Hire,10/01/2022,3953360-752,"1,040.00",PETERLEE EXECUTIVE CARS.
Children and Young Peoples Services,Head of Education and Skills,Transport,230008,Contract Hire,10/01/2022,3953360-751,"1,521.00",PETERLEE EXECUTIVE CARS.
Neighbourhoods and Climate Change,Environmental Services,Supplies and Services,304252,Equipment and Materials,10/01/2022,3953361-16/01/2022,616.97,PETERLEE FIRE CO LTD.
Children and Young Peoples Services,Head of Early Help Inclusion & Vulnerable Children.,Supplies and Services,304252,Equipment and Materials,10/01/2022,3953361-100339,"1,999.96",PETERLEE FIRE CO LTD.
Children and Young Peoples Services,Head of Education and Skills,Supplies and Services,312009,Newspapers books and periodicals E312,10/01/2022,3953362-1874803,519.55,PETERS LTD.
Dedicated Schools Grant BG0015,DSG Schools Block,Supplies and Services,338075,Services,10/01/2022,3953369-00516,"2,520.00",PINNACLE TRAINING (NE) LTD.
Children and Young Peoples Services,Head of Education and Skills,Transport,230008,Contract Hire,10/01/2022,3953375-17706-30/12/21,"1,274.00",RAPID MINIBUSES.
Regeneration Economy and Growth,Culture Sport and Tourism,Supplies and Services,384302,Miscellaneous Expenses,10/01/2022,3953398-140821-02,"2,000.00",REDACTED - PAYMENT TO INDIVIDUAL
Children and Young Peoples Services,Head of Education and Skills,Transport,230034,Contract Hire,10/01/2022,3953365-45232,"1,482.00",REDACTED - PAYMENT TO INDIVIDUAL
Children and Young Peoples Services,Head of Education and Skills,Transport,230034,Contract Hire,10/01/2022,3953308-618,"2,015.00",REDACTED - PAYMENT TO INDIVIDUAL
Children and Young Peoples Services,Head of Education and Skills,Transport,230034,Contract Hire,10/01/2022,3953308-610,910.00,REDACTED - PAYMENT TO INDIVIDUAL
Children and Young Peoples Services,Head of Education and Skills,Transport,230034,Contract Hire,10/01/2022,3953365-45235,720.00,REDACTED - PAYMENT TO INDIVIDUAL
Children and Young Peoples Services,Head of Education and Skills,Transport,230034,Contract Hire,10/01/2022,3953365-45238,728.00,REDACTED - PAYMENT TO INDIVIDUAL
Children and Young Peoples Services,Head of Education and Skills,Transport,230007,Contract Hire,10/01/2022,3953298-32865,"2,405.00",REDACTED - PAYMENT TO INDIVIDUAL
Children and Young Peoples Services,Head of Education and Skills,Transport,230007,Contract Hire,10/01/2022,3953365-45234,624.00,REDACTED - PAYMENT TO INDIVIDUAL
Children and Young Peoples Services,Head of Education and Skills,Transport,230007,Contract Hire,10/01/2022,3953187-0257,"1,352.00",REDACTED - PAYMENT TO INDIVIDUAL
Children and Young Peoples Services,Head of Education and Skills,Transport,230007,Contract Hire,10/01/2022,3953365-45233,534.56,REDACTED - PAYMENT TO INDIVIDUAL
Children and Young Peoples Services,Head of Education and Skills,Transport,230007,Contract Hire,10/01/2022,3953327-0004-DEC21,748.00,REDACTED - PAYMENT TO INDIVIDUAL
Children and Young Peoples Services,Head of Education and Skills,Transport,230007,Contract Hire,10/01/2022,3953294-6118-17/12/21,657.67,REDACTED - PAYMENT TO INDIVIDUAL
Children and Young Peoples Services,Head of Education and Skills,Transport,230003,Contract Hire,10/01/2022,3953298-32866,"3,360.00",REDACTED - PAYMENT TO INDIVIDUAL
Children and Young Peoples Services,Head of Education and Skills,Transport,230009,Contract Hire,10/01/2022,3953365-45239,988.00,REDACTED - PAYMENT TO INDIVIDUAL
Children and Young Peoples Services,Head of Education and Skills,Transport,230009,Contract Hire,10/01/2022,3953339-096,"1,995.00",REDACTED - PAYMENT TO INDIVIDUAL
Children and Young Peoples Services,Head of Education and Skills,Transport,230006,Contract Hire,10/01/2022,3953308-607,"1,157.37",REDACTED - PAYMENT TO INDIVIDUAL
Children and Young Peoples Services,Head of Education and Skills,Transport,230006,Contract Hire,10/01/2022,3953365-45245,616.00,REDACTED - PAYMENT TO INDIVIDUAL
Children and Young Peoples Services,Head of Education and Skills,Transport,230006,Contract Hire,10/01/2022,3953365-45247,510.00,REDACTED - PAYMENT TO INDIVIDUAL
Children and Young Peoples Services,Head of Education and Skills,Transport,230006,Contract Hire,10/01/2022,3953365-45249,512.00,REDACTED - PAYMENT TO INDIVIDUAL
Children and Young Peoples Services,Head of Education and Skills,Transport,230006,Contract Hire,10/01/2022,3953365-45316,"1,195.34",REDACTED - PAYMENT TO INDIVIDUAL
Dedicated Schools Grant BG0015,DSG High Needs Block,Transport,230011,Contract Hire,10/01/2022,3953337-9003-DEC21,536.85,REDACTED - PAYMENT TO INDIVIDUAL
Children and Young Peoples Services,Head of Education and Skills,Transport,230012,Contract Hire,10/01/2022,3953338-230,"1,521.65",REDACTED - PAYMENT TO INDIVIDUAL
Children and Young Peoples Services,Head of Education and Skills,Transport,230012,Contract Hire,10/01/2022,3953380-400,920.66,REDACTED - PAYMENT TO INDIVIDUAL
Children and Young Peoples Services,Head of Education and Skills,Transport,230016,Contract Hire,10/01/2022,3953380-399,520.00,REDACTED - PAYMENT TO INDIVIDUAL
Children and Young Peoples Services,Head of Education and Skills,Transport,230016,Contract Hire,10/01/2022,3953380-403,982.00,REDACTED - PAYMENT TO INDIVIDUAL
Children and Young Peoples Services,Head of Education and Skills,Transport,230008,Contract Hire,10/01/2022,3953380-401,"1,157.00",REDACTED - PAYMENT TO INDIVIDUAL
Children and Young Peoples Services,Head of Education and Skills,Transport,230008,Contract Hire,10/01/2022,3953380-402,"1,037.96",REDACTED - PAYMENT TO INDIVIDUAL
Children and Young Peoples Services,Head of Education and Skills,Transport,230008,Contract Hire,10/01/2022,3953341-067,"1,770.00",REDACTED - PAYMENT TO INDIVIDUAL
Children and Young Peoples Services,Head of Education and Skills,Transport,230008,Contract Hire,10/01/2022,3953308-608,"2,275.00",REDACTED - PAYMENT TO INDIVIDUAL
Children and Young Peoples Services,Head of Education and Skills,Transport,230008,Contract Hire,10/01/2022,3953308-504,"1,547.00",REDACTED - PAYMENT TO INDIVIDUAL
Children and Young Peoples Services,Head of Education and Skills,Transport,230008,Contract Hire,10/01/2022,3953308-014,"1,781.00",REDACTED - PAYMENT TO INDIVIDUAL
Children and Young Peoples Services,Head of Education and Skills,Transport,230008,Contract Hire,10/01/2022,3953308-603,"1,144.00",REDACTED - PAYMENT TO INDIVIDUAL
Children and Young Peoples Services,Head of Education and Skills,Transport,230008,Contract Hire,10/01/2022,3953308-613,"1,144.00",REDACTED - PAYMENT TO INDIVIDUAL
Children and Young Peoples Services,Head of Education and Skills,Transport,230008,Contract Hire,10/01/2022,3953308-602,"1,885.00",REDACTED - PAYMENT TO INDIVIDUAL
Children and Young Peoples Services,Head of Education and Skills,Transport,230008,Contract Hire,10/01/2022,3953187-0259,"1,950.00",REDACTED - PAYMENT TO INDIVIDUAL
Children and Young Peoples Services,Head of Education and Skills,Transport,230008,Contract Hire,10/01/2022,3953405-065-DEC21,"1,038.00",REDACTED - PAYMENT TO INDIVIDUAL
Children and Young Peoples Services,Head of Education and Skills,Transport,230008,Contract Hire,10/01/2022,3953405-066-DEC21,"1,007.00",REDACTED - PAYMENT TO INDIVIDUAL
Children and Young Peoples Services,Head of Education and Skills,Transport,230008,Contract Hire,10/01/2022,3953335-8-DEC21,"2,239.51",REDACTED - PAYMENT TO INDIVIDUAL
Children and Young Peoples Services,Head of Education and Skills,Transport,230008,Contract Hire,10/01/2022,3953341-065,900.00,REDACTED - PAYMENT TO INDIVIDUAL
Children and Young Peoples Services,Head of Education and Skills,Transport,230008,Contract Hire,10/01/2022,3953308-600,"1,728.15",REDACTED - PAYMENT TO INDIVIDUAL
Children and Young Peoples Services,Head of Education and Skills,Transport,230008,Contract Hire,10/01/2022,3953308-611,"1,430.00",REDACTED - PAYMENT TO INDIVIDUAL
Children and Young Peoples Services,Head of Education and Skills,Transport,230008,Contract Hire,10/01/2022,3953365-45251,"1,488.00",REDACTED - PAYMENT TO INDIVIDUAL
Children and Young Peoples Services,Head of Education and Skills,Transport,230008,Contract Hire,10/01/2022,3953308-615,"2,275.00",REDACTED - PAYMENT TO INDIVIDUAL
Children and Young Peoples Services,Head of Education and Skills,Transport,230008,Contract Hire,10/01/2022,3953308-616,"1,300.00",REDACTED - PAYMENT TO INDIVIDUAL
Children and Young Peoples Services,Head of Education and Skills,Transport,230008,Contract Hire,10/01/2022,3953365-45252,"1,486.94",REDACTED - PAYMENT TO INDIVIDUAL
Children and Young Peoples Services,Head of Education and Skills,Transport,230008,Contract Hire,10/01/2022,3953294-6119-17/12/21,832.00,REDACTED - PAYMENT TO INDIVIDUAL
Children and Young Peoples Services,Head of Education and Skills,Transport,230008,Contract Hire,10/01/2022,3953334-N030D,"1,869.48",REDACTED - PAYMENT TO INDIVIDUAL
Children and Young Peoples Services,Head of Education and Skills,Transport,230008,Contract Hire,10/01/2022,3953341-066,"1,170.00",REDACTED - PAYMENT TO INDIVIDUAL
Children and Young Peoples Services,Head of Education and Skills,Transport,230008,Contract Hire,10/01/2022,3953333-W174/15,"1,625.00",REDACTED - PAYMENT TO INDIVIDUAL
Adult and Health Services,Head of Adults,Transport,230005,Contract Hire,10/01/2022,3953324-000062,"1,343.00",REDACTED - PAYMENT TO INDIVIDUAL
Children and Young Peoples Services,Head of Education and Skills,Fees,901002,Professional fees,10/01/2022,3953384-TEC586406,"2,552.30",RPS CONSULTING SERVICES LTD.
Children and Young Peoples Services,Head of Education and Skills,Transport,230008,Contract Hire,10/01/2022,3953388-S017/56,"1,763.78",S & S TRAVEL LTD.
Children and Young Peoples Services,Head of Education and Skills,Transport,230008,Contract Hire,10/01/2022,3953388-W056/28-DEC,"1,320.00",S & S TRAVEL LTD.
Children and Young Peoples Services,Head of Education and Skills,Transport,230008,Contract Hire,10/01/2022,3953388-W067/29,"1,857.60",S & S TRAVEL LTD.
Children and Young Peoples Services,Head of Education and Skills,Transport,230008,Contract Hire,10/01/2022,3953388-W076/28,"1,504.80",S & S TRAVEL LTD.
Children and Young Peoples Services,Head of Education and Skills,Transport,230008,Contract Hire,10/01/2022,3953388-S009/28,"1,663.20",S & S TRAVEL LTD.
Children and Young Peoples Services,Head of Education and Skills,Transport,230008,Contract Hire,10/01/2022,3953388-W032/29,"1,816.80",S & S TRAVEL LTD.
Children and Young Peoples Services,Head of Education and Skills,Transport,230008,Contract Hire,10/01/2022,3953388-W036/05,"1,999.20",S & S TRAVEL LTD.
Children and Young Peoples Services,Head of Education and Skills,Transport,230008,Contract Hire,10/01/2022,3953388-W178/09,972.00,S & S TRAVEL LTD.
Children and Young Peoples Services,Head of Education and Skills,Transport,230008,Contract Hire,10/01/2022,3953388-W014/29,"1,911.90",S & S TRAVEL LTD.
Adult and Health Services,Head of Adults,Transport,230005,Contract Hire,10/01/2022,3953388-SED112/33,"1,743.13",S & S TRAVEL LTD.
Neighbourhoods and Climate Change,Partnerships & Community Engagement Div.,Supplies and Services,384086,Miscellaneous Expenses,10/01/2022,3953395-VOUCHERQUIS04-21,844.00,SHILDON TOWN COUNCIL.
Regeneration Economy and Growth,Development and Housing,Supplies and Services,336005,Advertising E336,10/01/2022,3953401-20587,960.00,SOUTH WEST DURHAM NEWS CIC.
Children and Young Peoples Services,Head of Education and Skills,Transport,230008,Contract Hire,10/01/2022,3953402-00091,"1,200.00",SPENNYMOOR TAXIS.
Children and Young Peoples Services,Head of Education and Skills,Transport,230008,Contract Hire,10/01/2022,3953402-00092,"1,128.00",SPENNYMOOR TAXIS.
Children and Young Peoples Services,Head of Education and Skills,Transport,230008,Contract Hire,10/01/2022,3953402-00090,"1,586.00",SPENNYMOOR TAXIS.
Children and Young Peoples Services,Head of Education and Skills,Transport,230008,Contract Hire,10/01/2022,3953402-AL00094,"1,670.50",SPENNYMOOR TAXIS.
Children and Young Peoples Services,Head of Education and Skills,Transport,230008,Contract Hire,10/01/2022,3953402-00093,"1,843.20",SPENNYMOOR TAXIS.
Children and Young Peoples Services,Head of Childrens Social Care,Third Party Payments,440062,Other third party payments E440,10/01/2022,3953403-8794,"4,800.46",ST OSWALD`S HOSPICE LTD.
Children and Young Peoples Services,Head of Education and Skills,Transport,230007,Contract Hire,10/01/2022,3953404-06701,626.80,STANLEY TRAVEL (NORTH EAST) LTD.
Children and Young Peoples Services,Head of Education and Skills,Supplies and Services,338027,Services,10/01/2022,3953408-2807029928,"1,134.00",SUNDERLAND CITY COUNCIL.
Regeneration Economy and Growth,Corporate Property and Land,Supplies and Services,304221,Equipment and Materials,10/01/2022,3953409-694777,"3,064.54",T CROSSLING & CO LTD.
Children and Young Peoples Services,Head of Education and Skills,Transport,230012,Contract Hire,10/01/2022,3953410-B1097,"1,105.00",TALBOTS TRAVEL LTD.
Neighbourhoods and Climate Change,Technical Services CM0300,Stock A926,926900,Stock in hand-Inventory system,10/01/2022,3953418-105905,"1,852.00",TOTAL RENTAL SOLUTIONS.
Regeneration Economy and Growth,Culture Sport and Tourism,Supplies and Services,342053,Computers and Communications,10/01/2022,3953419-TRNE028338,"1,764.00",TOTAL RESOURCES (UK) LTD.
Neighbourhoods and Climate Change,Technical Services CM0300,Supplies and Services,304221,Equipment and Materials,10/01/2022,3953424-229351,779.89,TYNEDALE ROADSTONE LTD.
Neighbourhoods and Climate Change,Technical Services CM0300,Supplies and Services,304221,Equipment and Materials,10/01/2022,3953424-229356,932.13,TYNEDALE ROADSTONE LTD.
Neighbourhoods and Climate Change,Technical Services CM0300,Supplies and Services,304221,Equipment and Materials,10/01/2022,3953424-229453,541.12,TYNEDALE ROADSTONE LTD.
Neighbourhoods and Climate Change,Technical Services CM0300,Supplies and Services,304221,Equipment and Materials,10/01/2022,3953424-229570,895.98,TYNEDALE ROADSTONE LTD.
Regeneration Economy and Growth,Corporate Property and Land,Supplies and Services,304221,Equipment and Materials,10/01/2022,3953425-04029909,"1,140.00",UK ELECTRIC LTD.*
Resources BK0010,Digital and Customer Services,Supplies and Services,344015,Telephones,10/01/2022,3953431-PW81656,"1,069.00",VODAFONE LTD.
Resources BK0010,Digital and Customer Services,Supplies and Services,344015,Telephones,10/01/2022,3953431-PX09230,"1,827.00",VODAFONE LTD.
Neighbourhoods and Climate Change,Environmental Services,Transport,215005,Running Costs of Vehicles,10/01/2022,3953443-858070,"13,669.20",YOUR NRG LTD.
Children and Young Peoples Services,Head of Education and Skills,Transport,230034,Contract Hire,11/01/2022,3954005-78173,"1,816.70",24X7LTD.
Children and Young Peoples Services,Head of Education and Skills,Transport,230035,Contract Hire,11/01/2022,3954005-78177,"1,227.76",24X7LTD.
Children and Young Peoples Services,Head of Education and Skills,Transport,230007,Contract Hire,11/01/2022,3954005-78174,993.20,24X7LTD.
Children and Young Peoples Services,Head of Education and Skills,Transport,230007,Contract Hire,11/01/2022,3954005-78175,993.98,24X7LTD.
Children and Young Peoples Services,Head of Education and Skills,Transport,230007,Contract Hire,11/01/2022,3954005-78176,928.33,24X7LTD.
Children and Young Peoples Services,Head of Education and Skills,Transport,230007,Contract Hire,11/01/2022,3954005-78178,"1,112.54",24X7LTD.
Children and Young Peoples Services,Head of Education and Skills,Transport,230007,Contract Hire,11/01/2022,3954005-78179,850.98,24X7LTD.
Children and Young Peoples Services,Head of Education and Skills,Transport,230009,Contract Hire,11/01/2022,3954005-78180,"1,130.87",24X7LTD.
Children and Young Peoples Services,Head of Education and Skills,Transport,230012,Contract Hire,11/01/2022,3954005-78184,"1,438.45",24X7LTD.
Children and Young Peoples Services,Head of Education and Skills,Transport,230012,Contract Hire,11/01/2022,3954005-78185,"1,848.86",24X7LTD.
Children and Young Peoples Services,Head of Education and Skills,Transport,230008,Contract Hire,11/01/2022,3954005-78188,"2,072.88",24X7LTD.
Children and Young Peoples Services,Head of Education and Skills,Transport,230008,Contract Hire,11/01/2022,3954005-78186,"2,174.98",24X7LTD.
Children and Young Peoples Services,Head of Education and Skills,Transport,230008,Contract Hire,11/01/2022,3954005-78183,"2,097.55",24X7LTD.
Children and Young Peoples Services,Head of Education and Skills,Transport,230008,Contract Hire,11/01/2022,3954005-78181,"1,610.31",24X7LTD.
Children and Young Peoples Services,Head of Education and Skills,Transport,230008,Contract Hire,11/01/2022,3954005-78182,"1,284.53",24X7LTD.
Children and Young Peoples Services,Head of Education and Skills,Transport,230008,Contract Hire,11/01/2022,3954005-78187,"1,863.42",24X7LTD.
Children and Young Peoples Services,Head of Education and Skills,Transport,230007,Contract Hire,11/01/2022,3954009-AC2036,"1,080.00",ACE TAXIS (WINSTON).
Children and Young Peoples Services,Head of Education and Skills,Transport,230008,Contract Hire,11/01/2022,3954009-AC2037,840.00,ACE TAXIS (WINSTON).
Children and Young Peoples Services,Head of Childrens Social Care,Third Party Payments,425041,Rendered by Voluntary Organisations,11/01/2022,3954012-203570,"10,773.00",ADOPTION MATTERS NORTHWEST.
Children and Young Peoples Services,Head of Childrens Social Care,Third Party Payments,425041,Rendered by Voluntary Organisations,11/01/2022,3954012-203737,955.73,ADOPTION MATTERS NORTHWEST.
Regeneration Economy and Growth,Corporate Property and Land,Third Party Payments,430100,Rendered by Private Contractors,11/01/2022,3954013-48589853,"5,211.50",ADT FIRE & SECURITY PLC.
Regeneration Economy and Growth,Corporate Property and Land,Third Party Payments,430100,Rendered by Private Contractors,11/01/2022,3954013-48814326,"4,115.22",ADT FIRE & SECURITY PLC.
Dedicated Schools Grant BG0015,DSG High Needs Block,Supplies and Services,384302,Miscellaneous Expenses,11/01/2022,3954014-BASI6,"20,000.00",ADVANCE LEARNING PARTNERSHIP.
Children and Young Peoples Services,Head of Education and Skills,Transport,230007,Contract Hire,11/01/2022,3954017-323,840.00,ALANS TAXIS BARNARD CASTLE.
Children and Young Peoples Services,Head of Education and Skills,Transport,230007,Contract Hire,11/01/2022,3954017-324,"1,196.00",ALANS TAXIS BARNARD CASTLE.
Children and Young Peoples Services,Head of Education and Skills,Transport,230007,Contract Hire,11/01/2022,3954017-320,"1,980.00",ALANS TAXIS BARNARD CASTLE.
Children and Young Peoples Services,Head of Education and Skills,Transport,230007,Contract Hire,11/01/2022,3954017-322,650.00,ALANS TAXIS BARNARD CASTLE.
Children and Young Peoples Services,Head of Education and Skills,Transport,230007,Contract Hire,11/01/2022,3954017-325,"1,287.00",ALANS TAXIS BARNARD CASTLE.
Children and Young Peoples Services,Head of Education and Skills,Transport,230006,Contract Hire,11/01/2022,3954017-316,"2,714.50",ALANS TAXIS BARNARD CASTLE.
Children and Young Peoples Services,Head of Education and Skills,Transport,230006,Contract Hire,11/01/2022,3954017-321,"1,513.00",ALANS TAXIS BARNARD CASTLE.
Regeneration Economy and Growth,Corporate Property and Land,Supplies and Services,304221,Equipment and Materials,11/01/2022,3954018-172708,"15,033.86",ALBANY OFFICE EQUIPMENT (WHOLESALE) LTD.
Resources BK0010,Finance & Transactional Services,Supplies and Services,308011,Furniture,11/01/2022,3954018-173333,680.00,ALBANY OFFICE EQUIPMENT (WHOLESALE) LTD.
Regeneration Economy and Growth,Development and Housing,Third Party Payments,430100,Rendered by Private Contractors,11/01/2022,3954020-APP0000001284,"4,152.50",ALIGN PROPERTY PARTNERS LTD.
Regeneration Economy and Growth,Business Durham CL0850,Third Party Payments,440999,Other third party payments E440,11/01/2022,3954021-DBRG-01-2022-03,"33,460.75",ALPHA PROCESS CONTROLS (INTERNATIONAL) LTD.
Children and Young Peoples Services,Head of Education and Skills,Transport,230007,Contract Hire,11/01/2022,3954022-DCC090A,"2,013.05",ALSTON ROAD GARAGE.
Children and Young Peoples Services,Head of Childrens Social Care,Supplies and Services,338045,Services,11/01/2022,3954030-27912,"1,870.28",ARBOR TIMBER & BUILDERS MERCHANTS LTD.
Children and Young Peoples Services,Head of Education and Skills,Transport,230006,Contract Hire,11/01/2022,3954032-DEE6DEC2021,"2,457.00",ATLAS TAXIS MANAGEMENT LTD.
